Workbook

Sheet Sheet1
F1: degrees | G1: radians | I1: =+PI()/2 -> 1.570796327 | M1: Inverse Motion
A2: d2 | B2: 0.2 | C2: 1.2 | E2: a2 | F2: 205 | G2: =+F2*D_R() -> 3.577924967 | N2: d2' | O2: =CRotate(-(B2:C2),-G2) -> 0.6884034715 | P2: 1.003045692 | R2: a2 | S2: =-G2 -> -3.577924967
A3: d3 | B3: =-0.75 -> -0.75 | C3: 2.5 | E3: a3 | F3: 55 | G3: =+F3*D_R() -> 0.9599310886 | N3: d3' | O3: =CRotate(-(B3:C3),-G3) -> -1.617697783 | P3: -2.048305124 | R3: a3 | S3: =-G3 -> -0.9599310886
A8: l | H8: l | I8: -Zx | J8: -Zy | K8: Sx | L8: Sy | M8: g
A9: 0 | B9: =ThreePosition_Slider($G$2,$G$3,$B$2:$C$2,$B$3:$C$3,A9) -> -2.776227659 | C9: 0.5296317024 | D9: =ThreePosition_Slider($S$2,$S$3,$O$2:$P$2,$O$3:$P$3,A9) -> -2.776227659 | E9: 0.5296317024 | G9: =+G10-90 -> 10 | H9: =+TAN(G9*D_R()) -> 0.1763269807 | I9: =ThreePosition_Slider($G$2,$G$3,$B$2:$C$2,$B$3:$C$3,H9) -> -2.622688006 | J9: -0.6137187972 | K9: =+B2+I9*(COS(G2)-1)-J9*SIN(G2) -> 4.940281798 | L9: =+C2+I9*SIN(G2)+J9*(COS(G2)-1) -> 3.478332768 | M9: =+ATAN2(K9,L9) -> 0.6134561538
A10: 1 | B10: =ThreePosition_Slider($G$2,$G$3,$B$2:$C$2,$B$3:$C$3,A10) -> -0.05584366247 | C10: -0.8315887005 | D10: =ThreePosition_Slider($S$2,$S$3,$O$2:$P$2,$O$3:$P$3,A10) -> -0.1008330249 | E10: 1.977275866 | G10: 100 | I10: =+I9+K9 -> 2.317593792 | J10: =+J9+L9 -> 2.864613971 | M10: =+M9/D_R() -> 35.14844853
A11: =10^20 -> 1e+20 | B11: =ThreePosition_Slider($G$2,$G$3,$B$2:$C$2,$B$3:$C$3,A11) -> 0.2330167976 | C11: 0.5778305337 | D11: =ThreePosition_Slider($S$2,$S$3,$O$2:$P$2,$O$3:$P$3,A11) -> 0.2330167976 | E11: 0.5778305337 | I11: =+I9+H9*K9 -> -1.751583033 | J11: =+J9+H9*L9 -> -0.0003948822649
B12: =+B9 -> -2.776227659 | C12: =+C9 -> 0.5296317024 | D12: =ThreePosition_Slider($S$2,$S$3,$O$2:$P$2,$O$3:$P$3,A12) -> -2.776227659 | E12: 0.5296317024
B14: l | C14: -Zx | D14: -Zy | E14: Rx | F14: Ry
A15: -90 | B15: =+TAN(A15*D_R()) -> -1.632455228e+16 | C15: =ThreePosition_Slider($G$2,$G$3,$B$2:$C$2,$B$3:$C$3,B15) -> 0.2330167976 | D15: 0.5778305337 | E15: =ThreePosition_Slider($S$2,$S$3,$O$2:$P$2,$O$3:$P$3,B15) -> 0.2330167976 | F15: 0.5778305337
A16: -89 | B16: =+TAN(A16*D_R()) -> -57.28996163 | C16: =ThreePosition_Slider($G$2,$G$3,$B$2:$C$2,$B$3:$C$3,B16) -> 0.2260278727 | D16: 0.6016174303 | E16: =ThreePosition_Slider($S$2,$S$3,$O$2:$P$2,$O$3:$P$3,B16) -> 0.226793248 | F16: 0.553832014
A17: -88 | B17: -28.63625328 | C17: =ThreePosition_Slider($G$2,$G$3,$B$2:$C$2,$B$3:$C$3,B17) -> 0.2186898198 | D17: 0.6252009475 | E17: =ThreePosition_Slider($S$2,$S$3,$O$2:$P$2,$O$3:$P$3,B17) -> 0.220214236 | F17: 0.5300255883
A18: -87 | B18: -19.08113669 | C18: =ThreePosition_Slider($G$2,$G$3,$B$2:$C$2,$B$3:$C$3,B18) -> 0.2110047666 | D18: 0.6485882384 | E18: =ThreePosition_Slider($S$2,$S$3,$O$2:$P$2,$O$3:$P$3,B18) -> 0.2132821175 | F18: 0.5064041752
A19: -86 | B19: -14.30066626 | C19: =ThreePosition_Slider($G$2,$G$3,$B$2:$C$2,$B$3:$C$3,B19) -> 0.2029741832 | D19: 0.6717862278 | E19: =ThreePosition_Slider($S$2,$S$3,$O$2:$P$2,$O$3:$P$3,B19) -> 0.2059985836 | F19: 0.4829609009
A20: -85 | B20: -11.4300523 | C20: =ThreePosition_Slider($G$2,$G$3,$B$2:$C$2,$B$3:$C$3,B20) -> 0.1945988971 | D20: 0.6948016074 | E20: =ThreePosition_Slider($S$2,$S$3,$O$2:$P$2,$O$3:$P$3,B20) -> 0.1983646756 | F20: 0.4596891032
A21: -84 | B21: -9.514364454 | C21: =ThreePosition_Slider($G$2,$G$3,$B$2:$C$2,$B$3:$C$3,B21) -> 0.1858791063 | D21: 0.7176408323 | E21: =ThreePosition_Slider($S$2,$S$3,$O$2:$P$2,$O$3:$P$3,B21) -> 0.190380798 | F21: 0.436582337
A22: -83 | B22: -8.144346428 | C22: =ThreePosition_Slider($G$2,$G$3,$B$2:$C$2,$B$3:$C$3,B22) -> 0.1768143898 | D22: 0.740310116 | E22: =ThreePosition_Slider($S$2,$S$3,$O$2:$P$2,$O$3:$P$3,B22) -> 0.1820467294 | F22: 0.4136343784
A23: -82 | B23: -7.115369722 | C23: =ThreePosition_Slider($G$2,$G$3,$B$2:$C$2,$B$3:$C$3,B23) -> 0.1674037174 | D23: 0.7628154258 | E23: =ThreePosition_Slider($S$2,$S$3,$O$2:$P$2,$O$3:$P$3,B23) -> 0.1733616309 | F23: 0.39083923
A24: -81 | B24: -6.313751515 | C24: =ThreePosition_Slider($G$2,$G$3,$B$2:$C$2,$B$3:$C$3,B24) -> 0.1576454562 | D24: 0.7851624774 | E24: =ThreePosition_Slider($S$2,$S$3,$O$2:$P$2,$O$3:$P$3,B24) -> 0.1643240535 | F24: 0.3681911269
A25: -80 | B25: -5.67128182 | C25: =ThreePosition_Slider($G$2,$G$3,$B$2:$C$2,$B$3:$C$3,B25) -> 0.1475373759 | D25: 0.8073567291 | E25: =ThreePosition_Slider($S$2,$S$3,$O$2:$P$2,$O$3:$P$3,B25) -> 0.154931943 | F25: 0.3456845423
A26: -79 | B26: -5.144554016 | C26: =ThreePosition_Slider($G$2,$G$3,$B$2:$C$2,$B$3:$C$3,B26) -> 0.1370766524 | D26: 0.8294033747 | E26: =ThreePosition_Slider($S$2,$S$3,$O$2:$P$2,$O$3:$P$3,B26) -> 0.1451826429 | F26: 0.3233141943
A27: -78 | B27: -4.704630109 | C27: =ThreePosition_Slider($G$2,$G$3,$B$2:$C$2,$B$3:$C$3,B27) -> 0.1262598694 | D27: 0.8513073369 | E27: =ThreePosition_Slider($S$2,$S$3,$O$2:$P$2,$O$3:$P$3,B27) -> 0.1350728965 | F27: 0.3010750535
A28: -77 | B28: -4.331475874 | C28: =ThreePosition_Slider($G$2,$G$3,$B$2:$C$2,$B$3:$C$3,B28) -> 0.1150830185 | D28: 0.8730732583 | E28: =ThreePosition_Slider($S$2,$S$3,$O$2:$P$2,$O$3:$P$3,B28) -> 0.1245988461 | F28: 0.2789623513
A29: -76 | B29: -4.010780934 | C29: =ThreePosition_Slider($G$2,$G$3,$B$2:$C$2,$B$3:$C$3,B29) -> 0.1035414975 | D29: 0.8947054923 | E29: =ThreePosition_Slider($S$2,$S$3,$O$2:$P$2,$O$3:$P$3,B29) -> 0.1137560312 | F29: 0.2569715892
A30: -75 | B30: -3.732050808 | C30: =ThreePosition_Slider($G$2,$G$3,$B$2:$C$2,$B$3:$C$3,B30) -> 0.091630107 | D30: 0.9162080925 | E30: =ThreePosition_Slider($S$2,$S$3,$O$2:$P$2,$O$3:$P$3,B30) -> 0.1025393849 | F30: 0.235098549
A31: -74 | B31: -3.487414444 | C31: =ThreePosition_Slider($G$2,$G$3,$B$2:$C$2,$B$3:$C$3,B31) -> 0.07934304583 | D31: 0.9375848012 | E31: =ThreePosition_Slider($S$2,$S$3,$O$2:$P$2,$O$3:$P$3,B31) -> 0.09094322888 | F31: 0.2133393047
A32: -73 | B32: -3.270852618 | C32: =ThreePosition_Slider($G$2,$G$3,$B$2:$C$2,$B$3:$C$3,B32) -> 0.06667390435 | D32: 0.9588390359 | E32: =ThreePosition_Slider($S$2,$S$3,$O$2:$P$2,$O$3:$P$3,B32) -> 0.07896126624 | F32: 0.1916902353
A33: -72 | B33: -3.077683537 | C33: =ThreePosition_Slider($G$2,$G$3,$B$2:$C$2,$B$3:$C$3,B33) -> 0.05361565662 | D33: 0.9799738746 | E33: =ThreePosition_Slider($S$2,$S$3,$O$2:$P$2,$O$3:$P$3,B33) -> 0.06658657321 | F33: 0.1701480392
A34: -71 | B34: -2.904210878 | C34: =ThreePosition_Slider($G$2,$G$3,$B$2:$C$2,$B$3:$C$3,B34) -> 0.04016065088 | D34: 1.000992039 | E34: =ThreePosition_Slider($S$2,$S$3,$O$2:$P$2,$O$3:$P$3,B34) -> 0.05381158915 | F34: 0.1487097506
A35: -70 | B35: -2.747477419 | C35: =ThreePosition_Slider($G$2,$G$3,$B$2:$C$2,$B$3:$C$3,B35) -> 0.02630059861 | D35: 1.021895879 | E35: =ThreePosition_Slider($S$2,$S$3,$O$2:$P$2,$O$3:$P$3,B35) -> 0.04062810496 | F35: 0.1273727572
A36: -69 | B36: -2.605089065 | C36: =ThreePosition_Slider($G$2,$G$3,$B$2:$C$2,$B$3:$C$3,B36) -> 0.01202656206 | D36: 1.042687346 | E36: =ThreePosition_Slider($S$2,$S$3,$O$2:$P$2,$O$3:$P$3,B36) -> 0.02702725006 | F36: 0.1061348202
A37: -68 | B37: -2.475086853 | C37: =ThreePosition_Slider($G$2,$G$3,$B$2:$C$2,$B$3:$C$3,B37) -> -0.002671059613 | D37: 1.063367977 | E37: =ThreePosition_Slider($S$2,$S$3,$O$2:$P$2,$O$3:$P$3,B37) -> 0.01299947774 | F37: 0.08499409674
A38: -67 | B38: -2.355852366 | C38: =ThreePosition_Slider($G$2,$G$3,$B$2:$C$2,$B$3:$C$3,B38) -> -0.01780254563 | D38: 1.083938866 | E38: =ThreePosition_Slider($S$2,$S$3,$O$2:$P$2,$O$3:$P$3,B38) -> -0.00146545094 | F38: 0.063949164
A39: -66 | B39: -2.246036774 | C39: =ThreePosition_Slider($G$2,$G$3,$B$2:$C$2,$B$3:$C$3,B39) -> -0.0333788703 | D39: 1.104400638 | E39: =ThreePosition_Slider($S$2,$S$3,$O$2:$P$2,$O$3:$P$3,B39) -> -0.01637848464 | F39: 0.04299904676
A40: -65 | B40: -2.144506921 | C40: =ThreePosition_Slider($G$2,$G$3,$B$2:$C$2,$B$3:$C$3,B40) -> -0.049411721 | D40: 1.124753415 | E40: =ThreePosition_Slider($S$2,$S$3,$O$2:$P$2,$O$3:$P$3,B40) -> -0.03175130082 | F40: 0.02214324738
A41: -64 | B41: -2.050303842 | C41: =ThreePosition_Slider($G$2,$G$3,$B$2:$C$2,$B$3:$C$3,B41) -> -0.06591351755 | D41: 1.144996787 | E41: =ThreePosition_Slider($S$2,$S$3,$O$2:$P$2,$O$3:$P$3,B41) -> -0.04759632608 | F41: 0.001381779063
A42: -63 | B42: -1.962610506 | C42: =ThreePosition_Slider($G$2,$G$3,$B$2:$C$2,$B$3:$C$3,B42) -> -0.08289743278 | D42: 1.16512977 | E42: =ThreePosition_Slider($S$2,$S$3,$O$2:$P$2,$O$3:$P$3,B42) -> -0.06392675797 | F42: -0.01928479738
A43: -62 | B43: -1.880726465 | C43: =ThreePosition_Slider($G$2,$G$3,$B$2:$C$2,$B$3:$C$3,B43) -> -0.1003774142 | D43: 1.185150768 | E43: =ThreePosition_Slider($S$2,$S$3,$O$2:$P$2,$O$3:$P$3,B43) -> -0.08075658803 | F43: -0.03985533306
A44: -61 | B44: -1.804047755 | C44: =ThreePosition_Slider($G$2,$G$3,$B$2:$C$2,$B$3:$C$3,B44) -> -0.1183682071 | D44: 1.205057526 | E44: =ThreePosition_Slider($S$2,$S$3,$O$2:$P$2,$O$3:$P$3,B44) -> -0.0981006261 | F44: -0.06032804627
A45: -60 | B45: -1.732050808 | C45: =ThreePosition_Slider($G$2,$G$3,$B$2:$C$2,$B$3:$C$3,B45) -> -0.1368853781 | D45: 1.22484708 | E45: =ThreePosition_Slider($S$2,$S$3,$O$2:$P$2,$O$3:$P$3,B45) -> -0.1159745258 | F45: -0.08070047337
A46: -59 | B46: -1.664279482 | C46: =ThreePosition_Slider($G$2,$G$3,$B$2:$C$2,$B$3:$C$3,B46) -> -0.1559453399 | D46: 1.244515703 | E46: =ThreePosition_Slider($S$2,$S$3,$O$2:$P$2,$O$3:$P$3,B46) -> -0.1343948108 | F46: -0.1009694145
A47: -58 | B47: -1.600334529 | C47: =ThreePosition_Slider($G$2,$G$3,$B$2:$C$2,$B$3:$C$3,B47) -> -0.1755653773 | D47: 1.264058844 | E47: =ThreePosition_Slider($S$2,$S$3,$O$2:$P$2,$O$3:$P$3,B47) -> -0.1533789027 | F47: -0.1211308742
A48: -57 | B48: -1.539864964 | C48: =ThreePosition_Slider($G$2,$G$3,$B$2:$C$2,$B$3:$C$3,B48) -> -0.1957636723 | D48: 1.283471059 | E48: =ThreePosition_Slider($S$2,$S$3,$O$2:$P$2,$O$3:$P$3,B48) -> -0.1729451486 | F48: -0.1411799955
A49: -56 | B49: -1.482560969 | C49: =ThreePosition_Slider($G$2,$G$3,$B$2:$C$2,$B$3:$C$3,B49) -> -0.2165593311 | D49: 1.302745945 | E49: =ThreePosition_Slider($S$2,$S$3,$O$2:$P$2,$O$3:$P$3,B49) -> -0.1931128499 | F49: -0.1611109882
A50: -55 | B50: -1.428148007 | C50: =ThreePosition_Slider($G$2,$G$3,$B$2:$C$2,$B$3:$C$3,B50) -> -0.2379724103 | D50: 1.321876052 | E50: =ThreePosition_Slider($S$2,$S$3,$O$2:$P$2,$O$3:$P$3,B50) -> -0.2139022916 | F50: -0.1809170497
A51: -54 | B51: -1.37638192 | C51: =ThreePosition_Slider($G$2,$G$3,$B$2:$C$2,$B$3:$C$3,B51) -> -0.2600239431 | D51: 1.340852801 | E51: =ThreePosition_Slider($S$2,$S$3,$O$2:$P$2,$O$3:$P$3,B51) -> -0.2353347708 | F51: -0.2005902781
A52: -53 | B52: -1.327044822 | C52: =ThreePosition_Slider($G$2,$G$3,$B$2:$C$2,$B$3:$C$3,B52) -> -0.2827359645 | D52: 1.359666383 | E52: =ThreePosition_Slider($S$2,$S$3,$O$2:$P$2,$O$3:$P$3,B52) -> -0.2574326252 | F52: -0.2201215767
A53: -52 | B53: -1.279941632 | C53: =ThreePosition_Slider($G$2,$G$3,$B$2:$C$2,$B$3:$C$3,B53) -> -0.3061315359 | D53: 1.378305659 | E53: =ThreePosition_Slider($S$2,$S$3,$O$2:$P$2,$O$3:$P$3,B53) -> -0.2802192613 | F53: -0.2395005496
A54: -51 | B54: -1.234897157 | C54: =ThreePosition_Slider($G$2,$G$3,$B$2:$C$2,$B$3:$C$3,B54) -> -0.3302347679 | D54: 1.39675804 | E54: =ThreePosition_Slider($S$2,$S$3,$O$2:$P$2,$O$3:$P$3,B54) -> -0.3037191804 | F54: -0.2587153868
A55: -50 | B55: -1.191753593 | C55: =ThreePosition_Slider($G$2,$G$3,$B$2:$C$2,$B$3:$C$3,B55) -> -0.3550708404 | D55: 1.415009364 | E55: =ThreePosition_Slider($S$2,$S$3,$O$2:$P$2,$O$3:$P$3,B55) -> -0.3279580032 | F55: -0.2777527387
A56: -49 | B56: -1.150368407 | C56: =ThreePosition_Slider($G$2,$G$3,$B$2:$C$2,$B$3:$C$3,B56) -> -0.3806660205 | D56: 1.433043753 | E56: =ThreePosition_Slider($S$2,$S$3,$O$2:$P$2,$O$3:$P$3,B56) -> -0.3529624915 | F56: -0.2965975786
A57: -48 | B57: -1.110612515 | C57: =ThreePosition_Slider($G$2,$G$3,$B$2:$C$2,$B$3:$C$3,B57) -> -0.4070476752 | D57: 1.450843467 | E57: =ThreePosition_Slider($S$2,$S$3,$O$2:$P$2,$O$3:$P$3,B57) -> -0.3787605667 | F57: -0.3152330516
A58: -47 | B58: -1.07236871 | C58: =ThreePosition_Slider($G$2,$G$3,$B$2:$C$2,$B$3:$C$3,B58) -> -0.4342442803 | D58: 1.468388737 | E58: =ThreePosition_Slider($S$2,$S$3,$O$2:$P$2,$O$3:$P$3,B58) -> -0.405381323 | F58: -0.3336403101
A59: -46 | B59: -1.035530314 | C59: =ThreePosition_Slider($G$2,$G$3,$B$2:$C$2,$B$3:$C$3,B59) -> -0.4622854223 | D59: 1.485657584 | E59: =ThreePosition_Slider($S$2,$S$3,$O$2:$P$2,$O$3:$P$3,B59) -> -0.4328550357 | F59: -0.3517983337
A60: -45 | B60: -1 | C60: =ThreePosition_Slider($G$2,$G$3,$B$2:$C$2,$B$3:$C$3,B60) -> -0.4912017927 | D60: 1.502625621 | E60: =ThreePosition_Slider($S$2,$S$3,$O$2:$P$2,$O$3:$P$3,B60) -> -0.4612131613 | F60: -0.3696837325
A61: -44 | B61: -0.9656887748 | C61: =ThreePosition_Slider($G$2,$G$3,$B$2:$C$2,$B$3:$C$3,B61) -> -0.5210251728 | D61: 1.519265844 | E61: =ThreePosition_Slider($S$2,$S$3,$O$2:$P$2,$O$3:$P$3,B61) -> -0.4904883299 | F61: -0.3872705321
A62: -43 | B62: -0.9325150861 | C62: =ThreePosition_Slider($G$2,$G$3,$B$2:$C$2,$B$3:$C$3,B62) -> -0.5517884071 | D62: 1.535548393 | E62: =ThreePosition_Slider($S$2,$S$3,$O$2:$P$2,$O$3:$P$3,B62) -> -0.5207143253 | F62: -0.4045299406
A63: -42 | B63: -0.9004040443 | C63: =ThreePosition_Slider($G$2,$G$3,$B$2:$C$2,$B$3:$C$3,B63) -> -0.5835253629 | D63: 1.551440301 | E63: =ThreePosition_Slider($S$2,$S$3,$O$2:$P$2,$O$3:$P$3,B63) -> -0.5519260533 | F63: -0.4214300931
A64: -41 | B64: -0.8692867378 | C64: =ThreePosition_Slider($G$2,$G$3,$B$2:$C$2,$B$3:$C$3,B64) -> -0.6162708735 | D64: 1.566905221 | E64: =ThreePosition_Slider($S$2,$S$3,$O$2:$P$2,$O$3:$P$3,B64) -> -0.5841594932 | F64: -0.4379357758
A65: -40 | B65: -0.8390996312 | C65: =ThreePosition_Slider($G$2,$G$3,$B$2:$C$2,$B$3:$C$3,B65) -> -0.6500606612 | D65: 1.581903125 | E65: =ThreePosition_Slider($S$2,$S$3,$O$2:$P$2,$O$3:$P$3,B65) -> -0.6174516311 | F65: -0.4540081256
A66: -39 | B66: -0.8097840332 | C66: =ThreePosition_Slider($G$2,$G$3,$B$2:$C$2,$B$3:$C$3,B66) -> -0.684931238 | D66: 1.596389984 | E66: =ThreePosition_Slider($S$2,$S$3,$O$2:$P$2,$O$3:$P$3,B66) -> -0.6518403702 | F66: -0.4696043049
A67: -38 | B67: -0.7812856265 | C67: =ThreePosition_Slider($G$2,$G$3,$B$2:$C$2,$B$3:$C$3,B67) -> -0.7209197776 | D67: 1.610317418 | E67: =ThreePosition_Slider($S$2,$S$3,$O$2:$P$2,$O$3:$P$3,B67) -> -0.6873644147 | F67: -0.4846771511
A68: -37 | B68: -0.7535540501 | C68: =ThreePosition_Slider($G$2,$G$3,$B$2:$C$2,$B$3:$C$3,B68) -> -0.7580639566 | D68: 1.623632329 | E68: =ThreePosition_Slider($S$2,$S$3,$O$2:$P$2,$O$3:$P$3,B68) -> -0.7240631221 | F68: -0.4991747976
A69: -36 | B69: -0.726542528 | C69: =ThreePosition_Slider($G$2,$G$3,$B$2:$C$2,$B$3:$C$3,B69) -> -0.7964017566 | D69: 1.636276493 | E69: =ThreePosition_Slider($S$2,$S$3,$O$2:$P$2,$O$3:$P$3,B69) -> -0.7619763194 | F69: -0.5130402674
A70: -35 | B70: -0.7002075382 | C70: =ThreePosition_Slider($G$2,$G$3,$B$2:$C$2,$B$3:$C$3,B70) -> -0.8359712231 | D70: 1.648186136 | E70: =ThreePosition_Slider($S$2,$S$3,$O$2:$P$2,$O$3:$P$3,B70) -> -0.8011440749 | F70: -0.5262110383
A71: -34 | B71: -0.6745085168 | C71: =ThreePosition_Slider($G$2,$G$3,$B$2:$C$2,$B$3:$C$3,B71) -> -0.8768101733 | D71: 1.659291479 | E71: =ThreePosition_Slider($S$2,$S$3,$O$2:$P$2,$O$3:$P$3,B71) -> -0.8416064211 | F71: -0.5386185785
A72: -33 | B72: -0.6494075932 | C72: =ThreePosition_Slider($G$2,$G$3,$B$2:$C$2,$B$3:$C$3,B72) -> -0.9189558438 | D72: 1.669516259 | E72: =ThreePosition_Slider($S$2,$S$3,$O$2:$P$2,$O$3:$P$3,B72) -> -0.8834030179 | F72: -0.5501878547
A73: -32 | B73: -0.6248693519 | C73: =ThreePosition_Slider($G$2,$G$3,$B$2:$C$2,$B$3:$C$3,B73) -> -0.9624444714 | D73: 1.678777217 | E73: =ThreePosition_Slider($S$2,$S$3,$O$2:$P$2,$O$3:$P$3,B73) -> -0.9265727499 | F73: -0.5608368133
A74: -31 | B74: -0.600860619 | C74: =ThreePosition_Slider($G$2,$G$3,$B$2:$C$2,$B$3:$C$3,B74) -> -1.007310794 | D74: 1.686983578 | E74: =ThreePosition_Slider($S$2,$S$3,$O$2:$P$2,$O$3:$P$3,B74) -> -0.9711532446 | F74: -0.5704758364
A75: -30 | B75: -0.5773502692 | C75: =ThreePosition_Slider($G$2,$G$3,$B$2:$C$2,$B$3:$C$3,B75) -> -1.053587464 | D75: 1.694036498 | E75: =ThreePosition_Slider($S$2,$S$3,$O$2:$P$2,$O$3:$P$3,B75) -> -1.017180302 | F75: -0.5790071782
A76: -29 | B76: -0.5543090515 | C76: =ThreePosition_Slider($G$2,$G$3,$B$2:$C$2,$B$3:$C$3,B76) -> -1.101304355 | D76: 1.699828513 | E76: =ThreePosition_Slider($S$2,$S$3,$O$2:$P$2,$O$3:$P$3,B76) -> -1.064687225 | F76: -0.5863243849
A77: -28 | B77: -0.5317094317 | C77: =ThreePosition_Slider($G$2,$G$3,$B$2:$C$2,$B$3:$C$3,B77) -> -1.150487761 | D77: 1.70424297 | E77: =ThreePosition_Slider($S$2,$S$3,$O$2:$P$2,$O$3:$P$3,B77) -> -1.113704026 | F77: -0.5923117077
A78: -27 | B78: -0.5095254495 | C78: =ThreePosition_Slider($G$2,$G$3,$B$2:$C$2,$B$3:$C$3,B78) -> -1.201159456 | D78: 1.70715348 | E78: =ThreePosition_Slider($S$2,$S$3,$O$2:$P$2,$O$3:$P$3,B78) -> -1.164256518 | F78: -0.596843517
A79: -26 | B79: -0.4877325886 | C79: =ThreePosition_Slider($G$2,$G$3,$B$2:$C$2,$B$3:$C$3,B79) -> -1.253335614 | D79: 1.708423372 | E79: =ThreePosition_Slider($S$2,$S$3,$O$2:$P$2,$O$3:$P$3,B79) -> -1.216365243 | F79: -0.5997837321
A80: -25 | B80: =+TAN(A80*D_R()) -> -0.4663076582 | C80: =ThreePosition_Slider($G$2,$G$3,$B$2:$C$2,$B$3:$C$3,B80) -> -1.307025566 | D80: 1.707905203 | E80: =ThreePosition_Slider($S$2,$S$3,$O$2:$P$2,$O$3:$P$3,B80) -> -1.270044249 | F80: -0.6009852828
A81: -24 | B81: -0.4452286853 | C81: =ThreePosition_Slider($G$2,$G$3,$B$2:$C$2,$B$3:$C$3,B81) -> -1.362230378 | D81: 1.705440311 | E81: =ThreePosition_Slider($S$2,$S$3,$O$2:$P$2,$O$3:$P$3,B81) -> -1.325299683 | F81: -0.6002896238
A82: -23 | B82: -0.4244748162 | C82: =ThreePosition_Slider($G$2,$G$3,$B$2:$C$2,$B$3:$C$3,B82) -> -1.418941237 | D82: 1.700858465 | E82: =ThreePosition_Slider($S$2,$S$3,$O$2:$P$2,$O$3:$P$3,B82) -> -1.382128189 | F82: -0.5975263288
A83: -22 | B83: -0.4040262258 | C83: =ThreePosition_Slider($G$2,$G$3,$B$2:$C$2,$B$3:$C$3,B83) -> -1.477137627 | D83: 1.693977626 | E83: =ThreePosition_Slider($S$2,$S$3,$O$2:$P$2,$O$3:$P$3,B83) -> -1.44051509 | F83: -0.5925127954
A84: -21 | B84: -0.383864035 | C84: =ThreePosition_Slider($G$2,$G$3,$B$2:$C$2,$B$3:$C$3,B84) -> -1.536785281 | D84: 1.684603869 | E84: =ThreePosition_Slider($S$2,$S$3,$O$2:$P$2,$O$3:$P$3,B84) -> -1.500432348 | F84: -0.5850541008
A85: -20 | B85: -0.3639702343 | C85: =ThreePosition_Slider($G$2,$G$3,$B$2:$C$2,$B$3:$C$3,B85) -> -1.597833911 | D85: 1.672531511 | E85: =ThreePosition_Slider($S$2,$S$3,$O$2:$P$2,$O$3:$P$3,B85) -> -1.561836288 | F85: -0.5749430551
A86: -19 | B86: -0.3443276133 | C86: =ThreePosition_Slider($G$2,$G$3,$B$2:$C$2,$B$3:$C$3,B86) -> -1.660214698 | D86: 1.657543489 | E86: =ThreePosition_Slider($S$2,$S$3,$O$2:$P$2,$O$3:$P$3,B86) -> -1.624665078 | F86: -0.5619605054
A87: -18 | B87: -0.3249196962 | C87: =ThreePosition_Slider($G$2,$G$3,$B$2:$C$2,$B$3:$C$3,B87) -> -1.723837554 | D87: 1.639412077 | E87: =ThreePosition_Slider($S$2,$S$3,$O$2:$P$2,$O$3:$P$3,B87) -> -1.688835968 | F87: -0.5458759557
A88: -17 | B88: -0.3057306815 | C88: =ThreePosition_Slider($G$2,$G$3,$B$2:$C$2,$B$3:$C$3,B88) -> -1.788588174 | D88: 1.617899981 | E88: =ThreePosition_Slider($S$2,$S$3,$O$2:$P$2,$O$3:$P$3,B88) -> -1.754242312 | F88: -0.5264485741
A89: -16 | B89: -0.2867453858 | C89: =ThreePosition_Slider($G$2,$G$3,$B$2:$C$2,$B$3:$C$3,B89) -> -1.854324896 | D89: 1.592761921 | E89: =ThreePosition_Slider($S$2,$S$3,$O$2:$P$2,$O$3:$P$3,B89) -> -1.820750377 | F89: -0.5034286677
A90: -15 | B90: -0.2679491924 | C90: =ThreePosition_Slider($G$2,$G$3,$B$2:$C$2,$B$3:$C$3,B90) -> -1.920875433 | D90: 1.56374676 | E90: =ThreePosition_Slider($S$2,$S$3,$O$2:$P$2,$O$3:$P$3,B90) -> -1.888196005 | F90: -0.4765597132
A91: -14 | B91: -0.2493280028 | C91: =ThreePosition_Slider($G$2,$G$3,$B$2:$C$2,$B$3:$C$3,B91) -> -1.988033517 | D91: 1.530600301 | E91: =ThreePosition_Slider($S$2,$S$3,$O$2:$P$2,$O$3:$P$3,B91) -> -1.956381176 | F91: -0.4455810364
A92: -13 | B92: -0.2308681911 | C92: =ThreePosition_Slider($G$2,$G$3,$B$2:$C$2,$B$3:$C$3,B92) -> -2.055555578 | D92: 1.49306881 | E92: =ThreePosition_Slider($S$2,$S$3,$O$2:$P$2,$O$3:$P$3,B92) -> -2.025070571 | F92: -0.4102312335
A93: -12 | B93: -0.2125565617 | C93: =ThreePosition_Slider($G$2,$G$3,$B$2:$C$2,$B$3:$C$3,B93) -> -2.123157557 | D93: 1.450903379 | E93: =ThreePosition_Slider($S$2,$S$3,$O$2:$P$2,$O$3:$P$3,B93) -> -2.093988248 | F93: -0.3702524268
A94: -11 | B94: -0.1943803091 | C94: =ThreePosition_Slider($G$2,$G$3,$B$2:$C$2,$B$3:$C$3,B94) -> -2.190512026 | D94: 1.403865188 | E94: =ThreePosition_Slider($S$2,$S$3,$O$2:$P$2,$O$3:$P$3,B94) -> -2.162814595 | F94: -0.3253954337
A95: -10 | B95: -0.1763269807 | C95: =ThreePosition_Slider($G$2,$G$3,$B$2:$C$2,$B$3:$C$3,B95) -> -2.257245793 | D95: 1.351731732 | E95: =ThreePosition_Slider($S$2,$S$3,$O$2:$P$2,$O$3:$P$3,B95) -> -2.231183737 | F95: -0.2754259097
A96: -9 | B96: -0.1583844403 | C96: =ThreePosition_Slider($G$2,$G$3,$B$2:$C$2,$B$3:$C$3,B96) -> -2.32293823 | D96: 1.294304018 | E96: =ThreePosition_Slider($S$2,$S$3,$O$2:$P$2,$O$3:$P$3,B96) -> -2.298681635 | F96: -0.2201314953
A97: -8 | B97: -0.1405408347 | C97: =ThreePosition_Slider($G$2,$G$3,$B$2:$C$2,$B$3:$C$3,B97) -> -2.387120586 | D97: 1.231414735 | E97: =ThreePosition_Slider($S$2,$S$3,$O$2:$P$2,$O$3:$P$3,B97) -> -2.364845138 | F97: -0.1593299519
A98: -7 | B98: -0.1227845609 | C98: =ThreePosition_Slider($G$2,$G$3,$B$2:$C$2,$B$3:$C$3,B98) -> -2.44927657 | D98: 1.162937286 | E98: =ThreePosition_Slider($S$2,$S$3,$O$2:$P$2,$O$3:$P$3,B98) -> -2.429162272 | F98: -0.09287821201
A99: -6 | B99: -0.1051042353 | C99: =ThreePosition_Slider($G$2,$G$3,$B$2:$C$2,$B$3:$C$3,B99) -> -2.508844511 | D99: 1.088795537 | E99: =ThreePosition_Slider($S$2,$S$3,$O$2:$P$2,$O$3:$P$3,B99) -> -2.491074093 | F99: -0.0206821952
A100: -5 | B100: -0.08748866353 | C100: =ThreePosition_Slider($G$2,$G$3,$B$2:$C$2,$B$3:$C$3,B100) -> -2.565221405 | D100: 1.008974043 | E100: =ThreePosition_Slider($S$2,$S$3,$O$2:$P$2,$O$3:$P$3,B100) -> -2.549978403 | F100: 0.0572928486
A101: -4 | B101: -0.06992681194 | C101: =ThreePosition_Slider($G$2,$G$3,$B$2:$C$2,$B$3:$C$3,B101) -> -2.617769125 | D101: 0.9235283812 | E101: =ThreePosition_Slider($S$2,$S$3,$O$2:$P$2,$O$3:$P$3,B101) -> -2.605235618 | F101: 0.1410118075
A102: -3 | B102: -0.05240777928 | C102: =ThreePosition_Slider($G$2,$G$3,$B$2:$C$2,$B$3:$C$3,B102) -> -2.665823005 | D102: 0.8325951557 | E102: =ThreePosition_Slider($S$2,$S$3,$O$2:$P$2,$O$3:$P$3,B102) -> -2.656177043 | F102: 0.2303594329
A103: -2 | B103: -0.03492076949 | C103: =ThreePosition_Slider($G$2,$G$3,$B$2:$C$2,$B$3:$C$3,B103) -> -2.708702958 | D103: 0.736401118 | E103: =ThreePosition_Slider($S$2,$S$3,$O$2:$P$2,$O$3:$P$3,B103) -> -2.702115674 | F103: 0.3251308704
A104: -1 | B104: -0.01745506493 | C104: =ThreePosition_Slider($G$2,$G$3,$B$2:$C$2,$B$3:$C$3,B104) -> -2.745727086 | D104: 0.635270761 | E104: =ThreePosition_Slider($S$2,$S$3,$O$2:$P$2,$O$3:$P$3,B104) -> -2.742359574 | F104: 0.4250236315
A105: 0 | B105: 0 | C105: =ThreePosition_Slider($G$2,$G$3,$B$2:$C$2,$B$3:$C$3,B105) -> -2.776227659 | D105: 0.5296317024 | E105: =ThreePosition_Slider($S$2,$S$3,$O$2:$P$2,$O$3:$P$3,B105) -> -2.776227659 | F105: 0.5296317024
A106: 1 | B106: 0.01745506493 | C106: =ThreePosition_Slider($G$2,$G$3,$B$2:$C$2,$B$3:$C$3,B106) -> -2.799569063 | D106: 0.4200171594 | E106: =ThreePosition_Slider($S$2,$S$3,$O$2:$P$2,$O$3:$P$3,B106) -> -2.803067565 | F106: 0.6384424952
A107: 2 | B107: 0.03492076949 | C107: =ThreePosition_Slider($G$2,$G$3,$B$2:$C$2,$B$3:$C$3,B107) -> -2.81516716 | D107: 0.3070648707 | E107: =ThreePosition_Slider($S$2,$S$3,$O$2:$P$2,$O$3:$P$3,B107) -> -2.822275028 | F107: 0.7508373061
A108: 3 | B108: 0.05240777928 | C108: =ThreePosition_Slider($G$2,$G$3,$B$2:$C$2,$B$3:$C$3,B108) -> -2.822509254 | D108: 0.1915119463 | E108: =ThreePosition_Slider($S$2,$S$3,$O$2:$P$2,$O$3:$P$3,B108) -> -2.83331401 | F108: 0.8660958222
A109: 4 | B109: 0.06992681194 | C109: =ThreePosition_Slider($G$2,$G$3,$B$2:$C$2,$B$3:$C$3,B109) -> -2.8211737 | D109: 0.07418532372 | E109: =ThreePosition_Slider($S$2,$S$3,$O$2:$P$2,$O$3:$P$3,B109) -> -2.8357366 | F109: 0.9834050338
A110: 5 | B110: 0.08748866353 | C110: =ThreePosition_Slider($G$2,$G$3,$B$2:$C$2,$B$3:$C$3,B110) -> -2.810848047 | D110: -0.04401223018 | E110: =ThreePosition_Slider($S$2,$S$3,$O$2:$P$2,$O$3:$P$3,B110) -> -2.829201594 | F110: 1.101872644
A111: 6 | B111: 0.1051042353 | C111: =ThreePosition_Slider($G$2,$G$3,$B$2:$C$2,$B$3:$C$3,B111) -> -2.791344556 | D111: -0.1621203123 | E111: =ThreePosition_Slider($S$2,$S$3,$O$2:$P$2,$O$3:$P$3,B111) -> -2.813490594 | F111: 1.220544753
A112: 7 | B112: 0.1227845609 | C112: =ThreePosition_Slider($G$2,$G$3,$B$2:$C$2,$B$3:$C$3,B112) -> -2.762612007 | D112: -0.2791426802 | E112: =ThreePosition_Slider($S$2,$S$3,$O$2:$P$2,$O$3:$P$3,B112) -> -2.788520497 | F112: 1.338427272
A113: 8 | B113: 0.1405408347 | C113: =ThreePosition_Slider($G$2,$G$3,$B$2:$C$2,$B$3:$C$3,B113) -> -2.724742838 | D113: -0.3940717358 | E113: =ThreePosition_Slider($S$2,$S$3,$O$2:$P$2,$O$3:$P$3,B113) -> -2.754351429 | F113: 1.454510159
A114: 9 | B114: 0.1583844403 | C114: =ThreePosition_Slider($G$2,$G$3,$B$2:$C$2,$B$3:$C$3,B114) -> -2.677974976 | D114: -0.5059145114 | E114: =ThreePosition_Slider($S$2,$S$3,$O$2:$P$2,$O$3:$P$3,B114) -> -2.711189391 | F114: 1.567793334
A115: 10 | B115: 0.1763269807 | C115: =ThreePosition_Slider($G$2,$G$3,$B$2:$C$2,$B$3:$C$3,B115) -> -2.622688006 | D115: -0.6137187972 | E115: =ThreePosition_Slider($S$2,$S$3,$O$2:$P$2,$O$3:$P$3,B115) -> -2.659383281 | F115: 1.677312922
A116: 11 | B116: 0.1943803091 | C116: =ThreePosition_Slider($G$2,$G$3,$B$2:$C$2,$B$3:$C$3,B116) -> -2.559393789 | D116: -0.7165979855 | E116: =ThreePosition_Slider($S$2,$S$3,$O$2:$P$2,$O$3:$P$3,B116) -> -2.599416301 | F116: 1.782166375
A117: 12 | B117: 0.2125565617 | C117: =ThreePosition_Slider($G$2,$G$3,$B$2:$C$2,$B$3:$C$3,B117) -> -2.488721992 | D117: -0.8137532831 | E117: =ThreePosition_Slider($S$2,$S$3,$O$2:$P$2,$O$3:$P$3,B117) -> -2.531892214 | F117: 1.881535145
A118: 13 | B118: 0.2308681911 | C118: =ThreePosition_Slider($G$2,$G$3,$B$2:$C$2,$B$3:$C$3,B118) -> -2.411401383 | D118: -0.904492133 | E118: =ThreePosition_Slider($S$2,$S$3,$O$2:$P$2,$O$3:$P$3,B118) -> -2.457517236 | F118: 1.974703691
A119: 14 | B119: 0.2493280028 | C119: =ThreePosition_Slider($G$2,$G$3,$B$2:$C$2,$B$3:$C$3,B119) -> -2.328238014 | D119: -0.9882419874 | E119: =ThreePosition_Slider($S$2,$S$3,$O$2:$P$2,$O$3:$P$3,B119) -> -2.377078667 | F119: 2.061073945
A120: 15 | B120: 0.2679491924 | C120: =ThreePosition_Slider($G$2,$G$3,$B$2:$C$2,$B$3:$C$3,B120) -> -2.240091574 | D120: -1.064558935 | E120: =ThreePosition_Slider($S$2,$S$3,$O$2:$P$2,$O$3:$P$3,B120) -> -2.29142154 | F120: 2.14017469
A121: 16 | B121: 0.2867453858 | C121: =ThreePosition_Slider($G$2,$G$3,$B$2:$C$2,$B$3:$C$3,B121) -> -2.147851252 | D121: -1.133131068 | E121: =ThreePosition_Slider($S$2,$S$3,$O$2:$P$2,$O$3:$P$3,B121) -> -2.201424598 | F121: 2.211665703
A122: 17 | B122: 0.3057306815 | C122: =ThreePosition_Slider($G$2,$G$3,$B$2:$C$2,$B$3:$C$3,B122) -> -2.052412362 | D122: -1.193776841 | E122: =ThreePosition_Slider($S$2,$S$3,$O$2:$P$2,$O$3:$P$3,B122) -> -2.107976883 | F122: 2.275336858
A123: 18 | B123: 0.3249196962 | C123: =ThreePosition_Slider($G$2,$G$3,$B$2:$C$2,$B$3:$C$3,B123) -> -1.954654816 | D123: -1.246438976 | E123: =ThreePosition_Slider($S$2,$S$3,$O$2:$P$2,$O$3:$P$3,B123) -> -2.011956019 | F123: 2.331102727
A124: 19 | B124: 0.3443276133 | C124: =ThreePosition_Slider($G$2,$G$3,$B$2:$C$2,$B$3:$C$3,B124) -> -1.855424274 | D124: -1.29117469 | E124: =ThreePosition_Slider($S$2,$S$3,$O$2:$P$2,$O$3:$P$3,B124) -> -1.914209068 | F124: 2.378993414
A125: 20 | B125: 0.3639702343 | C125: =ThreePosition_Slider($G$2,$G$3,$B$2:$C$2,$B$3:$C$3,B125) -> -1.755516552 | D125: -1.328143157 | E125: =ThreePosition_Slider($S$2,$S$3,$O$2:$P$2,$O$3:$P$3,B125) -> -1.815536531 | F125: 2.419142525
A126: 21 | B126: 0.383864035 | C126: =ThreePosition_Slider($G$2,$G$3,$B$2:$C$2,$B$3:$C$3,B126) -> -1.655665545 | D126: -1.357591143 | E126: =ThreePosition_Slider($S$2,$S$3,$O$2:$P$2,$O$3:$P$3,B126) -> -1.716679833 | F126: 2.451773197
A127: 22 | B127: 0.4040262258 | C127: =ThreePosition_Slider($G$2,$G$3,$B$2:$C$2,$B$3:$C$3,B127) -> -1.556534712 | D127: -1.37983773 | E127: =ThreePosition_Slider($S$2,$S$3,$O$2:$P$2,$O$3:$P$3,B127) -> -1.618312311 | F127: 2.4771831
A128: 23 | B128: 0.4244748162 | C128: =ThreePosition_Slider($G$2,$G$3,$B$2:$C$2,$B$3:$C$3,B128) -> -1.458711935 | D128: -1.395258928 | E128: =ThreePosition_Slider($S$2,$S$3,$O$2:$P$2,$O$3:$P$3,B128) -> -1.521033585 | F128: 2.495729223
A129: 24 | B129: 0.4452286853 | C129: =ThreePosition_Slider($G$2,$G$3,$B$2:$C$2,$B$3:$C$3,B129) -> -1.362707397 | D129: -1.404272839 | E129: =ThreePosition_Slider($S$2,$S$3,$O$2:$P$2,$O$3:$P$3,B129) -> -1.42536697 | F129: 2.507813116
A130: 25 | B130: 0.4663076582 | C130: =ThreePosition_Slider($G$2,$G$3,$B$2:$C$2,$B$3:$C$3,B130) -> -1.268954073 | D130: -1.407325892 | E130: =ThreePosition_Slider($S$2,$S$3,$O$2:$P$2,$O$3:$P$3,B130) -> -1.331759512 | F130: 2.513867111
A131: 26 | B131: 0.4877325886 | C131: =ThreePosition_Slider($G$2,$G$3,$B$2:$C$2,$B$3:$C$3,B131) -> -1.177810303 | D131: -1.404880486 | E131: =ThreePosition_Slider($S$2,$S$3,$O$2:$P$2,$O$3:$P$3,B131) -> -1.240584179 | F131: 2.514341896
A132: 27 | B132: 0.5095254495 | C132: =ThreePosition_Slider($G$2,$G$3,$B$2:$C$2,$B$3:$C$3,B132) -> -1.089563992 | D132: -1.397404265 | E132: =ThreePosition_Slider($S$2,$S$3,$O$2:$P$2,$O$3:$P$3,B132) -> -1.152143704 | F132: 2.509695653
A133: 28 | B133: 0.5317094317 | C133: =ThreePosition_Slider($G$2,$G$3,$B$2:$C$2,$B$3:$C$3,B133) -> -1.004437943 | D133: -1.385361087 | E133: =ThreePosition_Slider($S$2,$S$3,$O$2:$P$2,$O$3:$P$3,B133) -> -1.06667563 | F133: 2.500384868
A134: 29 | B134: 0.5543090515 | C134: =ThreePosition_Slider($G$2,$G$3,$B$2:$C$2,$B$3:$C$3,B134) -> -0.9225959136 | D134: -1.369203689 | E134: =ThreePosition_Slider($S$2,$S$3,$O$2:$P$2,$O$3:$P$3,B134) -> -0.9843581306 | F134: 2.4868568
A135: 30 | B135: 0.5773502692 | C135: =ThreePosition_Slider($G$2,$G$3,$B$2:$C$2,$B$3:$C$3,B135) -> -0.8441490415 | D135: -1.34936794 | E135: =ThreePosition_Slider($S$2,$S$3,$O$2:$P$2,$O$3:$P$3,B135) -> -0.9053162457 | F135: 2.469543537
A136: 31 | B136: 0.600860619 | C136: =ThreePosition_Slider($G$2,$G$3,$B$2:$C$2,$B$3:$C$3,B136) -> -0.7691623444 | D136: -1.326268556 | E136: =ThreePosition_Slider($S$2,$S$3,$O$2:$P$2,$O$3:$P$3,B136) -> -0.829628241 | F136: 2.448857497
A137: 32 | B137: 0.6248693519 | C137: =ThreePosition_Slider($G$2,$G$3,$B$2:$C$2,$B$3:$C$3,B137) -> -0.6976610708 | D137: -1.30029609 | E137: =ThreePosition_Slider($S$2,$S$3,$O$2:$P$2,$O$3:$P$3,B137) -> -0.7573318596 | F137: 2.425188227
A138: 33 | B138: 0.6494075932 | C138: =ThreePosition_Slider($G$2,$G$3,$B$2:$C$2,$B$3:$C$3,B138) -> -0.6296367363 | D138: -1.271815036 | E138: =ThreePosition_Slider($S$2,$S$3,$O$2:$P$2,$O$3:$P$3,B138) -> -0.6884302947 | F138: 2.398900304
A139: 34 | B139: 0.6745085168 | C139: =ThreePosition_Slider($G$2,$G$3,$B$2:$C$2,$B$3:$C$3,B139) -> -0.5650527333 | D139: -1.241162841 | E139: =ThreePosition_Slider($S$2,$S$3,$O$2:$P$2,$O$3:$P$3,B139) -> -0.6228977644 | F139: 2.370332175
A140: 35 | B140: 0.7002075382 | C140: =ThreePosition_Slider($G$2,$G$3,$B$2:$C$2,$B$3:$C$3,B140) -> -0.5038494446 | D140: -1.208649671 | E140: =ThreePosition_Slider($S$2,$S$3,$O$2:$P$2,$O$3:$P$3,B140) -> -0.5606846154 | F140: 2.339795757
A141: 36 | B141: 0.726542528 | C141: =ThreePosition_Slider($G$2,$G$3,$B$2:$C$2,$B$3:$C$3,B141) -> -0.4459488295 | D141: -1.174558764 | E141: =ThreePosition_Slider($S$2,$S$3,$O$2:$P$2,$O$3:$P$3,B141) -> -0.5017219179 | F141: 2.30757664
A142: 37 | B142: 0.7535540501 | C142: =ThreePosition_Slider($G$2,$G$3,$B$2:$C$2,$B$3:$C$3,B142) -> -0.3912584741 | D142: -1.139147229 | E142: =ThreePosition_Slider($S$2,$S$3,$O$2:$P$2,$O$3:$P$3,B142) -> -0.4459255395 | F142: 2.273934763
A143: 38 | B143: 0.7812856265 | C143: =ThreePosition_Slider($G$2,$G$3,$B$2:$C$2,$B$3:$C$3,B143) -> -0.3396751216 | D143: -1.102647179 | E143: =ThreePosition_Slider($S$2,$S$3,$O$2:$P$2,$O$3:$P$3,B143) -> -0.3931997098 | F143: 2.239105425
A144: 39 | B144: =+TAN(A144*D_R()) -> 0.8097840332 | C144: =ThreePosition_Slider($G$2,$G$3,$B$2:$C$2,$B$3:$C$3,B144) -> -0.2910877098 | D144: -1.065267081 | E144: =ThreePosition_Slider($S$2,$S$3,$O$2:$P$2,$O$3:$P$3,B144) -> -0.3434400999 | F144: 2.203300543
A145: 40 | B145: 0.8390996312 | C145: =ThreePosition_Slider($G$2,$G$3,$B$2:$C$2,$B$3:$C$3,B145) -> -0.245379952 | D145: -1.027193258 | E145: =ThreePosition_Slider($S$2,$S$3,$O$2:$P$2,$O$3:$P$3,B145) -> -0.29653645 | F145: 2.16671007
A146: 41 | B146: 0.8692867378 | C146: =ThreePosition_Slider($G$2,$G$3,$B$2:$C$2,$B$3:$C$3,B146) -> -0.2024325043 | D146: -0.9885914665 | E146: =ThreePosition_Slider($S$2,$S$3,$O$2:$P$2,$O$3:$P$3,B146) -> -0.2523747856 | F146: 2.129503498
A147: 42 | B147: 0.9004040443 | C147: =ThreePosition_Slider($G$2,$G$3,$B$2:$C$2,$B$3:$C$3,B147) -> -0.1621247609 | D147: -0.9496084908 | E147: =ThreePosition_Slider($S$2,$S$3,$O$2:$P$2,$O$3:$P$3,B147) -> -0.210839264 | F147: 2.0918314
A148: 43 | B148: 0.9325150861 | C148: =ThreePosition_Slider($G$2,$G$3,$B$2:$C$2,$B$3:$C$3,B148) -> -0.1243363236 | D148: -0.9103737319 | E148: =ThreePosition_Slider($S$2,$S$3,$O$2:$P$2,$O$3:$P$3,B148) -> -0.1718136926 | F148: 2.053826964
A149: 44 | B149: 0.9656887748 | C149: =ThreePosition_Slider($G$2,$G$3,$B$2:$C$2,$B$3:$C$3,B149) -> -0.08894818438 | D149: -0.8710007426 | E149: =ThreePosition_Slider($S$2,$S$3,$O$2:$P$2,$O$3:$P$3,B149) -> -0.1351827611 | F149: 2.015607499
A150: 45 | B150: 1 | C150: =ThreePosition_Slider($G$2,$G$3,$B$2:$C$2,$B$3:$C$3,B150) -> -0.05584366247 | D150: -0.8315887005 | E150: =ThreePosition_Slider($S$2,$S$3,$O$2:$P$2,$O$3:$P$3,B150) -> -0.1008330249 | F150: 1.977275866
A151: 46 | B151: 1.035530314 | C151: =ThreePosition_Slider($G$2,$G$3,$B$2:$C$2,$B$3:$C$3,B151) -> -0.02490913039 | D151: -0.7922237979 | E151: =ThreePosition_Slider($S$2,$S$3,$O$2:$P$2,$O$3:$P$3,B151) -> -0.0686536751 | F151: 1.938921854
A152: 47 | B152: 1.07236871 | C152: =ThreePosition_Slider($G$2,$G$3,$B$2:$C$2,$B$3:$C$3,B152) -> 0.003965438101 | D152: -0.7529805442 | E152: =ThreePosition_Slider($S$2,$S$3,$O$2:$P$2,$O$3:$P$3,B152) -> -0.03853712809 | F152: 1.900623456
A153: 48 | B153: 1.110612515 | C153: =ThreePosition_Slider($G$2,$G$3,$B$2:$C$2,$B$3:$C$3,B153) -> 0.03088606957 | D153: -0.7139229736 | E153: =ThreePosition_Slider($S$2,$S$3,$O$2:$P$2,$O$3:$P$3,B153) -> -0.01037946244 | F153: 1.86244807
A154: 49 | B154: 1.150368407 | C154: =ThreePosition_Slider($G$2,$G$3,$B$2:$C$2,$B$3:$C$3,B154) -> 0.05595451676 | D154: -0.6751057584 | E154: =ThreePosition_Slider($S$2,$S$3,$O$2:$P$2,$O$3:$P$3,B154) -> 0.01591927147 | F154: 1.824453599
A155: 50 | B155: 1.191753593 | C155: =ThreePosition_Slider($G$2,$G$3,$B$2:$C$2,$B$3:$C$3,B155) -> 0.0792680866 | D155: -0.6365752289 | E155: =ThreePosition_Slider($S$2,$S$3,$O$2:$P$2,$O$3:$P$3,B155) -> 0.04045484693 | F155: 1.786689466
A156: 51 | B156: 1.234897157 | C156: =ThreePosition_Slider($G$2,$G$3,$B$2:$C$2,$B$3:$C$3,B156) -> 0.1009195516 | D156: -0.5983703033 | E156: =ThreePosition_Slider($S$2,$S$3,$O$2:$P$2,$O$3:$P$3,B156) -> 0.06331874248 | F156: 1.749197539
A157: 52 | B157: 1.279941632 | C157: =ThreePosition_Slider($G$2,$G$3,$B$2:$C$2,$B$3:$C$3,B157) -> 0.1209971284 | D157: -0.5605233314 | E157: =ThreePosition_Slider($S$2,$S$3,$O$2:$P$2,$O$3:$P$3,B157) -> 0.08459809339 | F157: 1.712012978
A158: 53 | B158: 1.327044822 | C158: =ThreePosition_Slider($G$2,$G$3,$B$2:$C$2,$B$3:$C$3,B158) -> 0.1395845091 | D158: -0.5230608565 | E158: =ThreePosition_Slider($S$2,$S$3,$O$2:$P$2,$O$3:$P$3,B158) -> 0.1043756989 | F158: 1.675164992
A159: 54 | B159: 1.37638192 | C159: =ThreePosition_Slider($G$2,$G$3,$B$2:$C$2,$B$3:$C$3,B159) -> 0.1567609353 | D159: -0.4860043036 | E159: =ThreePosition_Slider($S$2,$S$3,$O$2:$P$2,$O$3:$P$3,B159) -> 0.1227300737 | F159: 1.638677533
A160: 55 | B160: 1.428148007 | C160: =ThreePosition_Slider($G$2,$G$3,$B$2:$C$2,$B$3:$C$3,B160) -> 0.1726013031 | D160: -0.4493705952 | E160: =ThreePosition_Slider($S$2,$S$3,$O$2:$P$2,$O$3:$P$3,B160) -> 0.1397355337 | F160: 1.602569914
A161: 56 | B161: 1.482560969 | C161: =ThreePosition_Slider($G$2,$G$3,$B$2:$C$2,$B$3:$C$3,B161) -> 0.187176293 | D161: -0.4131727054 | E161: =ThreePosition_Slider($S$2,$S$3,$O$2:$P$2,$O$3:$P$3,B161) -> 0.1554623073 | F161: 1.566857365
A162: 57 | B162: 1.539864964 | C162: =ThreePosition_Slider($G$2,$G$3,$B$2:$C$2,$B$3:$C$3,B162) -> 0.200552516 | D162: -0.3774201529 | E162: =ThreePosition_Slider($S$2,$S$3,$O$2:$P$2,$O$3:$P$3,B162) -> 0.1699766669 | F162: 1.531551534
A163: 58 | B163: 1.600334529 | C163: =ThreePosition_Slider($G$2,$G$3,$B$2:$C$2,$B$3:$C$3,B163) -> 0.2127926731 | D163: -0.3421194422 | E163: =ThreePosition_Slider($S$2,$S$3,$O$2:$P$2,$O$3:$P$3,B163) -> 0.1833410728 | F163: 1.496660929
A164: 59 | B164: 1.664279482 | C164: =ThreePosition_Slider($G$2,$G$3,$B$2:$C$2,$B$3:$C$3,B164) -> 0.2239557206 | D164: -0.3072744557 | E164: =ThreePosition_Slider($S$2,$S$3,$O$2:$P$2,$O$3:$P$3,B164) -> 0.1956143267 | F164: 1.46219132
A165: 60 | B165: 1.732050808 | C165: =ThreePosition_Slider($G$2,$G$3,$B$2:$C$2,$B$3:$C$3,B165) -> 0.2340970403 | D165: -0.2728868019 | E165: =ThreePosition_Slider($S$2,$S$3,$O$2:$P$2,$O$3:$P$3,B165) -> 0.2068517305 | F165: 1.428146088
A166: 61 | B166: 1.804047755 | C166: =ThreePosition_Slider($G$2,$G$3,$B$2:$C$2,$B$3:$C$3,B166) -> 0.2432686106 | D166: -0.2389561247 | E166: =ThreePosition_Slider($S$2,$S$3,$O$2:$P$2,$O$3:$P$3,B166) -> 0.2171052474 | F166: 1.394526541
A167: 62 | B167: 1.880726465 | C167: =ThreePosition_Slider($G$2,$G$3,$B$2:$C$2,$B$3:$C$3,B167) -> 0.2515191758 | D167: -0.2054803766 | E167: =ThreePosition_Slider($S$2,$S$3,$O$2:$P$2,$O$3:$P$3,B167) -> 0.2264236623 | F167: 1.361332194
A168: 63 | B168: 1.962610506 | C168: =ThreePosition_Slider($G$2,$G$3,$B$2:$C$2,$B$3:$C$3,B168) -> 0.2588944133 | D168: -0.1724560615 | E168: =ThreePosition_Slider($S$2,$S$3,$O$2:$P$2,$O$3:$P$3,B168) -> 0.234852741 | F168: 1.328561015
A169: 64 | B169: 2.050303842 | C169: =ThreePosition_Slider($G$2,$G$3,$B$2:$C$2,$B$3:$C$3,B169) -> 0.2654370957 | D169: -0.1398784477 | E169: =ThreePosition_Slider($S$2,$S$3,$O$2:$P$2,$O$3:$P$3,B169) -> 0.2424353859 | F169: 1.296209645
A170: 65 | B170: 2.144506921 | C170: =ThreePosition_Slider($G$2,$G$3,$B$2:$C$2,$B$3:$C$3,B170) -> 0.2711872485 | D170: -0.1077417564 | E170: =ThreePosition_Slider($S$2,$S$3,$O$2:$P$2,$O$3:$P$3,B170) -> 0.2492117867 | F170: 1.264273591
A171: 66 | B171: 2.246036774 | C171: =ThreePosition_Slider($G$2,$G$3,$B$2:$C$2,$B$3:$C$3,B171) -> 0.2761823007 | D171: -0.07603932821 | E171: =ThreePosition_Slider($S$2,$S$3,$O$2:$P$2,$O$3:$P$3,B171) -> 0.2552195669 | F171: 1.232747394
A172: 67 | B172: 2.355852366 | C172: =ThreePosition_Slider($G$2,$G$3,$B$2:$C$2,$B$3:$C$3,B172) -> 0.2804572302 | D172: -0.04476376834 | E172: =ThreePosition_Slider($S$2,$S$3,$O$2:$P$2,$O$3:$P$3,B172) -> 0.260493923 | F172: 1.201624784
A173: 68 | B173: 2.475086853 | C173: =ThreePosition_Slider($G$2,$G$3,$B$2:$C$2,$B$3:$C$3,B173) -> 0.2840447016 | D173: -0.01390707518 | E173: =ThreePosition_Slider($S$2,$S$3,$O$2:$P$2,$O$3:$P$3,B173) -> 0.2650677591 | F173: 1.17089881
A174: 69 | B174: 2.605089065 | C174: =ThreePosition_Slider($G$2,$G$3,$B$2:$C$2,$B$3:$C$3,B174) -> 0.2869751973 | D174: 0.01653924745 | E174: =ThreePosition_Slider($S$2,$S$3,$O$2:$P$2,$O$3:$P$3,B174) -> 0.2689718142 | F174: 1.140561956
A175: 70 | B175: 2.747477419 | C175: =ThreePosition_Slider($G$2,$G$3,$B$2:$C$2,$B$3:$C$3,B175) -> 0.2892771418 | D175: 0.04658409194 | E175: =ThreePosition_Slider($S$2,$S$3,$O$2:$P$2,$O$3:$P$3,B175) -> 0.2722347828 | F175: 1.110606244
A176: 71 | B176: 2.904210878 | C176: =ThreePosition_Slider($G$2,$G$3,$B$2:$C$2,$B$3:$C$3,B176) -> 0.2909770189 | D176: 0.07623666078 | E176: =ThreePosition_Slider($S$2,$S$3,$O$2:$P$2,$O$3:$P$3,B176) -> 0.2748834301 | F176: 1.081023326
A177: 72 | B177: 3.077683537 | C177: =ThreePosition_Slider($G$2,$G$3,$B$2:$C$2,$B$3:$C$3,B177) -> 0.2920994823 | D177: 0.1055063915 | E177: =ThreePosition_Slider($S$2,$S$3,$O$2:$P$2,$O$3:$P$3,B177) -> 0.2769426991 | F177: 1.051804556
A178: 73 | B178: 3.270852618 | C178: =ThreePosition_Slider($G$2,$G$3,$B$2:$C$2,$B$3:$C$3,B178) -> 0.2926674594 | D178: 0.1344028914 | E178: =ThreePosition_Slider($S$2,$S$3,$O$2:$P$2,$O$3:$P$3,B178) -> 0.2784358134 | F178: 1.022941069
A179: 74 | B179: 3.487414444 | C179: =ThreePosition_Slider($G$2,$G$3,$B$2:$C$2,$B$3:$C$3,B179) -> 0.2927022489 | D179: 0.1629358801 | E179: =ThreePosition_Slider($S$2,$S$3,$O$2:$P$2,$O$3:$P$3,B179) -> 0.2793843719 | F179: 0.9944238304
A180: 75 | B180: 3.732050808 | C180: =ThreePosition_Slider($G$2,$G$3,$B$2:$C$2,$B$3:$C$3,B180) -> 0.2922236118 | D180: 0.1911151407 | E180: =ThreePosition_Slider($S$2,$S$3,$O$2:$P$2,$O$3:$P$3,B180) -> 0.2798084388 | F180: 0.9662436957
A181: 76 | B181: 4.010780934 | C181: =ThreePosition_Slider($G$2,$G$3,$B$2:$C$2,$B$3:$C$3,B181) -> 0.2912498571 | D181: 0.2189504765 | E181: =ThreePosition_Slider($S$2,$S$3,$O$2:$P$2,$O$3:$P$3,B181) -> 0.2797266277 | F181: 0.9383914529
A182: 77 | B182: 4.331475874 | C182: =ThreePosition_Slider($G$2,$G$3,$B$2:$C$2,$B$3:$C$3,B182) -> 0.2897979213 | D182: 0.2464516744 | E182: =ThreePosition_Slider($S$2,$S$3,$O$2:$P$2,$O$3:$P$3,B182) -> 0.2791561797 | F182: 0.9108578627
A183: 78 | B183: 4.704630109 | C183: =ThreePosition_Slider($G$2,$G$3,$B$2:$C$2,$B$3:$C$3,B183) -> 0.2878834425 | D183: 0.2736284721 | E183: =ThreePosition_Slider($S$2,$S$3,$O$2:$P$2,$O$3:$P$3,B183) -> 0.2781130369 | F183: 0.883633693
A184: 79 | B184: 5.144554016 | C184: =ThreePosition_Slider($G$2,$G$3,$B$2:$C$2,$B$3:$C$3,B184) -> 0.2855208296 | D184: 0.3004905314 | E184: =ThreePosition_Slider($S$2,$S$3,$O$2:$P$2,$O$3:$P$3,B184) -> 0.2766119102 | F184: 0.8567097485
A185: 80 | B185: 5.67128182 | C185: =ThreePosition_Slider($G$2,$G$3,$B$2:$C$2,$B$3:$C$3,B185) -> 0.2827233266 | D185: 0.3270474142 | E185: =ThreePosition_Slider($S$2,$S$3,$O$2:$P$2,$O$3:$P$3,B185) -> 0.2746663431 | F185: 0.8300768964
A186: 81 | B186: 6.313751515 | C186: =ThreePosition_Slider($G$2,$G$3,$B$2:$C$2,$B$3:$C$3,B186) -> 0.2795030721 | D186: 0.3533085618 | E186: =ThreePosition_Slider($S$2,$S$3,$O$2:$P$2,$O$3:$P$3,B186) -> 0.2722887701 | F186: 0.8037260888
A187: 82 | B187: 7.115369722 | C187: =ThreePosition_Slider($G$2,$G$3,$B$2:$C$2,$B$3:$C$3,B187) -> 0.2758711542 | D187: 0.3792832782 | E187: =ThreePosition_Slider($S$2,$S$3,$O$2:$P$2,$O$3:$P$3,B187) -> 0.2694905717 | F187: 0.7776483817
A188: 83 | B188: 8.144346428 | C188: =ThreePosition_Slider($G$2,$G$3,$B$2:$C$2,$B$3:$C$3,B188) -> 0.2718376617 | D188: 0.4049807147 | E188: =ThreePosition_Slider($S$2,$S$3,$O$2:$P$2,$O$3:$P$3,B188) -> 0.2662821247 | F188: 0.7518349516
A189: 84 | B189: 9.514364454 | C189: =ThreePosition_Slider($G$2,$G$3,$B$2:$C$2,$B$3:$C$3,B189) -> 0.2674117311 | D189: 0.4304098576 | E189: =ThreePosition_Slider($S$2,$S$3,$O$2:$P$2,$O$3:$P$3,B189) -> 0.2626728487 | F189: 0.7262771094
A190: 85 | B190: 11.4300523 | C190: =ThreePosition_Slider($G$2,$G$3,$B$2:$C$2,$B$3:$C$3,B190) -> 0.2626015901 | D190: 0.455579517 | E190: =ThreePosition_Slider($S$2,$S$3,$O$2:$P$2,$O$3:$P$3,B190) -> 0.2586712491 | F190: 0.700966313
A191: 86 | B191: 14.30066626 | C191: =ThreePosition_Slider($G$2,$G$3,$B$2:$C$2,$B$3:$C$3,B191) -> 0.2574145968 | D191: 0.480498318 | E191: =ThreePosition_Slider($S$2,$S$3,$O$2:$P$2,$O$3:$P$3,B191) -> 0.2542849567 | F191: 0.6758941776
A192: 87 | B192: 19.08113669 | C192: =ThreePosition_Slider($G$2,$G$3,$B$2:$C$2,$B$3:$C$3,B192) -> 0.2518572768 | D192: 0.505174692 | E192: =ThreePosition_Slider($S$2,$S$3,$O$2:$P$2,$O$3:$P$3,B192) -> 0.2495207637 | F192: 0.6510524847
A193: 88 | B193: 28.63625328 | C193: =ThreePosition_Slider($G$2,$G$3,$B$2:$C$2,$B$3:$C$3,B193) -> 0.245935356 | D193: 0.5296168708 | E193: =ThreePosition_Slider($S$2,$S$3,$O$2:$P$2,$O$3:$P$3,B193) -> 0.2443846567 | F193: 0.6264331903
A194: 89 | B194: 57.28996163 | C194: =ThreePosition_Slider($G$2,$G$3,$B$2:$C$2,$B$3:$C$3,B194) -> 0.2396537913 | D194: 0.55383288 | E194: =ThreePosition_Slider($S$2,$S$3,$O$2:$P$2,$O$3:$P$3,B194) -> 0.238881847 | F194: 0.6020284317
A195: 90 | B195: 1.632455228e+16 | C195: =ThreePosition_Slider($G$2,$G$3,$B$2:$C$2,$B$3:$C$3,B195) -> 0.2330167976 | D195: 0.5778305337 | E195: =ThreePosition_Slider($S$2,$S$3,$O$2:$P$2,$O$3:$P$3,B195) -> 0.2330167976 | F195: 0.5778305337
A196: 91 | B196: -57.28996163 | C196: =ThreePosition_Slider($G$2,$G$3,$B$2:$C$2,$B$3:$C$3,B196) -> 0.2260278727 | D196: 0.6016174303 | E196: =ThreePosition_Slider($S$2,$S$3,$O$2:$P$2,$O$3:$P$3,B196) -> 0.226793248 | F196: 0.553832014
A197: 92 | B197: -28.63625328 | C197: =ThreePosition_Slider($G$2,$G$3,$B$2:$C$2,$B$3:$C$3,B197) -> 0.2186898198 | D197: 0.6252009475 | E197: =ThreePosition_Slider($S$2,$S$3,$O$2:$P$2,$O$3:$P$3,B197) -> 0.220214236 | F197: 0.5300255883
A198: 93 | B198: -19.08113669 | C198: =ThreePosition_Slider($G$2,$G$3,$B$2:$C$2,$B$3:$C$3,B198) -> 0.2110047666 | D198: 0.6485882384 | E198: =ThreePosition_Slider($S$2,$S$3,$O$2:$P$2,$O$3:$P$3,B198) -> 0.2132821175 | F198: 0.5064041752
A199: 94 | B199: -14.30066626 | C199: =ThreePosition_Slider($G$2,$G$3,$B$2:$C$2,$B$3:$C$3,B199) -> 0.2029741832 | D199: 0.6717862278 | E199: =ThreePosition_Slider($S$2,$S$3,$O$2:$P$2,$O$3:$P$3,B199) -> 0.2059985836 | F199: 0.4829609009
A200: 95 | B200: -11.4300523 | C200: =ThreePosition_Slider($G$2,$G$3,$B$2:$C$2,$B$3:$C$3,B200) -> 0.1945988971 | D200: 0.6948016074 | E200: =ThreePosition_Slider($S$2,$S$3,$O$2:$P$2,$O$3:$P$3,B200) -> 0.1983646756 | F200: 0.4596891032
A201: 96 | B201: -9.514364454 | C201: =ThreePosition_Slider($G$2,$G$3,$B$2:$C$2,$B$3:$C$3,B201) -> 0.1858791063 | D201: 0.7176408323 | E201: =ThreePosition_Slider($S$2,$S$3,$O$2:$P$2,$O$3:$P$3,B201) -> 0.190380798 | F201: 0.436582337
A202: 97 | B202: -8.144346428 | C202: =ThreePosition_Slider($G$2,$G$3,$B$2:$C$2,$B$3:$C$3,B202) -> 0.1768143898 | D202: 0.740310116 | E202: =ThreePosition_Slider($S$2,$S$3,$O$2:$P$2,$O$3:$P$3,B202) -> 0.1820467294 | F202: 0.4136343784
A203: 98 | B203: -7.115369722 | C203: =ThreePosition_Slider($G$2,$G$3,$B$2:$C$2,$B$3:$C$3,B203) -> 0.1674037174 | D203: 0.7628154258 | E203: =ThreePosition_Slider($S$2,$S$3,$O$2:$P$2,$O$3:$P$3,B203) -> 0.1733616309 | F203: 0.39083923
A204: 99 | B204: -6.313751515 | C204: =ThreePosition_Slider($G$2,$G$3,$B$2:$C$2,$B$3:$C$3,B204) -> 0.1576454562 | D204: 0.7851624774 | E204: =ThreePosition_Slider($S$2,$S$3,$O$2:$P$2,$O$3:$P$3,B204) -> 0.1643240535 | F204: 0.3681911269
A205: 100 | B205: -5.67128182 | C205: =ThreePosition_Slider($G$2,$G$3,$B$2:$C$2,$B$3:$C$3,B205) -> 0.1475373759 | D205: 0.8073567291 | E205: =ThreePosition_Slider($S$2,$S$3,$O$2:$P$2,$O$3:$P$3,B205) -> 0.154931943 | F205: 0.3456845423
... 260 more rows

Sheet Sheet2
N1: inverse motin
B2: C1 | C2: 0 | D2: 0 | F2: f1 | G2: 0 | H2: =G2*D_R() -> 0 | K2: 0 | L2: 0 | N2: 0 | O2: 0 | S2: A0 | T2: =J9 -> 2.747477419 | U2: =K9 -> -0.8583138853
B3: d2 | C3: 0 | D3: 0 | E3: f12 | F3: 30 | G3: =F3*D_R() -> 0.5235987756 | K3: 1 | L3: 0 | M3: d'2 | N3: 0 | O3: 0 | P3: f'12 | Q3: =-G3 -> -0.5235987756
B4: d3 | C4: =COS(PI()/6)-COS(PI()/3) -> 0.3660254038 | D4: =SIN(PI()/6)-SIN(PI()/3) -> -0.3660254038 | E4: f13 | F4: 60 | G4: 1.047197551 | K4: 0 | L4: 0 | M4: d'3 | N4: =CRotate(C6:D6,-G4) -> 0.1339745962 | O4: 0.5 | P4: f'13 | Q4: =-G4 -> -1.047197551 | S4: B1 | T4: =K10 -> -0.3660251494 | U4: =L10 -> -1.366025844 | W4: B2 | X4: =K10+K16 -> 0.3660258443 | Y4: =L10+L16 -> -1.366025658 | AA4: =K10+K16*J10 -> 1.366025912 | AB4: =L10+L16*J10 -> -1.366025404
K5: =COS(PI()/6) -> 0.8660254038 | L5: =SIN(PI()/6) -> 0.5
C6: =-C4 -> -0.3660254038 | D6: =-D4 -> 0.3660254038 | K6: =C4 -> 0.3660254038 | L6: =D4 -> -0.3660254038
K7: =K6+COS(PI()/3) -> 0.8660254038 | L7: =L6+SIN(PI()/3) -> 0.5
A8: -90 | B8: =TAN(A8*D_R()) -> -1.632455228e+16 | C8: =ThreePosition_Slider($G$3,$G$4,$C$3:$D$3,$C$4:$D$4,B8) -> 5.305048427e-17 | D8: 3.062871137e-17 | F8: =ThreePosition_Slider($Q$3,-$G$4,N3:$O$3,N4:$O$4,B8) -> 6.125742275e-17 | G8: -1.750551946e-33
A9: -89 | B9: =TAN(A9*D_R()) -> -57.28996163 | C9: =ThreePosition_Slider($G$3,$G$4,$C$3:$D$3,$C$4:$D$4,B9) -> 0.01471008085 | D9: 0.008327896875 | F9: =ThreePosition_Slider($Q$3,-$G$4,N$3:$O4,N$4:$O5,B9) -> 0.01690325215 | G9: 0.0001428701725 | H9: A0 | I9: 70 | J9: =TAN(I9*D_R()) -> 2.747477419 | K9: =ThreePosition_Slider(-G3,-G4,N3:O3,N4:O4,J9) -> -0.8583138853 | L9: 0.4868749915
A10: -88 | B10: -28.63625328 | C10: =ThreePosition_Slider($G$3,$G$4,$C$3:$D$3,$C$4:$D$4,B10) -> 0.02865315989 | D10: 0.0159225291 | F10: =ThreePosition_Slider($Q$3,-$G$4,N$3:$O5,N$4:$O6,B10) -> 0.03277562892 | G10: 0.0005372652524 | H10: B1 | I10: 67.08866087 | J10: =TAN(I10*D_R()) -> 2.366025149 | K10: =ThreePosition_Slider(G3,G4,C3:D3,C4:D4,J10) -> -0.3660251494 | L10: -1.366025844 | N10: A02B2 | O10: =K9-N4 -> -0.9922884815 | P10: =L9-O4 -> -0.0131250085
A11: -87 | B11: -19.08113669 | C11: =ThreePosition_Slider($G$3,$G$4,$C$3:$D$3,$C$4:$D$4,B11) -> 0.04188921878 | D11: 0.02286970371 | F11: =ThreePosition_Slider($Q$3,-$G$4,N$3:$O6,N$4:$O7,B11) -> 0.04771197946 | G11: 0.001138864999
A12: -86 | B12: -14.30066626 | C12: =ThreePosition_Slider($G$3,$G$4,$C$3:$D$3,$C$4:$D$4,B12) -> 0.05447292201 | D12: 0.02924306029 | F12: =ThreePosition_Slider($Q$3,-$G$4,N$3:$O7,N$4:$O8,B12) -> 0.06179646442 | G12: 0.001911227904 | K12: =K9 -> -0.8583138853 | L12: =L9 -> 0.4868749915
A13: -85 | B13: -11.4300523 | C13: =ThreePosition_Slider($G$3,$G$4,$C$3:$D$3,$C$4:$D$4,B13) -> 0.06645406681 | D13: 0.03510606488 | F13: =ThreePosition_Slider($Q$3,-$G$4,N$3:$O8,N$4:$O9,B13) -> 0.07510394248 | G13: 0.002824289393 | J13: A02 | K13: =CRotate(K9:L9,-G3) -> -0.4998841333 | L13: 0.8508030537 | N13: =CRotate(K10:L10,G3) -> 0.3660258443 | O13: -1.366025658
A14: -84 | B14: -9.514364454 | C14: =ThreePosition_Slider($G$3,$G$4,$C$3:$D$3,$C$4:$D$4,B14) -> 0.07787801944 | D14: 0.04051363758 | F14: =ThreePosition_Slider($Q$3,-$G$4,N$3:$O9,N$4:$O10,B14) -> 0.08770116202 | G14: 0.003853170371 | J14: A03 | K14: =CRotate(O10:P10,-G4+G3) -> -0.8659095371 | L14: 0.48477765
A15: -83 | B15: -8.144346428 | C15: =ThreePosition_Slider($G$3,$G$4,$C$3:$D$3,$C$4:$D$4,B15) -> 0.08878612729 | D15: 0.04551348781 | F15: =ThreePosition_Slider($Q$3,-$G$4,N$3:$O10,N$4:$O11,B15) -> 0.09964778564 | G15: 0.004977226986 | K15: Sx | L15: Sy
A16: -82 | B16: -7.115369722 | C16: =ThreePosition_Slider($G$3,$G$4,$C$3:$D$3,$C$4:$D$4,B16) -> 0.09921610157 | D16: 0.05014721465 | F16: =ThreePosition_Slider($Q$3,-$G$4,N$3:$O11,N$4:$O12,B16) -> 0.1109972717 | G16: 0.006179288974 | K16: =C3+K10*(COS(G3)-1)-L10*SIN(G3) -> 0.7320509938 | L16: =D3+K10*SIN(G3)+L10*(COS(G3)-1) -> 1.861945094e-07 | M16: g | N16: =ATAN2(K16,L16) -> 2.543463651e-07
A17: -81 | B17: -6.313751515 | C17: =ThreePosition_Slider($G$3,$G$4,$C$3:$D$3,$C$4:$D$4,B17) -> 0.1092023684 | D17: 0.05445121795 | F17: =ThreePosition_Slider($Q$3,-$G$4,N$3:$O12,N$4:$O13,B17) -> 0.1217976342 | G17: 0.007445046204 | N17: =N16/D_R() -> 1.457297326e-05
A18: -80 | B18: -5.67128182 | C18: =ThreePosition_Slider($G$3,$G$4,$C$3:$D$3,$C$4:$D$4,B18) -> 0.1187763886 | D18: 0.05845745604 | F18: =ThreePosition_Slider($Q$3,-$G$4,N$3:$O13,N$4:$O14,B18) -> 0.1320920979 | G18: 0.008762552329 | I18: B1 | J18: =K10 -> -0.3660251494 | K18: =L10 -> -1.366025844 | L18: =TAN((M24+90)*D_R()) -> -0.9848917661
A19: -79 | B19: -5.144554016 | C19: =ThreePosition_Slider($G$3,$G$4,$C$3:$D$3,$C$4:$D$4,B19) -> 0.1279669467 | D19: 0.06219407848 | F19: =ThreePosition_Slider($Q$3,-$G$4,N$3:$O14,N$4:$O15,B19) -> 0.1419196659 | G19: 0.01012182142 | I19: B2 | J19: =X4 -> 0.3660258443 | K19: =Y4 -> -1.366025658
A20: -78 | B20: -4.704630109 | C20: =ThreePosition_Slider($G$3,$G$4,$C$3:$D$3,$C$4:$D$4,B20) -> 0.1368004121 | D20: 0.06568595676 | F20: =ThreePosition_Slider($Q$3,-$G$4,N$3:$O15,N$4:$O16,B20) -> 0.1513156105 | G20: 0.01151449884 | I20: B3 | J20: =AA4 -> 1.366025912 | K20: =AB4 -> -1.366025404
A21: -77 | B21: -4.331475874 | C21: =ThreePosition_Slider($G$3,$G$4,$C$3:$D$3,$C$4:$D$4,B21) -> 0.1453009736 | D21: 0.06895513112 | F21: =ThreePosition_Slider($Q$3,-$G$4,N$3:$O16,N$4:$O17,B21) -> 0.1603118999 | G21: 0.01293359151 | O21: 0.4
A22: -76 | B22: -4.010780934 | C22: =ThreePosition_Slider($G$3,$G$4,$C$3:$D$3,$C$4:$D$4,B22) -> 0.1534908496 | D22: 0.07202118819 | F22: =ThreePosition_Slider($Q$3,-$G$4,N$3:$O17,N$4:$O18,B22) -> 0.1689375691 | G22: 0.01437324624 | J22: Sx | K22: Sy | O22: 0.2
A23: -75 | B23: -3.732050808 | C23: =ThreePosition_Slider($G$3,$G$4,$C$3:$D$3,$C$4:$D$4,B23) -> 0.1613904778 | D23: 0.07490158141 | F23: =ThreePosition_Slider($Q$3,-$G$4,N$3:$O18,N$4:$O19,B23) -> 0.1772190444 | G23: 0.01582856661 | J23: =K9*(COS(Q3)-1)-L9*SIN(Q3) -> 0.358429752 | K23: =K9*SIN(Q3)+L9*(COS(Q3)-1) -> 0.3639280622 | L23: g | M23: =ATAN2(J23,K23) -> 0.7930096324 | P23: =J24+O21*COS(M23)+O22*COS(M23+PI()/2) -> -0.7201258672 | Q23: =K24+O21*SIN(M23)+O22*SIN(M23+PI()/2) -> 0.9122031844
A24: -74 | B24: -3.487414444 | C24: =ThreePosition_Slider($G$3,$G$4,$C$3:$D$3,$C$4:$D$4,B24) -> 0.1690186836 | D24: 0.07761190375 | F24: =ThreePosition_Slider($Q$3,-$G$4,N$3:$O19,N$4:$O20,B24) -> 0.1851804256 | G24: 0.0172954615 | I24: A01 | J24: =K9 -> -0.8583138853 | K24: =L9 -> 0.4868749915 | L24: =K23/J23 -> 1.015339994 | M24: =M23/D_R() -> 45.43610505 | P24: =P23-2*O22*COS(M23+PI()/2) -> -0.4351385201 | Q24: =Q23-2*O22*SIN(M23+PI()/2) -> 0.6315214928
A25: -73 | B25: -3.270852618 | C25: =ThreePosition_Slider($G$3,$G$4,$C$3:$D$3,$C$4:$D$4,B25) -> 0.1763928324 | D25: 0.08016612075 | F25: =ThreePosition_Slider($Q$3,-$G$4,N$3:$O20,N$4:$O21,B25) -> 0.1928437343 | G25: 0.01877051912 | I25: A02 | J25: =J24+J23 -> -0.4998841333 | K25: =K24+K23 -> 0.8508030537 | P25: =P24-2*O21*COS(M23) -> -0.9965019033 | Q25: =Q24-2*O21*SIN(M23) -> 0.06154679861
A26: -72 | B26: -3.077683537 | C26: =ThreePosition_Slider($G$3,$G$4,$C$3:$D$3,$C$4:$D$4,B26) -> 0.1835289657 | D26: 0.08257677019 | F26: =ThreePosition_Slider($Q$3,-$G$4,N$3:$O21,N$4:$O22,B26) -> 0.2002291318 | G26: 0.02025090212 | I26: A03 | J26: =J24+$J$9*J23 -> 0.1264637647 | K26: =K24+$J$9*K23 -> 1.486759125 | P26: =P25+2*O22*COS(M23+PI()/2) -> -1.28148925 | Q26: =Q25+2*O22*SIN(M23+PI()/2) -> 0.3422284902
A27: -71 | B27: -2.904210878 | C27: =ThreePosition_Slider($G$3,$G$4,$C$3:$D$3,$C$4:$D$4,B27) -> 0.190441923 | D27: 0.08485513392 | F27: =ThreePosition_Slider($Q$3,-$G$4,N$3:$O22,N$4:$O23,B27) -> 0.2073551102 | G27: 0.0217342599 | I27: Q | J27: =((K18-K24)+(L24*J24-L18*J18))/(L24-L18) -> -1.542259486 | K27: =K24+L24*(J27-J24) -> -0.207562331 | P27: =P23 -> -0.7201258672 | Q27: =Q23 -> 0.9122031844
A28: -70 | B28: -2.747477419 | C28: =ThreePosition_Slider($G$3,$G$4,$C$3:$D$3,$C$4:$D$4,B28) -> 0.1971454514 | D28: 0.08701138585 | F28: =ThreePosition_Slider($Q$3,-$G$4,N$3:$O23,N$4:$O24,B28) -> 0.2142386621 | G28: 0.02321865514 | I28: B1 | J28: =J18 -> -0.3660251494 | K28: =K18 -> -1.366025844
A29: -69 | B29: -2.605089065 | C29: =ThreePosition_Slider($G$3,$G$4,$C$3:$D$3,$C$4:$D$4,B29) -> 0.2036523042 | D29: 0.08905472018 | F29: =ThreePosition_Slider($Q$3,-$G$4,N$3:$O24,N$4:$O25,B29) -> 0.2208954291 | G29: 0.0247025021 | I29: Y | P29: =J28+O21*COS(N16)+O22*COS(N16+PI()/2) -> 0.03397479969 | Q29: =K28+O21*SIN(N16)+O22*SIN(N16+PI()/2) -> -1.166025743
A30: -68 | B30: -2.475086853 | C30: =ThreePosition_Slider($G$3,$G$4,$C$3:$D$3,$C$4:$D$4,B30) -> 0.2099743294 | D30: 0.09099346248 | F30: =ThreePosition_Slider($Q$3,-$G$4,N$3:$O25,N$4:$O26,B30) -> 0.2273398346 | G30: 0.02618451461 | P30: =P29-2*O22*COS(N16+PI()/2) -> 0.03397490143 | Q30: =Q29-2*O22*SIN(N16+PI()/2) -> -1.566025743
A31: -67 | B31: -2.355852366 | C31: =ThreePosition_Slider($G$3,$G$4,$C$3:$D$3,$C$4:$D$4,B31) -> 0.2161225494 | D31: 0.0928351664 | F31: =ThreePosition_Slider($Q$3,-$G$4,N$3:$O26,N$4:$O27,B31) -> 0.2335852013 | G31: 0.02766366225 | J31: =((K24-K18)+(L24*J24-L18*J18))/(L24-L18) -> 0.3104266601 | K31: =K24+L24*(J31-J24) -> 1.67354401 | P31: =P30-2*O21*COS(N16) -> -0.7660250986 | Q31: =Q30-2*O21*SIN(N16) -> -1.566025946
A32: -66 | B32: -2.246036774 | C32: =ThreePosition_Slider($G$3,$G$4,$C$3:$D$3,$C$4:$D$4,B32) -> 0.2221072331 | D32: 0.09458669802 | F32: =ThreePosition_Slider($Q$3,-$G$4,N$3:$O27,N$4:$O28,B32) -> 0.2396438553 | G32: 0.02913913323 | P32: =P31+2*O22*COS(N16+PI()/2) -> -0.7660252003 | Q32: =Q31+2*O22*SIN(N16+PI()/2) -> -1.166025946
A33: -65 | B33: -2.144506921 | C33: =ThreePosition_Slider($G$3,$G$4,$C$3:$D$3,$C$4:$D$4,B33) -> 0.2279379605 | D33: 0.09625430954 | F33: =ThreePosition_Slider($Q$3,-$G$4,N$3:$O28,N$4:$O29,B33) -> 0.2455272191 | G33: 0.03061030297 | P33: =P29 -> 0.03397479969 | Q33: =Q29 -> -1.166025743
A34: -64 | B34: -2.050303842 | C34: =ThreePosition_Slider($G$3,$G$4,$C$3:$D$3,$C$4:$D$4,B34) -> 0.2336236814 | D34: 0.09784370397 | F34: =ThreePosition_Slider($Q$3,-$G$4,N$3:$O29,N$4:$O30,B34) -> 0.251245895 | G34: 0.03207670745
A35: -63 | B35: -1.962610506 | C35: =ThreePosition_Slider($G$3,$G$4,$C$3:$D$3,$C$4:$D$4,B35) -> 0.2391727684 | D35: 0.0993600919 | F35: =ThreePosition_Slider($Q$3,-$G$4,N$3:$O30,N$4:$O31,B35) -> 0.2568097393 | G35: 0.03353802051
A36: -62 | B36: -1.880726465 | C36: =ThreePosition_Slider($G$3,$G$4,$C$3:$D$3,$C$4:$D$4,B36) -> 0.2445930653 | D36: 0.1008082415 | F36: =ThreePosition_Slider($Q$3,-$G$4,N$3:$O31,N$4:$O32,B36) -> 0.2622279289 | G36: 0.03499403457
A37: -61 | B37: -1.804047755 | C37: =ThreePosition_Slider($G$3,$G$4,$C$3:$D$3,$C$4:$D$4,B37) -> 0.2498919301 | D37: 0.1021925228 | F37: =ThreePosition_Slider($Q$3,-$G$4,N$3:$O32,N$4:$O33,B37) -> 0.267509021 | G37: 0.03644464421
A38: -60 | B38: -1.732050808 | C38: =ThreePosition_Slider($G$3,$G$4,$C$3:$D$3,$C$4:$D$4,B38) -> 0.255076275 | D38: 0.1035169465 | F38: =ThreePosition_Slider($Q$3,-$G$4,N$3:$O33,N$4:$O34,B38) -> 0.2726610072 | G38: 0.03788983213
A39: -59 | B39: -1.664279482 | C39: =ThreePosition_Slider($G$3,$G$4,$C$3:$D$3,$C$4:$D$4,B39) -> 0.2601526023 | D39: 0.1047851987 | F39: =ThreePosition_Slider($Q$3,-$G$4,N$3:$O34,N$4:$O35,B39) -> 0.2776913618 | G39: 0.03932965718
A40: -58 | B40: -1.600334529 | C40: =ThreePosition_Slider($G$3,$G$4,$C$3:$D$3,$C$4:$D$4,B40) -> 0.2651270374 | D40: 0.1060006717 | F40: =ThreePosition_Slider($Q$3,-$G$4,N$3:$O35,N$4:$O36,B40) -> 0.2826070855 | G40: 0.04076424419
A41: -57 | B41: -1.539864964 | C41: =ThreePosition_Slider($G$3,$G$4,$C$3:$D$3,$C$4:$D$4,B41) -> 0.2700053584 | D41: 0.1071664914 | F41: =ThreePosition_Slider($Q$3,-$G$4,N$3:$O36,N$4:$O37,B41) -> 0.2874147453 | G41: 0.04219377523
A42: -56 | B42: -1.482560969 | C42: =ThreePosition_Slider($G$3,$G$4,$C$3:$D$3,$C$4:$D$4,B42) -> 0.2747930237 | D42: 0.1082855414 | F42: =ThreePosition_Slider($Q$3,-$G$4,N$3:$O37,N$4:$O38,B42) -> 0.29212051 | G42: 0.04361848218
A43: -55 | B43: -1.428148007 | C43: =ThreePosition_Slider($G$3,$G$4,$C$3:$D$3,$C$4:$D$4,B43) -> 0.279495197 | D43: 0.1093604849 | F43: =ThreePosition_Slider($Q$3,-$G$4,N$3:$O38,N$4:$O39,B43) -> 0.2967301833 | G43: 0.04503864039
A44: -54 | B44: -1.37638192 | C44: =ThreePosition_Slider($G$3,$G$4,$C$3:$D$3,$C$4:$D$4,B44) -> 0.28411677 | D44: 0.1103937844 | F44: =ThreePosition_Slider($Q$3,-$G$4,N$3:$O39,N$4:$O40,B44) -> 0.3012492326 | G44: 0.04645456331
A45: -53 | B45: -1.327044822 | C45: =ThreePosition_Slider($G$3,$G$4,$C$3:$D$3,$C$4:$D$4,B45) -> 0.2886623839 | D45: 0.1113877187 | F45: =ThreePosition_Slider($Q$3,-$G$4,N$3:$O40,N$4:$O41,B45) -> 0.3056828169 | G45: 0.04786659787
A46: -52 | B46: -1.279941632 | C46: =ThreePosition_Slider($G$3,$G$4,$C$3:$D$3,$C$4:$D$4,B46) -> 0.2931364483 | D46: 0.112344399 | F46: =ThreePosition_Slider($Q$3,-$G$4,N$3:$O41,N$4:$O42,B46) -> 0.3100358105 | G46: 0.04927512064
A47: -51 | B47: -1.234897157 | C47: =ThreePosition_Slider($G$3,$G$4,$C$3:$D$3,$C$4:$D$4,B47) -> 0.2975431592 | D47: 0.1132657825 | F47: =ThreePosition_Slider($Q$3,-$G$4,N$3:$O42,N$4:$O43,B47) -> 0.3143128259 | G47: 0.05068053454
A48: -50 | B48: -1.191753593 | C48: =ThreePosition_Slider($G$3,$G$4,$C$3:$D$3,$C$4:$D$4,B48) -> 0.3018865156 | D48: 0.1141536856 | F48: =ThreePosition_Slider($Q$3,-$G$4,N$3:$O43,N$4:$O44,B48) -> 0.3185182343 | G48: 0.05208326611
A49: -49 | B49: -1.150368407 | C49: =ThreePosition_Slider($G$3,$G$4,$C$3:$D$3,$C$4:$D$4,B49) -> 0.3061703342 | D49: 0.1150097947 | F49: =ThreePosition_Slider($Q$3,-$G$4,N$3:$O44,N$4:$O45,B49) -> 0.3226561846 | G49: 0.0534837632
A50: -48 | B50: -1.110612515 | C50: =ThreePosition_Slider($G$3,$G$4,$C$3:$D$3,$C$4:$D$4,B50) -> 0.3103982639 | D50: 0.1158356769 | F50: =ThreePosition_Slider($Q$3,-$G$4,N$3:$O45,N$4:$O46,B50) -> 0.3267306203 | G50: 0.05488249313
A51: -47 | B51: -1.07236871 | C51: =ThreePosition_Slider($G$3,$G$4,$C$3:$D$3,$C$4:$D$4,B51) -> 0.3145737986 | D51: 0.116632789 | F51: =ThreePosition_Slider($Q$3,-$G$4,N$3:$O46,N$4:$O47,B51) -> 0.3307452955 | G51: 0.05627994113
A52: -46 | B52: -1.035530314 | C52: =ThreePosition_Slider($G$3,$G$4,$C$3:$D$3,$C$4:$D$4,B52) -> 0.3187002894 | D52: 0.1174024863 | F52: =ThreePosition_Slider($Q$3,-$G$4,N$3:$O47,N$4:$O48,B52) -> 0.33470379 | G52: 0.05767660913
A53: -45 | B53: -1 | C53: =ThreePosition_Slider($G$3,$G$4,$C$3:$D$3,$C$4:$D$4,B53) -> 0.3227809556 | D53: 0.1181460296 | F53: =ThreePosition_Slider($Q$3,-$G$4,N$3:$O48,N$4:$O49,B53) -> 0.3386095222 | G53: 0.0590730148
A54: -44 | B54: -0.9656887748 | C54: =ThreePosition_Slider($G$3,$G$4,$C$3:$D$3,$C$4:$D$4,B54) -> 0.3268188955 | D54: 0.1188645926 | F54: =ThreePosition_Slider($Q$3,-$G$4,N$3:$O49,N$4:$O50,B54) -> 0.3424657622 | G54: 0.0604696909
A55: -43 | B55: -0.9325150861 | C55: =ThreePosition_Slider($G$3,$G$4,$C$3:$D$3,$C$4:$D$4,B55) -> 0.3308170959 | D55: 0.1195592679 | F55: =ThreePosition_Slider($Q$3,-$G$4,N$3:$O50,N$4:$O51,B55) -> 0.346275643 | G55: 0.06186718474
A56: -42 | B56: -0.9004040443 | C56: =ThreePosition_Slider($G$3,$G$4,$C$3:$D$3,$C$4:$D$4,B56) -> 0.3347784418 | D56: 0.1202310723 | F56: =ThreePosition_Slider($Q$3,-$G$4,N$3:$O51,N$4:$O52,B56) -> 0.3500421714 | G56: 0.06326605792
A57: -41 | B57: -0.8692867378 | C57: =ThreePosition_Slider($G$3,$G$4,$C$3:$D$3,$C$4:$D$4,B57) -> 0.3387057243 | D57: 0.1208809528 | F57: =ThreePosition_Slider($Q$3,-$G$4,N$3:$O52,N$4:$O53,B57) -> 0.3537682381 | G57: 0.06466688622
A58: -40 | B58: -0.8390996312 | C58: =ThreePosition_Slider($G$3,$G$4,$C$3:$D$3,$C$4:$D$4,B58) -> 0.3426016494 | D58: 0.1215097901 | F58: =ThreePosition_Slider($Q$3,-$G$4,N$3:$O53,N$4:$O54,B58) -> 0.3574566268 | G58: 0.06607025964
A59: -39 | B59: -0.8097840332 | C59: =ThreePosition_Slider($G$3,$G$4,$C$3:$D$3,$C$4:$D$4,B59) -> 0.3464688452 | D59: 0.1221184038 | F59: =ThreePosition_Slider($Q$3,-$G$4,N$3:$O54,N$4:$O55,B59) -> 0.3611100235 | G59: 0.06747678264
A60: -38 | B60: -0.7812856265 | C60: =ThreePosition_Slider($G$3,$G$4,$C$3:$D$3,$C$4:$D$4,B60) -> 0.3503098695 | D60: 0.1227075555 | F60: =ThreePosition_Slider($Q$3,-$G$4,N$3:$O55,N$4:$O56,B60) -> 0.3647310239 | G60: 0.06888707443
A61: -37 | B61: -0.7535540501 | C61: =ThreePosition_Slider($G$3,$G$4,$C$3:$D$3,$C$4:$D$4,B61) -> 0.3541272164 | D61: 0.1232779526 | F61: =ThreePosition_Slider($Q$3,-$G$4,N$3:$O56,N$4:$O57,B61) -> 0.3683221419 | G61: 0.07030176949
A62: -36 | B62: -0.726542528 | C62: =ThreePosition_Slider($G$3,$G$4,$C$3:$D$3,$C$4:$D$4,B62) -> 0.3579233231 | D62: 0.1238302513 | F62: =ThreePosition_Slider($Q$3,-$G$4,N$3:$O57,N$4:$O58,B62) -> 0.371885816 | G62: 0.07172151816
A63: -35 | B63: -0.7002075382 | C63: =ThreePosition_Slider($G$3,$G$4,$C$3:$D$3,$C$4:$D$4,B63) -> 0.3617005761 | D63: 0.1243650593 | F63: =ThreePosition_Slider($Q$3,-$G$4,N$3:$O58,N$4:$O59,B63) -> 0.3754244171 | G63: 0.07314698735
A64: -34 | B64: -0.6745085168 | C64: =ThreePosition_Slider($G$3,$G$4,$C$3:$D$3,$C$4:$D$4,B64) -> 0.3654613172 | D64: 0.1248829385 | F64: =ThreePosition_Slider($Q$3,-$G$4,N$3:$O59,N$4:$O60,B64) -> 0.3789402541 | G64: 0.07457886135
A65: -33 | B65: -0.6494075932 | C65: =ThreePosition_Slider($G$3,$G$4,$C$3:$D$3,$C$4:$D$4,B65) -> 0.3692078495 | D65: 0.1253844072 | F65: =ThreePosition_Slider($Q$3,-$G$4,N$3:$O60,N$4:$O61,B65) -> 0.3824355806 | G65: 0.07601784286
A66: -32 | B66: -0.6248693519 | C66: =ThreePosition_Slider($G$3,$G$4,$C$3:$D$3,$C$4:$D$4,B66) -> 0.3729424428 | D66: 0.1258699421 | F66: =ThreePosition_Slider($Q$3,-$G$4,N$3:$O61,N$4:$O62,B66) -> 0.3859126006 | G66: 0.07746465396
A67: -31 | B67: -0.600860619 | C67: =ThreePosition_Slider($G$3,$G$4,$C$3:$D$3,$C$4:$D$4,B67) -> 0.376667339 | D67: 0.1263399799 | F67: =ThreePosition_Slider($Q$3,-$G$4,N$3:$O62,N$4:$O63,B67) -> 0.3893734743 | G67: 0.07892003738
A68: -30 | B68: -0.5773502692 | C68: =ThreePosition_Slider($G$3,$G$4,$C$3:$D$3,$C$4:$D$4,B68) -> 0.3803847577 | D68: 0.1267949192 | F68: =ThreePosition_Slider($Q$3,-$G$4,N$3:$O63,N$4:$O64,B68) -> 0.392820323 | G68: 0.08038475773
A69: -29 | B69: -0.5543090515 | C69: =ThreePosition_Slider($G$3,$G$4,$C$3:$D$3,$C$4:$D$4,B69) -> 0.3840969014 | D69: 0.1272351218 | F69: =ThreePosition_Slider($Q$3,-$G$4,N$3:$O64,N$4:$O65,B69) -> 0.3962552351 | G69: 0.08185960296
A70: -28 | B70: -0.5317094317 | C70: =ThreePosition_Slider($G$3,$G$4,$C$3:$D$3,$C$4:$D$4,B70) -> 0.3878059604 | D70: 0.1276609137 | F70: =ThreePosition_Slider($Q$3,-$G$4,N$3:$O65,N$4:$O66,B70) -> 0.3996802703 | G70: 0.08334538589
A71: -27 | B71: -0.5095254495 | C71: =ThreePosition_Slider($G$3,$G$4,$C$3:$D$3,$C$4:$D$4,B71) -> 0.3915141179 | D71: 0.128072586 | F71: =ThreePosition_Slider($Q$3,-$G$4,N$3:$O66,N$4:$O67,B71) -> 0.403097465 | G71: 0.0848429459
A72: -26 | B72: -0.4877325886 | C72: =ThreePosition_Slider($G$3,$G$4,$C$3:$D$3,$C$4:$D$4,B72) -> 0.3952235553 | D72: 0.1284703964 | F72: =ThreePosition_Slider($Q$3,-$G$4,N$3:$O67,N$4:$O68,B72) -> 0.4065088373 | G72: 0.0863531507
A73: -25 | B73: =TAN(A73*D_R()) -> -0.4663076582 | C73: =ThreePosition_Slider($G$3,$G$4,$C$3:$D$3,$C$4:$D$4,B73) -> 0.398936457 | D73: 0.128854569 | F73: =ThreePosition_Slider($Q$3,-$G$4,N$3:$O68,N$4:$O69,B73) -> 0.4099163908 | G73: 0.08787689834
A74: -24 | B74: -0.4452286853 | C74: =ThreePosition_Slider($G$3,$G$4,$C$3:$D$3,$C$4:$D$4,B74) -> 0.4026550157 | D74: 0.1292252953 | F74: =ThreePosition_Slider($Q$3,-$G$4,N$3:$O69,N$4:$O70,B74) -> 0.4133221202 | G74: 0.08941511929
A75: -23 | B75: -0.4244748162 | C75: =ThreePosition_Slider($G$3,$G$4,$C$3:$D$3,$C$4:$D$4,B75) -> 0.406381437 | D75: 0.1295827343 | F75: =ThreePosition_Slider($Q$3,-$G$4,N$3:$O70,N$4:$O71,B75) -> 0.4167280153 | G75: 0.0909687787
A76: -22 | B76: -0.4040262258 | C76: =ThreePosition_Slider($G$3,$G$4,$C$3:$D$3,$C$4:$D$4,B76) -> 0.4101179454 | D76: 0.1299270129 | F76: =ThreePosition_Slider($Q$3,-$G$4,N$3:$O71,N$4:$O72,B76) -> 0.4201360657 | G76: 0.09253887889
A77: -21 | B77: -0.383864035 | C77: =ThreePosition_Slider($G$3,$G$4,$C$3:$D$3,$C$4:$D$4,B77) -> 0.4138667885 | D77: 0.1302582254 | F77: =ThreePosition_Slider($Q$3,-$G$4,N$3:$O72,N$4:$O73,B77) -> 0.4235482653 | G77: 0.09412646196
A78: -20 | B78: -0.3639702343 | C78: =ThreePosition_Slider($G$3,$G$4,$C$3:$D$3,$C$4:$D$4,B78) -> 0.4176302433 | D78: 0.1305764341 | F78: =ThreePosition_Slider($Q$3,-$G$4,N$3:$O73,N$4:$O74,B78) -> 0.4269666171 | G78: 0.09573261261
A79: -19 | B79: -0.3443276133 | C79: =ThreePosition_Slider($G$3,$G$4,$C$3:$D$3,$C$4:$D$4,B79) -> 0.4214106211 | D79: 0.1308816679 | F79: =ThreePosition_Slider($Q$3,-$G$4,N$3:$O74,N$4:$O75,B79) -> 0.4303931372 | G79: 0.09735846127
A80: -18 | B80: -0.3249196962 | C80: =ThreePosition_Slider($G$3,$G$4,$C$3:$D$3,$C$4:$D$4,B80) -> 0.4252102735 | D80: 0.1311739227 | F80: =ThreePosition_Slider($Q$3,-$G$4,N$3:$O75,N$4:$O76,B80) -> 0.4338298601 | G80: 0.09900518734
A81: -17 | B81: -0.3057306815 | C81: =ThreePosition_Slider($G$3,$G$4,$C$3:$D$3,$C$4:$D$4,B81) -> 0.4290315981 | D81: 0.1314531604 | F81: =ThreePosition_Slider($Q$3,-$G$4,N$3:$O76,N$4:$O77,B81) -> 0.4372788432 | G81: 0.1006740228
A82: -16 | B82: -0.2867453858 | C82: =ThreePosition_Slider($G$3,$G$4,$C$3:$D$3,$C$4:$D$4,B82) -> 0.4328770448 | D82: 0.1317193075 | F82: =ThreePosition_Slider($Q$3,-$G$4,N$3:$O77,N$4:$O78,B82) -> 0.4407421713 | G82: 0.1023662559
A83: -15 | B83: -0.2679491924 | C83: =ThreePosition_Slider($G$3,$G$4,$C$3:$D$3,$C$4:$D$4,B83) -> 0.4367491219 | D83: 0.1319722547 | F83: =ThreePosition_Slider($Q$3,-$G$4,N$3:$O78,N$4:$O79,B83) -> 0.4442219621 | G83: 0.1040832358
A84: -14 | B84: -0.2493280028 | C84: =ThreePosition_Slider($G$3,$G$4,$C$3:$D$3,$C$4:$D$4,B84) -> 0.4406504031 | D84: 0.1322118553 | F84: =ThreePosition_Slider($Q$3,-$G$4,N$3:$O79,N$4:$O80,B84) -> 0.4477203709 | G84: 0.1058263762
A85: -13 | B85: -0.2308681911 | C85: =ThreePosition_Slider($G$3,$G$4,$C$3:$D$3,$C$4:$D$4,B85) -> 0.4445835343 | D85: 0.1324379232 | F85: =ThreePosition_Slider($Q$3,-$G$4,N$3:$O80,N$4:$O81,B85) -> 0.4512395964 | G85: 0.1075971612
A86: -12 | B86: -0.2125565617 | C86: =ThreePosition_Slider($G$3,$G$4,$C$3:$D$3,$C$4:$D$4,B86) -> 0.4485512408 | D86: 0.1326502318 | F86: =ThreePosition_Slider($Q$3,-$G$4,N$3:$O81,N$4:$O82,B86) -> 0.4547818853 | G86: 0.1093971498
A87: -11 | B87: -0.1943803091 | C87: =ThreePosition_Slider($G$3,$G$4,$C$3:$D$3,$C$4:$D$4,B87) -> 0.4525563357 | D87: 0.1328485115 | F87: =ThreePosition_Slider($Q$3,-$G$4,N$3:$O82,N$4:$O83,B87) -> 0.4583495392 | G87: 0.111227982
A88: -10 | B88: -0.1763269807 | C88: =ThreePosition_Slider($G$3,$G$4,$C$3:$D$3,$C$4:$D$4,B88) -> 0.4566017278 | D88: 0.1330324474 | F88: =ThreePosition_Slider($Q$3,-$G$4,N$3:$O83,N$4:$O84,B88) -> 0.4619449193 | G88: 0.1130913849
A89: -9 | B89: -0.1583844403 | C89: =ThreePosition_Slider($G$3,$G$4,$C$3:$D$3,$C$4:$D$4,B89) -> 0.4606904302 | D89: 0.1332016764 | F89: =ThreePosition_Slider($Q$3,-$G$4,N$3:$O84,N$4:$O85,B89) -> 0.465570454 | G89: 0.1149891795
A90: -8 | B90: -0.1405408347 | C90: =ThreePosition_Slider($G$3,$G$4,$C$3:$D$3,$C$4:$D$4,B90) -> 0.4648255702 | D90: 0.1333557845 | F90: =ThreePosition_Slider($Q$3,-$G$4,N$3:$O85,N$4:$O86,B90) -> 0.4692286444 | G90: 0.116923288
A91: -7 | B91: -0.1227845609 | C91: =ThreePosition_Slider($G$3,$G$4,$C$3:$D$3,$C$4:$D$4,B91) -> 0.4690103992 | D91: 0.1334943032 | F91: =ThreePosition_Slider($Q$3,-$G$4,N$3:$O86,N$4:$O87,B91) -> 0.4729220719 | G91: 0.1188957418
A92: -6 | B92: -0.1051042353 | C92: =ThreePosition_Slider($G$3,$G$4,$C$3:$D$3,$C$4:$D$4,B92) -> 0.4732483029 | D92: 0.1336167055 | F92: =ThreePosition_Slider($Q$3,-$G$4,N$3:$O87,N$4:$O88,B92) -> 0.4766534054 | G92: 0.1209086901
A93: -5 | B93: -0.08748866353 | C93: =ThreePosition_Slider($G$3,$G$4,$C$3:$D$3,$C$4:$D$4,B93) -> 0.4775428139 | D93: 0.1337224018 | F93: =ThreePosition_Slider($Q$3,-$G$4,N$3:$O88,N$4:$O89,B93) -> 0.4804254091 | G93: 0.1229644099
A94: -4 | B94: -0.06992681194 | C94: =ThreePosition_Slider($G$3,$G$4,$C$3:$D$3,$C$4:$D$4,B94) -> 0.4818976231 | D94: 0.1338107348 | F94: =ThreePosition_Slider($Q$3,-$G$4,N$3:$O89,N$4:$O90,B94) -> 0.484240951 | G94: 0.1250653159
A95: -3 | B95: -0.05240777928 | C95: =ThreePosition_Slider($G$3,$G$4,$C$3:$D$3,$C$4:$D$4,B95) -> 0.4863165937 | D95: 0.133880974 | F95: =ThreePosition_Slider($Q$3,-$G$4,N$3:$O90,N$4:$O91,B95) -> 0.4881030114 | G95: 0.1272139722
A96: -2 | B96: -0.03492076949 | C96: =ThreePosition_Slider($G$3,$G$4,$C$3:$D$3,$C$4:$D$4,B96) -> 0.4908037755 | D96: 0.13393231 | F96: =ThreePosition_Slider($Q$3,-$G$4,N$3:$O91,N$4:$O92,B96) -> 0.4920146929 | G96: 0.1294131048
A97: -1 | B97: -0.01745506493 | C97: =ThreePosition_Slider($G$3,$G$4,$C$3:$D$3,$C$4:$D$4,B97) -> 0.4953634205 | D97: 0.1339638472 | F97: =ThreePosition_Slider($Q$3,-$G$4,N$3:$O92,N$4:$O93,B97) -> 0.4959792299 | G97: 0.1316656154
A98: 0 | B98: 0 | C98: =ThreePosition_Slider($G$3,$G$4,$C$3:$D$3,$C$4:$D$4,B98) -> 0.5 | D98: 0.1339745962 | F98: =ThreePosition_Slider($Q$3,-$G$4,N$3:$O93,N$4:$O94,B98) -> 0.5 | G98: 0.1339745962
A99: 1 | B99: 0.01745506493 | C99: =ThreePosition_Slider($G$3,$G$4,$C$3:$D$3,$C$4:$D$4,B99) -> 0.504718223 | D99: 0.1339634653 | F99: =ThreePosition_Slider($Q$3,-$G$4,N$3:$O94,N$4:$O95,B99) -> 0.5040805355 | G99: 0.1363433473
A100: 2 | B100: 0.03492076949 | C100: =ThreePosition_Slider($G$3,$G$4,$C$3:$D$3,$C$4:$D$4,B100) -> 0.5095230561 | D100: 0.1339292509 | F100: =ThreePosition_Slider($Q$3,-$G$4,N$3:$O95,N$4:$O96,B100) -> 0.5082245358 | G100: 0.1387753944
A101: 3 | B101: 0.05240777928 | C101: =ThreePosition_Slider($G$3,$G$4,$C$3:$D$3,$C$4:$D$4,B101) -> 0.5144197456 | D101: 0.1338706263 | F101: =ThreePosition_Slider($Q$3,-$G$4,N$3:$O96,N$4:$O97,B101) -> 0.512435881 | G101: 0.1412745096
A102: 4 | B102: 0.06992681194 | C102: =ThreePosition_Slider($G$3,$G$4,$C$3:$D$3,$C$4:$D$4,B102) -> 0.5194138412 | D102: 0.1337861298 | F102: =ThreePosition_Slider($Q$3,-$G$4,N$3:$O97,N$4:$O98,B102) -> 0.5167186464 | G102: 0.1438447335
A103: 5 | B103: 0.08748866353 | C103: =ThreePosition_Slider($G$3,$G$4,$C$3:$D$3,$C$4:$D$4,B103) -> 0.5245112222 | D103: 0.1336741511 | F103: =ThreePosition_Slider($Q$3,-$G$4,N$3:$O98,N$4:$O99,B103) -> 0.5210771185 | G103: 0.1464904004
A104: 6 | B104: 0.1051042353 | C104: =ThreePosition_Slider($G$3,$G$4,$C$3:$D$3,$C$4:$D$4,B104) -> 0.529718126 | D104: 0.1335329152 | F104: =ThreePosition_Slider($Q$3,-$G$4,N$3:$O99,N$4:$O100,B104) -> 0.5255158115 | G104: 0.1492161662
A105: 7 | B105: 0.1227845609 | C105: =ThreePosition_Slider($G$3,$G$4,$C$3:$D$3,$C$4:$D$4,B105) -> 0.5350411794 | D105: 0.1333604655 | F105: =ThreePosition_Slider($Q$3,-$G$4,N$3:$O100,N$4:$O101,B105) -> 0.5300394862 | G105: 0.1520270387
A106: 8 | B106: 0.1405408347 | C106: =ThreePosition_Slider($G$3,$G$4,$C$3:$D$3,$C$4:$D$4,B106) -> 0.5404874332 | D106: 0.1331546439 | F106: =ThreePosition_Slider($Q$3,-$G$4,N$3:$O101,N$4:$O102,B106) -> 0.5346531695 | G106: 0.1549284123
A107: 9 | B107: 0.1583844403 | C107: =ThreePosition_Slider($G$3,$G$4,$C$3:$D$3,$C$4:$D$4,B107) -> 0.5460643999 | D107: 0.1329130683 | F107: =ThreePosition_Slider($Q$3,-$G$4,N$3:$O102,N$4:$O103,B107) -> 0.5393621766 | G107: 0.1579261063
A108: 10 | B108: 0.1763269807 | C108: =ThreePosition_Slider($G$3,$G$4,$C$3:$D$3,$C$4:$D$4,B108) -> 0.5517800956 | D108: 0.1326331073 | F108: =ThreePosition_Slider($Q$3,-$G$4,N$3:$O103,N$4:$O104,B108) -> 0.5441721337 | G108: 0.1610264075
A109: 11 | B109: 0.1943803091 | C109: =ThreePosition_Slider($G$3,$G$4,$C$3:$D$3,$C$4:$D$4,B109) -> 0.5576430861 | D109: 0.1323118512 | F109: =ThreePosition_Slider($Q$3,-$G$4,N$3:$O104,N$4:$O105,B109) -> 0.5490890044 | G109: 0.1642361187
A110: 12 | B110: 0.2125565617 | C110: =ThreePosition_Slider($G$3,$G$4,$C$3:$D$3,$C$4:$D$4,B110) -> 0.5636625377 | D110: 0.1319460794 | F110: =ThreePosition_Slider($Q$3,-$G$4,N$3:$O105,N$4:$O106,B110) -> 0.5541191165 | G110: 0.1675626121
A111: 13 | B111: 0.2308681911 | C111: =ThreePosition_Slider($G$3,$G$4,$C$3:$D$3,$C$4:$D$4,B111) -> 0.5698482739 | D111: 0.1315322229 | F111: =ThreePosition_Slider($Q$3,-$G$4,N$3:$O106,N$4:$O107,B111) -> 0.559269193 | G111: 0.1710138905
A112: 14 | B112: 0.2493280028 | C112: =ThreePosition_Slider($G$3,$G$4,$C$3:$D$3,$C$4:$D$4,B112) -> 0.5762108381 | D112: 0.1310663213 | F112: =ThreePosition_Slider($Q$3,-$G$4,N$3:$O107,N$4:$O108,B112) -> 0.5645463844 | G112: 0.1745986553
A113: 15 | B113: 0.2679491924 | C113: =ThreePosition_Slider($G$3,$G$4,$C$3:$D$3,$C$4:$D$4,B113) -> 0.5827615629 | D113: 0.1305439735 | F113: =ThreePosition_Slider($Q$3,-$G$4,N$3:$O108,N$4:$O109,B113) -> 0.5699583045 | G113: 0.1783263841
A114: 16 | B114: 0.2867453858 | C114: =ThreePosition_Slider($G$3,$G$4,$C$3:$D$3,$C$4:$D$4,B114) -> 0.5895126476 | D114: 0.1299602818 | F114: =ThreePosition_Slider($Q$3,-$G$4,N$3:$O109,N$4:$O110,B114) -> 0.5755130696 | G114: 0.1822074183
A115: 17 | B115: 0.3057306815 | C115: =ThreePosition_Slider($G$3,$G$4,$C$3:$D$3,$C$4:$D$4,B115) -> 0.5964772448 | D115: 0.1293097866 | F115: =ThreePosition_Slider($Q$3,-$G$4,N$3:$O110,N$4:$O111,B115) -> 0.5812193401 | G115: 0.1862530623
A116: 18 | B116: 0.3249196962 | C116: =ThreePosition_Slider($G$3,$G$4,$C$3:$D$3,$C$4:$D$4,B116) -> 0.6036695568 | D116: 0.1285863913 | F116: =ThreePosition_Slider($Q$3,-$G$4,N$3:$O111,N$4:$O112,B116) -> 0.5870863673 | G116: 0.1904756969
A117: 19 | B117: 0.3443276133 | C117: =ThreePosition_Slider($G$3,$G$4,$C$3:$D$3,$C$4:$D$4,B117) -> 0.6111049431 | D117: 0.1277832758 | F117: =ThreePosition_Slider($Q$3,-$G$4,N$3:$O112,N$4:$O113,B117) -> 0.593124043 | G117: 0.1948889085
A118: 20 | B118: 0.3639702343 | C118: =ThreePosition_Slider($G$3,$G$4,$C$3:$D$3,$C$4:$D$4,B118) -> 0.6188000416 | D118: 0.1268927953 | F118: =ThreePosition_Slider($Q$3,-$G$4,N$3:$O113,N$4:$O114,B118) -> 0.5993429536 | G118: 0.1995076365
A119: 21 | B119: 0.383864035 | C119: =ThreePosition_Slider($G$3,$G$4,$C$3:$D$3,$C$4:$D$4,B119) -> 0.6267729041 | D119: 0.1259063634 | F119: =ThreePosition_Slider($Q$3,-$G$4,N$3:$O114,N$4:$O115,B119) -> 0.6057544391 | G119: 0.2043483429
A120: 22 | B120: 0.4040262258 | C120: =ThreePosition_Slider($G$3,$G$4,$C$3:$D$3,$C$4:$D$4,B120) -> 0.6350431486 | D120: 0.1248143148 | F120: =ThreePosition_Slider($Q$3,-$G$4,N$3:$O115,N$4:$O116,B120) -> 0.6123706566 | G120: 0.2094292069
A121: 23 | B121: 0.4244748162 | C121: =ThreePosition_Slider($G$3,$G$4,$C$3:$D$3,$C$4:$D$4,B121) -> 0.6436321308 | D121: 0.1236057452 | F121: =ThreePosition_Slider($Q$3,-$G$4,N$3:$O116,N$4:$O117,B121) -> 0.6192046486 | G121: 0.21477035
A122: 24 | B122: 0.4452286853 | C122: =ThreePosition_Slider($G$3,$G$4,$C$3:$D$3,$C$4:$D$4,B122) -> 0.6525631379 | D122: 0.1222683223 | F122: =ThreePosition_Slider($Q$3,-$G$4,N$3:$O117,N$4:$O118,B122) -> 0.6262704161 | G122: 0.2203940958
A123: 25 | B123: 0.4663076582 | C123: =ThreePosition_Slider($G$3,$G$4,$C$3:$D$3,$C$4:$D$4,B123) -> 0.6618616065 | D123: 0.1207880641 | F123: =ThreePosition_Slider($Q$3,-$G$4,N$3:$O118,N$4:$O119,B123) -> 0.6335829971 | G123: 0.2263252713
A124: 26 | B124: 0.4877325886 | C124: =ThreePosition_Slider($G$3,$G$4,$C$3:$D$3,$C$4:$D$4,B124) -> 0.6715553701 | D124: 0.1191490757 | F124: =ThreePosition_Slider($Q$3,-$G$4,N$3:$O119,N$4:$O120,B124) -> 0.6411585484 | G124: 0.2325915587
A125: 27 | B125: 0.5095254495 | C125: =ThreePosition_Slider($G$3,$G$4,$C$3:$D$3,$C$4:$D$4,B125) -> 0.6816749381 | D125: 0.1173332372 | F125: =ThreePosition_Slider($Q$3,-$G$4,N$3:$O120,N$4:$O121,B125) -> 0.6490144322 | G125: 0.2392239049
A126: 28 | B126: 0.5317094317 | C126: =ThreePosition_Slider($G$3,$G$4,$C$3:$D$3,$C$4:$D$4,B126) -> 0.6922538132 | D126: 0.1153198318 | F126: =ThreePosition_Slider($Q$3,-$G$4,N$3:$O121,N$4:$O122,B126) -> 0.6571693039 | G126: 0.2462570027
A127: 29 | B127: 0.5543090515 | C127: =ThreePosition_Slider($G$3,$G$4,$C$3:$D$3,$C$4:$D$4,B127) -> 0.7033288501 | D127: 0.1130851 | F127: =ThreePosition_Slider($Q$3,-$G$4,N$3:$O122,N$4:$O123,B127) -> 0.6656432015 | G127: 0.2537298556
A128: 30 | B128: 0.5773502692 | C128: =ThreePosition_Slider($G$3,$G$4,$C$3:$D$3,$C$4:$D$4,B128) -> 0.7149406642 | D128: 0.1106017057 | F128: =ThreePosition_Slider($Q$3,-$G$4,N$3:$O123,N$4:$O124,B128) -> 0.6744576302 | G128: 0.2616864453
A129: 31 | B129: 0.600860619 | C129: =ThreePosition_Slider($G$3,$G$4,$C$3:$D$3,$C$4:$D$4,B129) -> 0.7271340932 | D129: 0.1078380896 | F129: =ThreePosition_Slider($Q$3,-$G$4,N$3:$O124,N$4:$O125,B129) -> 0.6836356415 | G129: 0.2701765216
A130: 32 | B130: 0.6248693519 | C130: =ThreePosition_Slider($G$3,$G$4,$C$3:$D$3,$C$4:$D$4,B130) -> 0.7399587234 | D130: 0.1047576879 | F130: =ThreePosition_Slider($Q$3,-$G$4,N$3:$O125,N$4:$O126,B130) -> 0.6932018962 | G130: 0.2792565428
A131: 33 | B131: 0.6494075932 | C131: =ThreePosition_Slider($G$3,$G$4,$C$3:$D$3,$C$4:$D$4,B131) -> 0.7534694836 | D131: 0.1013179793 | F131: =ThreePosition_Slider($Q$3,-$G$4,N$3:$O126,N$4:$O127,B131) -> 0.7031827034 | G131: 0.2889907978
A132: 34 | B132: 0.6745085168 | C132: =ThreePosition_Slider($G$3,$G$4,$C$3:$D$3,$C$4:$D$4,B132) -> 0.767727318 | D132: 0.09746932024 | F132: =ThreePosition_Slider($Q$3,-$G$4,N$3:$O127,N$4:$O128,B132) -> 0.7136060206 | G132: 0.2994527516
A133: 35 | B133: 0.7002075382 | C133: =ThreePosition_Slider($G$3,$G$4,$C$3:$D$3,$C$4:$D$4,B133) -> 0.7827999438 | D133: 0.09315351165 | F133: =ThreePosition_Slider($Q$3,-$G$4,N$3:$O128,N$4:$O129,B133) -> 0.7245013932 | G133: 0.3107266643
A134: 36 | B134: 0.726542528 | C134: =ThreePosition_Slider($G$3,$G$4,$C$3:$D$3,$C$4:$D$4,B134) -> 0.7987626999 | D134: 0.0883020291 | F134: =ThreePosition_Slider($Q$3,-$G$4,N$3:$O129,N$4:$O130,B134) -> 0.7358998042 | G134: 0.3229095495
A135: 37 | B135: 0.7535540501 | C135: =ThreePosition_Slider($G$3,$G$4,$C$3:$D$3,$C$4:$D$4,B135) -> 0.8156994895 | D135: 0.08283382303 | F135: =ThreePosition_Slider($Q$3,-$G$4,N$3:$O130,N$4:$O131,B135) -> 0.7478333913 | G135: 0.3361135497
A136: 38 | B136: 0.7812856265 | C136: =ThreePosition_Slider($G$3,$G$4,$C$3:$D$3,$C$4:$D$4,B136) -> 0.8337038139 | D136: 0.07665257124 | F136: =ThreePosition_Slider($Q$3,-$G$4,N$3:$O131,N$4:$O132,B136) -> 0.7603349677 | G136: 0.350468833
A137: 39 | B137: =TAN(A137*D_R()) -> 0.8097840332 | C137: =ThreePosition_Slider($G$3,$G$4,$C$3:$D$3,$C$4:$D$4,B137) -> 0.8528798839 | D137: 0.06964322748 | F137: =ThreePosition_Slider($Q$3,-$G$4,N$3:$O132,N$4:$O133,B137) -> 0.7734372596 | G137: 0.3661271378
A138: 40 | B138: 0.8390996312 | C138: =ThreePosition_Slider($G$3,$G$4,$C$3:$D$3,$C$4:$D$4,B138) -> 0.8733437785 | D138: 0.06166766134 | F138: =ThreePosition_Slider($Q$3,-$G$4,N$3:$O133,N$4:$O134,B138) -> 0.7871717291 | G138: 0.3832661279
A139: 41 | B139: 0.8692867378 | C139: =ThreePosition_Slider($G$3,$G$4,$C$3:$D$3,$C$4:$D$4,B139) -> 0.8952245893 | D139: 0.05255911819 | F139: =ThreePosition_Slider($Q$3,-$G$4,N$3:$O134,N$4:$O135,B139) -> 0.8015667955 | G139: 0.4020947631
A140: 42 | B140: 0.9004040443 | C140: =ThreePosition_Slider($G$3,$G$4,$C$3:$D$3,$C$4:$D$4,B140) -> 0.9186654427 | D140: 0.04211513989 | F140: =ThreePosition_Slider($Q$3,-$G$4,N$3:$O135,N$4:$O136,B140) -> 0.8166451809 | G140: 0.4228599403
A141: 43 | B141: 0.9325150861 | C141: =ThreePosition_Slider($G$3,$G$4,$C$3:$D$3,$C$4:$D$4,B141) -> 0.9438242096 | D141: 0.03008846787 | F141: =ThreePosition_Slider($Q$3,-$G$4,N$3:$O136,N$4:$O137,B141) -> 0.8324199762 | G141: 0.4458547273
A142: 44 | B142: 0.9656887748 | C142: =ThreePosition_Slider($G$3,$G$4,$C$3:$D$3,$C$4:$D$4,B142) -> 0.9708735841 | D142: 0.01617529211 | F142: =ThreePosition_Slider($Q$3,-$G$4,N$3:$O137,N$4:$O138,B142) -> 0.8488888337 | G142: 0.4714285782
A143: 45 | B143: 1 | C143: =ThreePosition_Slider($G$3,$G$4,$C$3:$D$3,$C$4:$D$4,B143) -> 1 | D143: 0 | F143: =ThreePosition_Slider($Q$3,-$G$4,N$3:$O138,N$4:$O139,B143) -> 0.8660254038 | G143: 0.5
A144: 46 | B144: 1.035530314 | C144: =ThreePosition_Slider($G$3,$G$4,$C$3:$D$3,$C$4:$D$4,B144) -> 1.031400508 | D144: -0.01890469214 | F144: =ThreePosition_Slider($Q$3,-$G$4,N$3:$O139,N$4:$O140,B144) -> 0.8837666953 | G144: 0.5320721976
A145: 47 | B145: 1.07236871 | C145: =ThreePosition_Slider($G$3,$G$4,$C$3:$D$3,$C$4:$D$4,B145) -> 1.06527617 | D145: -0.04112368142 | F145: =ThreePosition_Slider($Q$3,-$G$4,N$3:$O140,N$4:$O141,B145) -> 0.9019943846 | G145: 0.5682522378
A146: 48 | B146: 1.110612515 | C146: =ThreePosition_Slider($G$3,$G$4,$C$3:$D$3,$C$4:$D$4,B146) -> 1.101819605 | D146: -0.06739334619 | F146: =ThreePosition_Slider($Q$3,-$G$4,N$3:$O141,N$4:$O142,B146) -> 0.920507095 | G146: 0.6092741522
A147: 49 | B147: 1.150368407 | C147: =ThreePosition_Slider($G$3,$G$4,$C$3:$D$3,$C$4:$D$4,B147) -> 1.141192802 | D147: -0.0986455818 | F147: =ThreePosition_Slider($Q$3,-$G$4,N$3:$O142,N$4:$O143,B147) -> 0.9389791659 | G147: 0.6560259806
A148: 50 | B148: 1.191753593 | C148: =ThreePosition_Slider($G$3,$G$4,$C$3:$D$3,$C$4:$D$4,B148) -> 1.183488857 | D148: -0.1360644577 | F148: =ThreePosition_Slider($Q$3,-$G$4,N$3:$O143,N$4:$O144,B148) -> 0.9568991861 | G148: 0.7095797053
A149: 51 | B149: 1.234897157 | C149: =ThreePosition_Slider($G$3,$G$4,$C$3:$D$3,$C$4:$D$4,B149) -> 1.228667287 | D149: -0.1811575446 | F149: =ThreePosition_Slider($Q$3,-$G$4,N$3:$O144,N$4:$O145,B149) -> 0.9734783112 | G149: 0.7712206794
A150: 52 | B150: 1.279941632 | C150: =ThreePosition_Slider($G$3,$G$4,$C$3:$D$3,$C$4:$D$4,B150) -> 1.276446259 | D150: -0.2358419326 | F150: =ThreePosition_Slider($Q$3,-$G$4,N$3:$O145,N$4:$O146,B150) -> 0.9875139203 | G150: 0.8424682342
A151: 53 | B151: 1.327044822 | C151: =ThreePosition_Slider($G$3,$G$4,$C$3:$D$3,$C$4:$D$4,B151) -> 1.326125414 | D151: -0.3025391124 | F151: =ThreePosition_Slider($Q$3,-$G$4,N$3:$O146,N$4:$O147,B151) -> 0.9971887408 | G151: 0.9250692639
A152: 54 | B152: 1.37638192 | C152: =ThreePosition_Slider($G$3,$G$4,$C$3:$D$3,$C$4:$D$4,B152) -> 1.376299491 | D152: -0.3842586536 | F152: =ThreePosition_Slider($Q$3,-$G$4,N$3:$O147,N$4:$O148,B152) -> 0.9997809959 | G152: 1.020927501
A153: 55 | B153: 1.428148007 | C153: =ThreePosition_Slider($G$3,$G$4,$C$3:$D$3,$C$4:$D$4,B153) -> 1.424407505 | D153: -0.484619106 | F153: =ThreePosition_Slider($Q$3,-$G$4,N$3:$O148,N$4:$O149,B153) -> 0.991263532 | G153: 1.13189621
A154: 56 | B154: 1.482560969 | C154: =ThreePosition_Slider($G$3,$G$4,$C$3:$D$3,$C$4:$D$4,B154) -> 1.466055439 | D154: -0.6076905655 | F154: =ThreePosition_Slider($Q$3,-$G$4,N$3:$O149,N$4:$O150,B154) -> 0.9657959708 | G154: 1.259303187
A155: 57 | B155: 1.539864964 | C155: =ThreePosition_Slider($G$3,$G$4,$C$3:$D$3,$C$4:$D$4,B155) -> 1.494085756 | D155: -0.7574274728 | F155: =ThreePosition_Slider($Q$3,-$G$4,N$3:$O150,N$4:$O151,B155) -> 0.9152024833 | G155: 1.402994311
A156: 58 | B156: 1.600334529 | C156: =ThreePosition_Slider($G$3,$G$4,$C$3:$D$3,$C$4:$D$4,B156) -> 1.497528275 | D156: -0.9362916128 | F156: =ThreePosition_Slider($Q$3,-$G$4,N$3:$O151,N$4:$O152,B156) -> 0.8287517228 | G156: 1.55961646
A157: 59 | B157: 1.664279482 | C157: =ThreePosition_Slider($G$3,$G$4,$C$3:$D$3,$C$4:$D$4,B157) -> 1.461007991 | D157: -1.142546001 | F157: =ThreePosition_Slider($Q$3,-$G$4,N$3:$O152,N$4:$O153,B157) -> 0.6939970353 | G157: 1.719977857
A158: 60 | B158: 1.732050808 | C158: =ThreePosition_Slider($G$3,$G$4,$C$3:$D$3,$C$4:$D$4,B158) -> 1.366025404 | D158: -1.366025404 | F158: =ThreePosition_Slider($Q$3,-$G$4,N$3:$O153,N$4:$O154,B158) -> 0.5 | G158: 1.866025404
A159: 61 | B159: 1.804047755 | C159: =ThreePosition_Slider($G$3,$G$4,$C$3:$D$3,$C$4:$D$4,B159) -> 1.196315584 | D159: -1.583761154 | F159: =ThreePosition_Slider($Q$3,-$G$4,N$3:$O154,N$4:$O155,B159) -> 0.2441591099 | G159: 1.969735185
A160: 62 | B160: 1.880726465 | C160: =ThreePosition_Slider($G$3,$G$4,$C$3:$D$3,$C$4:$D$4,B160) -> 0.9482542774 | D160: -1.759931497 | F160: =ThreePosition_Slider($Q$3,-$G$4,N$3:$O155,N$4:$O156,B160) -> -0.05875345478 | G160: 1.998272524
A161: 63 | B161: 1.962610506 | C161: =ThreePosition_Slider($G$3,$G$4,$C$3:$D$3,$C$4:$D$4,B161) -> 0.6414826431 | D161: -1.85596614 | F161: =ThreePosition_Slider($Q$3,-$G$4,N$3:$O156,N$4:$O157,B161) -> -0.3724428051 | G161: 1.928055148
A162: 64 | B162: 2.050303842 | C162: =ThreePosition_Slider($G$3,$G$4,$C$3:$D$3,$C$4:$D$4,B162) -> 0.3183922225 | D162: -1.84939645 | F162: =ThreePosition_Slider($Q$3,-$G$4,N$3:$O157,N$4:$O158,B162) -> -0.6489624721 | G162: 1.760820419
A163: 65 | B163: 2.144506921 | C163: =ThreePosition_Slider($G$3,$G$4,$C$3:$D$3,$C$4:$D$4,B163) -> 0.02695124206 | D163: -1.747061653 | F163: =ThreePosition_Slider($Q$3,-$G$4,N$3:$O158,N$4:$O159,B163) -> -0.8501903663 | G163: 1.526475395
A164: 66 | B164: 2.246036774 | C164: =ThreePosition_Slider($G$3,$G$4,$C$3:$D$3,$C$4:$D$4,B164) -> -0.2005521481 | D164: -1.579626614 | F164: =ThreePosition_Slider($Q$3,-$G$4,N$3:$O159,N$4:$O160,B164) -> -0.9634965622 | G164: 1.267720703
A165: 67 | B165: 2.355852366 | C165: =ThreePosition_Slider($G$3,$G$4,$C$3:$D$3,$C$4:$D$4,B165) -> -0.3555659617 | D165: -1.383719218 | F165: =ThreePosition_Slider($Q$3,-$G$4,N$3:$O160,N$4:$O161,B165) -> -0.9997887645 | G165: 1.020553014
A166: 68 | B166: 2.475086853 | C166: =ThreePosition_Slider($G$3,$G$4,$C$3:$D$3,$C$4:$D$4,B166) -> -0.4468315873 | D166: -1.187755019 | F166: =ThreePosition_Slider($Q$3,-$G$4,N$3:$O161,N$4:$O162,B166) -> -0.9808450153 | G166: 0.8052102262
A167: 69 | B167: 2.605089065 | C167: =ThreePosition_Slider($G$3,$G$4,$C$3:$D$3,$C$4:$D$4,B167) -> -0.4898775568 | D167: -1.007949407 | F167: =ThreePosition_Slider($Q$3,-$G$4,N$3:$O162,N$4:$O163,B167) -> -0.9282211122 | G167: 0.6279710134
A168: 70 | B168: 2.747477419 | C168: =ThreePosition_Slider($G$3,$G$4,$C$3:$D$3,$C$4:$D$4,B168) -> -0.4998841333 | D168: -0.8508030537 | F168: =ThreePosition_Slider($Q$3,-$G$4,N$3:$O163,N$4:$O164,B168) -> -0.8583138853 | G168: 0.4868749915
A169: 71 | B169: 2.904210878 | C169: =ThreePosition_Slider($G$3,$G$4,$C$3:$D$3,$C$4:$D$4,B169) -> -0.4888392677 | D169: -0.717039154 | F169: =ThreePosition_Slider($Q$3,-$G$4,N$3:$O164,N$4:$O165,B169) -> -0.7818668012 | G169: 0.376554489
A170: 72 | B170: 3.077683537 | C170: =ThreePosition_Slider($G$3,$G$4,$C$3:$D$3,$C$4:$D$4,B170) -> -0.4652345874 | D170: -0.604640264 | F170: =ThreePosition_Slider($Q$3,-$G$4,N$3:$O165,N$4:$O166,B170) -> -0.7052251034 | G170: 0.2910165351
A171: 73 | B171: 3.270852618 | C171: =ThreePosition_Slider($G$3,$G$4,$C$3:$D$3,$C$4:$D$4,B171) -> -0.4347195336 | D171: -0.5106391443 | F171: =ThreePosition_Slider($Q$3,-$G$4,N$3:$O166,N$4:$O167,B171) -> -0.6317977318 | G171: 0.2248667043
A172: 74 | B172: 3.487414444 | C172: =ThreePosition_Slider($G$3,$G$4,$C$3:$D$3,$C$4:$D$4,B172) -> -0.4009042093 | D172: -0.4320074253 | F172: =ThreePosition_Slider($Q$3,-$G$4,N$3:$O167,N$4:$O168,B172) -> -0.5631969424 | G172: 0.1736773003
A173: 75 | B173: 3.732050808 | C173: =ThreePosition_Slider($G$3,$G$4,$C$3:$D$3,$C$4:$D$4,B173) -> -0.3660254038 | D173: -0.3660254038 | F173: =ThreePosition_Slider($Q$3,-$G$4,N$3:$O168,N$4:$O169,B173) -> -0.5 | G173: 0.1339745962
A174: 76 | B174: 4.010780934 | C174: =ThreePosition_Slider($G$3,$G$4,$C$3:$D$3,$C$4:$D$4,B174) -> -0.3314269349 | D174: -0.3103913048 | F174: =ThreePosition_Slider($Q$3,-$G$4,N$3:$O169,N$4:$O170,B174) -> -0.4422197976 | G174: 0.1030932877
A175: 77 | B175: 4.331475874 | C175: =ThreePosition_Slider($G$3,$G$4,$C$3:$D$3,$C$4:$D$4,B175) -> -0.297883988 | D175: -0.2632143707 | F175: =ThreePosition_Slider($Q$3,-$G$4,N$3:$O170,N$4:$O171,B175) -> -0.3895822864 | G175: 0.07900833763
A176: 78 | B176: 4.704630109 | C176: =ThreePosition_Slider($G$3,$G$4,$C$3:$D$3,$C$4:$D$4,B176) -> -0.2658148448 | D176: -0.2229642687 | F176: =ThreePosition_Slider($Q$3,-$G$4,N$3:$O171,N$4:$O172,B176) -> -0.3416845427 | G176: 0.06018529844
A177: 79 | B177: 5.144554016 | C177: =ThreePosition_Slider($G$3,$G$4,$C$3:$D$3,$C$4:$D$4,B177) -> -0.2354166699 | D177: -0.1884102315 | F177: =ThreePosition_Slider($Q$3,-$G$4,N$3:$O172,N$4:$O173,B177) -> -0.2980819324 | G177: 0.04545971191
A178: 80 | B178: 5.67128182 | C178: =ThreePosition_Slider($G$3,$G$4,$C$3:$D$3,$C$4:$D$4,B178) -> -0.2067517723 | D178: -0.1585637918 | F178: =ThreePosition_Slider($Q$3,-$G$4,N$3:$O173,N$4:$O174,B178) -> -0.258334183 | G178: 0.0339443857
A179: 81 | B179: 6.313751515 | C179: =ThreePosition_Slider($G$3,$G$4,$C$3:$D$3,$C$4:$D$4,B179) -> -0.1798021013 | D179: -0.1326298059 | F179: =ThreePosition_Slider($Q$3,-$G$4,N$3:$O174,N$4:$O175,B179) -> -0.2220280903 | G179: 0.02495973052
A180: 82 | B180: 7.115369722 | C180: =ThreePosition_Slider($G$3,$G$4,$C$3:$D$3,$C$4:$D$4,B180) -> -0.1545035207 | D180: -0.1099664502 | F180: =ThreePosition_Slider($Q$3,-$G$4,N$3:$O175,N$4:$O176,B180) -> -0.188787199 | G180: 0.01798197904
A181: 83 | B181: 8.144346428 | C181: =ThreePosition_Slider($G$3,$G$4,$C$3:$D$3,$C$4:$D$4,B181) -> -0.1307672454 | D181: -0.09005331529 | F181: =ThreePosition_Slider($Q$3,-$G$4,N$3:$O176,N$4:$O177,B181) -> -0.1582744142 | G181: 0.01260483603
A182: 84 | B182: 9.514364454 | C182: =ThreePosition_Slider($G$3,$G$4,$C$3:$D$3,$C$4:$D$4,B182) -> -0.1084931337 | D182: -0.07246626531 | F182: =ThreePosition_Slider($Q$3,-$G$4,N$3:$O177,N$4:$O178,B182) -> -0.1301909426 | G182: 0.008511059834
A183: 85 | B183: 11.4300523 | C183: =ThreePosition_Slider($G$3,$G$4,$C$3:$D$3,$C$4:$D$4,B183) -> -0.0875778106 | D183: -0.05685773483 | F183: =ThreePosition_Slider($Q$3,-$G$4,N$3:$O178,N$4:$O179,B183) -> -0.1042734762 | G183: 0.00545133746
A184: 86 | B184: 14.30066626 | C184: =ThreePosition_Slider($G$3,$G$4,$C$3:$D$3,$C$4:$D$4,B184) -> -0.06791951285 | D184: -0.0429413091 | F184: =ThreePosition_Slider($Q$3,-$G$4,N$3:$O179,N$4:$O180,B184) -> -0.08029067809 | G184: 0.003228508127
A185: 87 | B185: 19.08113669 | C185: =ThreePosition_Slider($G$3,$G$4,$C$3:$D$3,$C$4:$D$4,B185) -> -0.04942085873 | D185: -0.03047964203 | F185: =ThreePosition_Slider($Q$3,-$G$4,N$3:$O180,N$4:$O181,B185) -> -0.05803954015 | G185: 0.001685714928
A186: 88 | B186: 28.63625328 | C186: =ThreePosition_Slider($G$3,$G$4,$C$3:$D$3,$C$4:$D$4,B186) -> -0.03199031125 | D186: -0.01927496314 | F186: =ThreePosition_Slider($Q$3,-$G$4,N$3:$O181,N$4:$O182,B186) -> -0.03734190379 | G186: 0.0006974521091
A187: 89 | B187: 57.28996163 | C187: =ThreePosition_Slider($G$3,$G$4,$C$3:$D$3,$C$4:$D$4,B187) -> -0.01554282621 | D187: -0.009161590599 | F187: =ThreePosition_Slider($Q$3,-$G$4,N$3:$O182,N$4:$O183,B187) -> -0.01804127764 | G187: 0.0001627570944
A188: 90 | B188: 1.632455228e+16 | C188: =ThreePosition_Slider($G$3,$G$4,$C$3:$D$3,$C$4:$D$4,B188) -> -5.305048427e-17 | D188: -3.062871137e-17 | F188: =ThreePosition_Slider($Q$3,-$G$4,N$3:$O183,N$4:$O184,B188) -> -6.125742275e-17 | G188: 5.251655837e-33

Sheet Sheet3
B3: d2 | C3: 0 | D3: 0 | F3: a2 | G3: 30 | H3: =G3*D_R() -> 0.5235987756 | S3: A1 | T3: 0 | U3: 0
B4: d3 | C4: =COS(PI()/6)-COS(PI()/3) -> 0.3660254038 | D4: =SIN(PI()/6)-SIN(PI()/3) -> -0.3660254038 | F4: a3 | G4: 60 | H4: =G4*D_R() -> 1.047197551 | S4: B1 | T4: 1 | U4: 0
B5: İnvert
B6: d'2 | C6: 0 | D6: 0 | F6: a'2 | G6: =-G3 -> -30 | H6: =-H3 -> -0.5235987756 | S6: A2 | T6: 0 | U6: 0
B7: d'3 | C7: =CRotate(-(C4:D4),-H4) -> 0.1339745962 | D7: 0.5 | F7: a'3 | G7: =-G4 -> -60 | H7: =-H4 -> -1.047197551 | S7: B2 | T7: =COS(PI()/6) -> 0.8660254038 | U7: =SIN(PI()/6) -> 0.5
F9: Inverse Motion | S9: A3 | T9: =C4 -> 0.3660254038 | U9: =D4 -> -0.3660254038
B10: l | C10: X | D10: Y | S10: B3 | T10: =T7 -> 0.8660254038 | U10: =U7 -> 0.5
A11: -90 | B11: =TAN(A11*D_R()) -> -1.632455228e+16 | C11: =ThreePosition_Slider($H$3,$H$4,$C$3:$D$3,$C$4:$D$4,B11) -> 5.305048427e-17 | D11: 3.062871137e-17 | F11: =ThreePosition_Slider($H$6,$H$7,$C$6:$D$6,$C$7:$D$7,B11) -> 6.125742275e-17 | G11: -1.750551946e-33
A12: -89 | B12: =TAN(A12*D_R()) -> -57.28996163 | C12: =ThreePosition_Slider($H$3,$H$4,$C$3:$D$3,$C$4:$D$4,B12) -> 0.01471008085 | D12: 0.008327896875 | F12: =ThreePosition_Slider($H$6,$H$7,$C$6:$D$6,$C$7:$D$7,B12) -> 0.01690325215 | G12: 0.0001428701725
A13: -88 | B13: =TAN(A13*D_R()) -> -28.63625328 | C13: =ThreePosition_Slider($H$3,$H$4,$C$3:$D$3,$C$4:$D$4,B13) -> 0.02865315989 | D13: 0.0159225291 | F13: =ThreePosition_Slider($H$6,$H$7,$C$6:$D$6,$C$7:$D$7,B13) -> 0.03277562892 | G13: 0.0005372652524 | U13: BC | V13: =mag(P21,Q21) -> 0.9867877092 | W13: QC | X13: =mag(K27,L27) -> 1.056650209 | Y13: <QBC | Z13: =angcos(V13,K32,X13) -> 1.640118183 | AA13: =Z13/D_R() -> 93.97184978
A14: -87 | B14: =TAN(A14*D_R()) -> -19.08113669 | C14: =ThreePosition_Slider($H$3,$H$4,$C$3:$D$3,$C$4:$D$4,B14) -> 0.04188921878 | D14: 0.02286970371 | F14: =ThreePosition_Slider($H$6,$H$7,$C$6:$D$6,$C$7:$D$7,B14) -> 0.04771197946 | G14: 0.001138864999 | U14: BD | V14: =mag((1-P21),Q21) -> 1.72438924 | W14: QD | X14: =mag((1-K27),L27) -> 1.918688754 | Y14: <QBD | Z14: =angcos(V14,K32,X14) -> 2.163716958 | AA14: =Z14/D_R() -> 123.9718498
A15: -86 | B15: =TAN(A15*D_R()) -> -14.30066626 | C15: =ThreePosition_Slider($H$3,$H$4,$C$3:$D$3,$C$4:$D$4,B15) -> 0.05447292201 | D15: 0.02924306029 | F15: =ThreePosition_Slider($H$6,$H$7,$C$6:$D$6,$C$7:$D$7,B15) -> 0.06179646442 | G15: 0.001911227904
A16: -85 | B16: =TAN(A16*D_R()) -> -11.4300523 | C16: =ThreePosition_Slider($H$3,$H$4,$C$3:$D$3,$C$4:$D$4,B16) -> 0.06645406681 | D16: 0.03510606488 | F16: =ThreePosition_Slider($H$6,$H$7,$C$6:$D$6,$C$7:$D$7,B16) -> 0.07510394248 | G16: 0.002824289393
A17: -84 | B17: =TAN(A17*D_R()) -> -9.514364454 | C17: =ThreePosition_Slider($H$3,$H$4,$C$3:$D$3,$C$4:$D$4,B17) -> 0.07787801944 | D17: 0.04051363758 | F17: =ThreePosition_Slider($H$6,$H$7,$C$6:$D$6,$C$7:$D$7,B17) -> 0.08770116202 | G17: 0.003853170371 | K17: =CRotate(P21:Q21,H4) -> 0.4868749915 | L17: -0.8583138853
A18: -83 | B18: =TAN(A18*D_R()) -> -8.144346428 | C18: =ThreePosition_Slider($H$3,$H$4,$C$3:$D$3,$C$4:$D$4,B18) -> 0.08878612729 | D18: 0.04551348781 | F18: =ThreePosition_Slider($H$6,$H$7,$C$6:$D$6,$C$7:$D$7,B18) -> 0.09964778564 | G18: 0.004977226986
A19: -82 | B19: =TAN(A19*D_R()) -> -7.115369722 | C19: =ThreePosition_Slider($H$3,$H$4,$C$3:$D$3,$C$4:$D$4,B19) -> 0.09921610157 | D19: 0.05014721465 | F19: =ThreePosition_Slider($H$6,$H$7,$C$6:$D$6,$C$7:$D$7,B19) -> 0.1109972717 | G19: 0.006179288974 | V19: 0
A20: -81 | B20: =TAN(A20*D_R()) -> -6.313751515 | C20: =ThreePosition_Slider($H$3,$H$4,$C$3:$D$3,$C$4:$D$4,B20) -> 0.1092023684 | D20: 0.05445121795 | F20: =ThreePosition_Slider($H$6,$H$7,$C$6:$D$6,$C$7:$D$7,B20) -> 0.1217976342 | G20: 0.007445046204 | I20: For B1 | P20: X2 | Q20: Y2 | U20: S | V20: =0.02*V19 -> 0
A21: -80 | B21: =TAN(A21*D_R()) -> -5.67128182 | C21: =ThreePosition_Slider($H$3,$H$4,$C$3:$D$3,$C$4:$D$4,B21) -> 0.1187763886 | D21: 0.05845745604 | F21: =ThreePosition_Slider($H$6,$H$7,$C$6:$D$6,$C$7:$D$7,B21) -> 0.1320920979 | G21: 0.008762552329 | J21: l | K21: X | L21: Y | O21: B1 | P21: =K22 -> -0.4998841333 | Q21: =L22 -> -0.8508030537 | U21: B | V21: =P21+V20*COS(P25) -> -0.4998841333 | W21: =Q21+V20*SIN(P25) -> -0.8508030537
A22: -79 | B22: =TAN(A22*D_R()) -> -5.144554016 | C22: =ThreePosition_Slider($H$3,$H$4,$C$3:$D$3,$C$4:$D$4,B22) -> 0.1279669467 | D22: 0.06219407848 | F22: =ThreePosition_Slider($H$6,$H$7,$C$6:$D$6,$C$7:$D$7,B22) -> 0.1419196659 | G22: 0.01012182142 | I22: 70 | J22: =TAN(I22*D_R()) -> 2.747477419 | K22: =ThreePosition_Slider($H$3,$H$4,$C$3:$D$3,$C$4:$D$4,J22) -> -0.4998841333 | L22: -0.8508030537 | O22: B2 | P22: =CRotate(P21:Q21,H3) -> -0.007510831531 | Q22: -0.9867591248 | U22: A0B | V22: =mag((P27-V21),(Q27-W21)) -> 0.936330989 | W22: <xBA0 | X22: =ATAN2((P27-V21),(Q27-W21)) -> 1.452719951 | Y22: =X22/D_R() -> 83.234722
A23: -78 | B23: =TAN(A23*D_R()) -> -4.704630109 | C23: =ThreePosition_Slider($H$3,$H$4,$C$3:$D$3,$C$4:$D$4,B23) -> 0.1368004121 | D23: 0.06568595676 | F23: =ThreePosition_Slider($H$6,$H$7,$C$6:$D$6,$C$7:$D$7,B23) -> 0.1513156105 | G23: 0.01151449884 | I23: Inverse Motion | O23: B3 | P23: =K17+C4 -> 0.8529003953 | Q23: =L17+D4 -> -1.224339289 | U23: <A0BQ | V23: =ACOS(K32/V22) -> 1.226984314 | W23: =V23/D_R() -> 70.30102273
A24: -77 | B24: =TAN(A24*D_R()) -> -4.331475874 | C24: =ThreePosition_Slider($H$3,$H$4,$C$3:$D$3,$C$4:$D$4,B24) -> 0.1453009736 | D24: 0.06895513112 | F24: =ThreePosition_Slider($H$6,$H$7,$C$6:$D$6,$C$7:$D$7,B24) -> 0.1603118999 | G24: 0.01293359151 | I24: 77 | J24: =TAN(I24*D_R()) -> 4.331475874 | K24: =ThreePosition_Slider($H$6,$H$7,$C$6:$D$6,$C$7:$D$7,J24) -> -0.3895822864 | L24: 0.07900833763 | U24: <xBQ | V24: =X22+V23 -> 2.679704265 | W24: =V24/D_R() -> 153.5357447 | X24: <xQA0 | Y24: =V24-PI()/2 -> 1.108907938 | Z24: =Y24/D_R() -> 63.53574473
A25: -76 | B25: =TAN(A25*D_R()) -> -4.010780934 | C25: =ThreePosition_Slider($H$3,$H$4,$C$3:$D$3,$C$4:$D$4,B25) -> 0.1534908496 | D25: 0.07202118819 | F25: =ThreePosition_Slider($H$6,$H$7,$C$6:$D$6,$C$7:$D$7,B25) -> 0.1689375691 | G25: 0.01437324624 | K25: X1 | L25: Y1 | P25: =ATAN2((P22-P21),(Q22-Q21)) -> -0.2694108568 | Q25: =P25/D_R() -> -15.43610505
A26: -75 | B26: =TAN(A26*D_R()) -> -3.732050808 | C26: =ThreePosition_Slider($H$3,$H$4,$C$3:$D$3,$C$4:$D$4,B26) -> 0.1613904778 | D26: 0.07490158141 | F26: =ThreePosition_Slider($H$6,$H$7,$C$6:$D$6,$C$7:$D$7,B26) -> 0.1772190444 | G26: 0.01582856661 | J26: T1 | K26: =K27+3*COS(R28) -> 0.5544897938 | L26: =L27+3*SIN(R28) -> 1.975485982 | U26: B | V26: =V21 -> -0.4998841333 | W26: =W21 -> -0.8508030537
A27: -74 | B27: =TAN(A27*D_R()) -> -3.487414444 | C27: =ThreePosition_Slider($H$3,$H$4,$C$3:$D$3,$C$4:$D$4,B27) -> 0.1690186836 | D27: 0.07761190375 | F27: =ThreePosition_Slider($H$6,$H$7,$C$6:$D$6,$C$7:$D$7,B27) -> 0.1851804256 | G27: 0.0172954615 | H27: =ATAN(2.7475) -> 1.221733118 | J27: Q | K27: =(Q21-Q27+K29*P27-K30*P21)/(K29-K30) -> -0.7824284352 | L27: =Q21+K30*(K27-P21) -> -0.7101516795 | O27: A0 | P27: =K24 -> -0.3895822864 | Q27: =L24 -> 0.07900833763 | U27: D | V27: =V26+V14*COS(V24-Z14) -> 1 | W27: =W26+V14*SIN(V24-Z14) -> 0
A28: -73 | B28: =TAN(A28*D_R()) -> -3.270852618 | C28: =ThreePosition_Slider($H$3,$H$4,$C$3:$D$3,$C$4:$D$4,B28) -> 0.1763928324 | D28: 0.08016612075 | F28: =ThreePosition_Slider($H$6,$H$7,$C$6:$D$6,$C$7:$D$7,B28) -> 0.1928437343 | G28: 0.01877051912 | H28: =H27*180/PI() -> 70.00015134 | J28: B1 | K28: =P21 -> -0.4998841333 | L28: =Q21 -> -0.8508030537 | O28: A02 | P28: =CRotate(P27:Q27,H6) -> -0.297883988 | Q28: 0.2632143707 | R28: =ATAN2((P28-P27),(Q28-Q27)) -> 1.108907938 | S28: =R28/D_R() -> 63.53574473 | U28: C | V28: =V26+V13*COS(V24-Z13) -> 0 | W28: =W26+V13*SIN(V24-Z13) -> 0
A29: -72 | B29: =TAN(A29*D_R()) -> -3.077683537 | C29: =ThreePosition_Slider($H$3,$H$4,$C$3:$D$3,$C$4:$D$4,B29) -> 0.1835289657 | D29: 0.08257677019 | F29: =ThreePosition_Slider($H$6,$H$7,$C$6:$D$6,$C$7:$D$7,B29) -> 0.2002291318 | G29: 0.02025090212 | J29: m1 | K29: =TAN(R28) -> 2.008827169 | U29: Q | V29: =V26+K32*COS(V24) -> -0.7824284352 | W29: =W26+K32*SIN(V24) -> -0.7101516795
A30: -71 | B30: =TAN(A30*D_R()) -> -2.904210878 | C30: =ThreePosition_Slider($H$3,$H$4,$C$3:$D$3,$C$4:$D$4,B30) -> 0.190441923 | D30: 0.08485513392 | F30: =ThreePosition_Slider($H$6,$H$7,$C$6:$D$6,$C$7:$D$7,B30) -> 0.2073551102 | G30: 0.0217342599 | J30: m2 | K30: =TAN(R28+PI()/2) -> -0.4978029047 | L30: =K30*K29 -> -1 | U30: B | V30: =V26 -> -0.4998841333 | W30: =W26 -> -0.8508030537
A31: -70 | B31: =TAN(A31*D_R()) -> -2.747477419 | C31: =ThreePosition_Slider($H$3,$H$4,$C$3:$D$3,$C$4:$D$4,B31) -> 0.1971454514 | D31: 0.08701138585 | F31: =ThreePosition_Slider($H$6,$H$7,$C$6:$D$6,$C$7:$D$7,B31) -> 0.2142386621 | G31: 0.02321865514 | N31: 0.4 | O31: To draw the two rectangles. | U31: Q | V31: =V29 -> -0.7824284352 | W31: =W29 -> -0.7101516795
A32: -69 | B32: =TAN(A32*D_R()) -> -2.605089065 | C32: =ThreePosition_Slider($H$3,$H$4,$C$3:$D$3,$C$4:$D$4,B32) -> 0.2036523042 | D32: 0.08905472018 | F32: =ThreePosition_Slider($H$6,$H$7,$C$6:$D$6,$C$7:$D$7,B32) -> 0.2208954291 | G32: 0.0247025021 | J32: QB | K32: =mag((P21-K27),(Q21-L27)) -> 0.3156170014 | N32: 0.2 | P32: =P21+N31*COS(P25)+N32*COS(P25+PI()/2) -> -0.0610802662 | Q32: =Q21+N31*SIN(P25)+N32*SIN(P25+PI()/2) -> -0.7644829159 | U32: T | V32: =V31+K33*COS(V24-PI()/2) -> 0.5544897938 | W32: =W31+K33*SIN(V24-PI()/2) -> 1.975485982
A33: -68 | B33: =TAN(A33*D_R()) -> -2.475086853 | C33: =ThreePosition_Slider($H$3,$H$4,$C$3:$D$3,$C$4:$D$4,B33) -> 0.2099743294 | D33: 0.09099346248 | F33: =ThreePosition_Slider($H$6,$H$7,$C$6:$D$6,$C$7:$D$7,B33) -> 0.2273398346 | G33: 0.02618451461 | J33: QT | K33: =mag((K26-K27),(L26-L27)) -> 3 | P33: =P32-2*N32*COS(P25+PI()/2) -> -0.1675457027 | Q33: =Q32-2*N32*SIN(P25+PI()/2) -> -1.150054065
A34: -67 | B34: =TAN(A34*D_R()) -> -2.355852366 | C34: =ThreePosition_Slider($H$3,$H$4,$C$3:$D$3,$C$4:$D$4,B34) -> 0.2161225494 | D34: 0.0928351664 | F34: =ThreePosition_Slider($H$6,$H$7,$C$6:$D$6,$C$7:$D$7,B34) -> 0.2335852013 | G34: 0.02766366225 | P34: =P33-2*N31*COS(P25) -> -0.9386880004 | Q34: =Q33-2*N31*SIN(P25) -> -0.9371231916
A35: -66 | B35: =TAN(A35*D_R()) -> -2.246036774 | C35: =ThreePosition_Slider($H$3,$H$4,$C$3:$D$3,$C$4:$D$4,B35) -> 0.2221072331 | D35: 0.09458669802 | F35: =ThreePosition_Slider($H$6,$H$7,$C$6:$D$6,$C$7:$D$7,B35) -> 0.2396438553 | G35: 0.02913913323 | P35: =P34+2*N32*COS(P25+PI()/2) -> -0.8322225639 | Q35: =Q34+2*N32*SIN(P25+PI()/2) -> -0.5515520428 | S35: 1 | V35: =V26+N31*COS(P25)+N32*COS(P25+PI()/2) -> -0.0610802662 | W35: =W26+N31*SIN(P25)+N32*SIN(P25+PI()/2) -> -0.7644829159
A36: -65 | B36: =TAN(A36*D_R()) -> -2.144506921 | C36: =ThreePosition_Slider($H$3,$H$4,$C$3:$D$3,$C$4:$D$4,B36) -> 0.2279379605 | D36: 0.09625430954 | F36: =ThreePosition_Slider($H$6,$H$7,$C$6:$D$6,$C$7:$D$7,B36) -> 0.2455272191 | G36: 0.03061030297 | P36: =P32 -> -0.0610802662 | Q36: =Q32 -> -0.7644829159 | S36: 3 | V36: =V35-2*N32*COS(P25+PI()/2) -> -0.1675457027 | W36: =W35-2*N32*SIN(P25+PI()/2) -> -1.150054065
A37: -64 | B37: =TAN(A37*D_R()) -> -2.050303842 | C37: =ThreePosition_Slider($H$3,$H$4,$C$3:$D$3,$C$4:$D$4,B37) -> 0.2336236814 | D37: 0.09784370397 | F37: =ThreePosition_Slider($H$6,$H$7,$C$6:$D$6,$C$7:$D$7,B37) -> 0.251245895 | G37: 0.03207670745 | V37: =V36-2*N31*COS(P25) -> -0.9386880004 | W37: =W36-2*N31*SIN(P25) -> -0.9371231916
A38: -63 | B38: =TAN(A38*D_R()) -> -1.962610506 | C38: =ThreePosition_Slider($H$3,$H$4,$C$3:$D$3,$C$4:$D$4,B38) -> 0.2391727684 | D38: 0.0993600919 | F38: =ThreePosition_Slider($H$6,$H$7,$C$6:$D$6,$C$7:$D$7,B38) -> 0.2568097393 | G38: 0.03353802051 | P38: =P27+N31*COS(R28)+N32*COS(R28+PI()/2) -> -0.3903690333 | Q38: =Q27+N31*SIN(R28)+N32*SIN(R28+PI()/2) -> 0.5262212411 | V38: =V37+2*N32*COS(P25+PI()/2) -> -0.8322225639 | W38: =W37+2*N32*SIN(P25+PI()/2) -> -0.5515520428
A39: -62 | B39: =TAN(A39*D_R()) -> -1.880726465 | C39: =ThreePosition_Slider($H$3,$H$4,$C$3:$D$3,$C$4:$D$4,B39) -> 0.2445930653 | D39: 0.1008082415 | F39: =ThreePosition_Slider($H$6,$H$7,$C$6:$D$6,$C$7:$D$7,B39) -> 0.2622279289 | G39: 0.03499403457 | P39: =P38-2*N32*COS(R28+PI()/2) -> -0.03228401172 | Q39: =Q38-2*N32*SIN(R28+PI()/2) -> 0.3479654772 | V39: =V35 -> -0.0610802662 | W39: =W35 -> -0.7644829159
A40: -61 | B40: =TAN(A40*D_R()) -> -1.804047755 | C40: =ThreePosition_Slider($H$3,$H$4,$C$3:$D$3,$C$4:$D$4,B40) -> 0.2498919301 | D40: 0.1021925228 | F40: =ThreePosition_Slider($H$6,$H$7,$C$6:$D$6,$C$7:$D$7,B40) -> 0.267509021 | G40: 0.03644464421 | P40: =P39-2*N31*COS(R28) -> -0.3887955394 | Q40: =Q39-2*N31*SIN(R28) -> -0.3682045658
A41: -60 | B41: =TAN(A41*D_R()) -> -1.732050808 | C41: =ThreePosition_Slider($H$3,$H$4,$C$3:$D$3,$C$4:$D$4,B41) -> 0.255076275 | D41: 0.1035169465 | F41: =ThreePosition_Slider($H$6,$H$7,$C$6:$D$6,$C$7:$D$7,B41) -> 0.2726610072 | G41: 0.03788983213 | P41: =P40+2*N32*COS(R28+PI()/2) -> -0.746880561 | Q41: =Q40+2*N32*SIN(R28+PI()/2) -> -0.189948802 | V41: =P27+N31*COS(V24-PI()/2)+N32*COS(V24) -> -0.3903690333 | W41: =Q27+N31*SIN(V24-PI()/2)+N32*SIN(V24) -> 0.5262212411
A42: -59 | B42: =TAN(A42*D_R()) -> -1.664279482 | C42: =ThreePosition_Slider($H$3,$H$4,$C$3:$D$3,$C$4:$D$4,B42) -> 0.2601526023 | D42: 0.1047851987 | F42: =ThreePosition_Slider($H$6,$H$7,$C$6:$D$6,$C$7:$D$7,B42) -> 0.2776913618 | G42: 0.03932965718 | P42: =P38 -> -0.3903690333 | Q42: =Q38 -> 0.5262212411 | V42: =V41-2*N32*COS(V24) -> -0.03228401172 | W42: =W41-2*N32*SIN(V24) -> 0.3479654772
A43: -58 | B43: =TAN(A43*D_R()) -> -1.600334529 | C43: =ThreePosition_Slider($H$3,$H$4,$C$3:$D$3,$C$4:$D$4,B43) -> 0.2651270374 | D43: 0.1060006717 | F43: =ThreePosition_Slider($H$6,$H$7,$C$6:$D$6,$C$7:$D$7,B43) -> 0.2826070855 | G43: 0.04076424419 | V43: =V42-2*N31*COS(V24-PI()/2) -> -0.3887955394 | W43: =W42-2*N31*SIN(V24-PI()/2) -> -0.3682045658
A44: -57 | B44: =TAN(A44*D_R()) -> -1.539864964 | C44: =ThreePosition_Slider($H$3,$H$4,$C$3:$D$3,$C$4:$D$4,B44) -> 0.2700053584 | D44: 0.1071664914 | F44: =ThreePosition_Slider($H$6,$H$7,$C$6:$D$6,$C$7:$D$7,B44) -> 0.2874147453 | G44: 0.04219377523 | P44: =P21-S35*COS(P25) -> -1.463812005 | Q44: =Q21-S35*SIN(P25) -> -0.5846394624 | V44: =V43+2*N32*COS(V24) -> -0.746880561 | W44: =W43+2*N32*SIN(V24) -> -0.189948802
A45: -56 | B45: =TAN(A45*D_R()) -> -1.482560969 | C45: =ThreePosition_Slider($H$3,$H$4,$C$3:$D$3,$C$4:$D$4,B45) -> 0.2747930237 | D45: 0.1082855414 | F45: =ThreePosition_Slider($H$6,$H$7,$C$6:$D$6,$C$7:$D$7,B45) -> 0.29212051 | G45: 0.04361848218 | P45: =P21+S36*COS(P25) -> 2.391899483 | Q45: =Q21+S36*SIN(P25) -> -1.649293828 | V45: =V41 -> -0.3903690333 | W45: =W41 -> 0.5262212411
A46: -55 | B46: =TAN(A46*D_R()) -> -1.428148007 | C46: =ThreePosition_Slider($H$3,$H$4,$C$3:$D$3,$C$4:$D$4,B46) -> 0.279495197 | D46: 0.1093604849 | F46: =ThreePosition_Slider($H$6,$H$7,$C$6:$D$6,$C$7:$D$7,B46) -> 0.2967301833 | G46: 0.04503864039
A47: -54 | B47: =TAN(A47*D_R()) -> -1.37638192 | C47: =ThreePosition_Slider($H$3,$H$4,$C$3:$D$3,$C$4:$D$4,B47) -> 0.28411677 | D47: 0.1103937844 | F47: =ThreePosition_Slider($H$6,$H$7,$C$6:$D$6,$C$7:$D$7,B47) -> 0.3012492326 | G47: 0.04645456331
A48: -53 | B48: =TAN(A48*D_R()) -> -1.327044822 | C48: =ThreePosition_Slider($H$3,$H$4,$C$3:$D$3,$C$4:$D$4,B48) -> 0.2886623839 | D48: 0.1113877187 | F48: =ThreePosition_Slider($H$6,$H$7,$C$6:$D$6,$C$7:$D$7,B48) -> 0.3056828169 | G48: 0.04786659787
A49: -52 | B49: =TAN(A49*D_R()) -> -1.279941632 | C49: =ThreePosition_Slider($H$3,$H$4,$C$3:$D$3,$C$4:$D$4,B49) -> 0.2931364483 | D49: 0.112344399 | F49: =ThreePosition_Slider($H$6,$H$7,$C$6:$D$6,$C$7:$D$7,B49) -> 0.3100358105 | G49: 0.04927512064
A50: -51 | B50: =TAN(A50*D_R()) -> -1.234897157 | C50: =ThreePosition_Slider($H$3,$H$4,$C$3:$D$3,$C$4:$D$4,B50) -> 0.2975431592 | D50: 0.1132657825 | F50: =ThreePosition_Slider($H$6,$H$7,$C$6:$D$6,$C$7:$D$7,B50) -> 0.3143128259 | G50: 0.05068053454
A51: -50 | B51: =TAN(A51*D_R()) -> -1.191753593 | C51: =ThreePosition_Slider($H$3,$H$4,$C$3:$D$3,$C$4:$D$4,B51) -> 0.3018865156 | D51: 0.1141536856 | F51: =ThreePosition_Slider($H$6,$H$7,$C$6:$D$6,$C$7:$D$7,B51) -> 0.3185182343 | G51: 0.05208326611
A52: -49 | B52: =TAN(A52*D_R()) -> -1.150368407 | C52: =ThreePosition_Slider($H$3,$H$4,$C$3:$D$3,$C$4:$D$4,B52) -> 0.3061703342 | D52: 0.1150097947 | F52: =ThreePosition_Slider($H$6,$H$7,$C$6:$D$6,$C$7:$D$7,B52) -> 0.3226561846 | G52: 0.0534837632
A53: -48 | B53: =TAN(A53*D_R()) -> -1.110612515 | C53: =ThreePosition_Slider($H$3,$H$4,$C$3:$D$3,$C$4:$D$4,B53) -> 0.3103982639 | D53: 0.1158356769 | F53: =ThreePosition_Slider($H$6,$H$7,$C$6:$D$6,$C$7:$D$7,B53) -> 0.3267306203 | G53: 0.05488249313
A54: -47 | B54: =TAN(A54*D_R()) -> -1.07236871 | C54: =ThreePosition_Slider($H$3,$H$4,$C$3:$D$3,$C$4:$D$4,B54) -> 0.3145737986 | D54: 0.116632789 | F54: =ThreePosition_Slider($H$6,$H$7,$C$6:$D$6,$C$7:$D$7,B54) -> 0.3307452955 | G54: 0.05627994113
A55: -46 | B55: =TAN(A55*D_R()) -> -1.035530314 | C55: =ThreePosition_Slider($H$3,$H$4,$C$3:$D$3,$C$4:$D$4,B55) -> 0.3187002894 | D55: 0.1174024863 | F55: =ThreePosition_Slider($H$6,$H$7,$C$6:$D$6,$C$7:$D$7,B55) -> 0.33470379 | G55: 0.05767660913
A56: -45 | B56: =TAN(A56*D_R()) -> -1 | C56: =ThreePosition_Slider($H$3,$H$4,$C$3:$D$3,$C$4:$D$4,B56) -> 0.3227809556 | D56: 0.1181460296 | F56: =ThreePosition_Slider($H$6,$H$7,$C$6:$D$6,$C$7:$D$7,B56) -> 0.3386095222 | G56: 0.0590730148
A57: -44 | B57: =TAN(A57*D_R()) -> -0.9656887748 | C57: =ThreePosition_Slider($H$3,$H$4,$C$3:$D$3,$C$4:$D$4,B57) -> 0.3268188955 | D57: 0.1188645926 | F57: =ThreePosition_Slider($H$6,$H$7,$C$6:$D$6,$C$7:$D$7,B57) -> 0.3424657622 | G57: 0.0604696909
A58: -43 | B58: =TAN(A58*D_R()) -> -0.9325150861 | C58: =ThreePosition_Slider($H$3,$H$4,$C$3:$D$3,$C$4:$D$4,B58) -> 0.3308170959 | D58: 0.1195592679 | F58: =ThreePosition_Slider($H$6,$H$7,$C$6:$D$6,$C$7:$D$7,B58) -> 0.346275643 | G58: 0.06186718474
A59: -42 | B59: =TAN(A59*D_R()) -> -0.9004040443 | C59: =ThreePosition_Slider($H$3,$H$4,$C$3:$D$3,$C$4:$D$4,B59) -> 0.3347784418 | D59: 0.1202310723 | F59: =ThreePosition_Slider($H$6,$H$7,$C$6:$D$6,$C$7:$D$7,B59) -> 0.3500421714 | G59: 0.06326605792
A60: -41 | B60: =TAN(A60*D_R()) -> -0.8692867378 | C60: =ThreePosition_Slider($H$3,$H$4,$C$3:$D$3,$C$4:$D$4,B60) -> 0.3387057243 | D60: 0.1208809528 | F60: =ThreePosition_Slider($H$6,$H$7,$C$6:$D$6,$C$7:$D$7,B60) -> 0.3537682381 | G60: 0.06466688622
A61: -40 | B61: =TAN(A61*D_R()) -> -0.8390996312 | C61: =ThreePosition_Slider($H$3,$H$4,$C$3:$D$3,$C$4:$D$4,B61) -> 0.3426016494 | D61: 0.1215097901 | F61: =ThreePosition_Slider($H$6,$H$7,$C$6:$D$6,$C$7:$D$7,B61) -> 0.3574566268 | G61: 0.06607025964
A62: -39 | B62: =TAN(A62*D_R()) -> -0.8097840332 | C62: =ThreePosition_Slider($H$3,$H$4,$C$3:$D$3,$C$4:$D$4,B62) -> 0.3464688452 | D62: 0.1221184038 | F62: =ThreePosition_Slider($H$6,$H$7,$C$6:$D$6,$C$7:$D$7,B62) -> 0.3611100235 | G62: 0.06747678264
A63: -38 | B63: =TAN(A63*D_R()) -> -0.7812856265 | C63: =ThreePosition_Slider($H$3,$H$4,$C$3:$D$3,$C$4:$D$4,B63) -> 0.3503098695 | D63: 0.1227075555 | F63: =ThreePosition_Slider($H$6,$H$7,$C$6:$D$6,$C$7:$D$7,B63) -> 0.3647310239 | G63: 0.06888707443
A64: -37 | B64: =TAN(A64*D_R()) -> -0.7535540501 | C64: =ThreePosition_Slider($H$3,$H$4,$C$3:$D$3,$C$4:$D$4,B64) -> 0.3541272164 | D64: 0.1232779526 | F64: =ThreePosition_Slider($H$6,$H$7,$C$6:$D$6,$C$7:$D$7,B64) -> 0.3683221419 | G64: 0.07030176949
A65: -36 | B65: =TAN(A65*D_R()) -> -0.726542528 | C65: =ThreePosition_Slider($H$3,$H$4,$C$3:$D$3,$C$4:$D$4,B65) -> 0.3579233231 | D65: 0.1238302513 | F65: =ThreePosition_Slider($H$6,$H$7,$C$6:$D$6,$C$7:$D$7,B65) -> 0.371885816 | G65: 0.07172151816
A66: -35 | B66: =TAN(A66*D_R()) -> -0.7002075382 | C66: =ThreePosition_Slider($H$3,$H$4,$C$3:$D$3,$C$4:$D$4,B66) -> 0.3617005761 | D66: 0.1243650593 | F66: =ThreePosition_Slider($H$6,$H$7,$C$6:$D$6,$C$7:$D$7,B66) -> 0.3754244171 | G66: 0.07314698735
A67: -34 | B67: =TAN(A67*D_R()) -> -0.6745085168 | C67: =ThreePosition_Slider($H$3,$H$4,$C$3:$D$3,$C$4:$D$4,B67) -> 0.3654613172 | D67: 0.1248829385 | F67: =ThreePosition_Slider($H$6,$H$7,$C$6:$D$6,$C$7:$D$7,B67) -> 0.3789402541 | G67: 0.07457886135
A68: -33 | B68: =TAN(A68*D_R()) -> -0.6494075932 | C68: =ThreePosition_Slider($H$3,$H$4,$C$3:$D$3,$C$4:$D$4,B68) -> 0.3692078495 | D68: 0.1253844072 | F68: =ThreePosition_Slider($H$6,$H$7,$C$6:$D$6,$C$7:$D$7,B68) -> 0.3824355806 | G68: 0.07601784286
A69: -32 | B69: =TAN(A69*D_R()) -> -0.6248693519 | C69: =ThreePosition_Slider($H$3,$H$4,$C$3:$D$3,$C$4:$D$4,B69) -> 0.3729424428 | D69: 0.1258699421 | F69: =ThreePosition_Slider($H$6,$H$7,$C$6:$D$6,$C$7:$D$7,B69) -> 0.3859126006 | G69: 0.07746465396
A70: -31 | B70: =TAN(A70*D_R()) -> -0.600860619 | C70: =ThreePosition_Slider($H$3,$H$4,$C$3:$D$3,$C$4:$D$4,B70) -> 0.376667339 | D70: 0.1263399799 | F70: =ThreePosition_Slider($H$6,$H$7,$C$6:$D$6,$C$7:$D$7,B70) -> 0.3893734743 | G70: 0.07892003738
A71: -30 | B71: =TAN(A71*D_R()) -> -0.5773502692 | C71: =ThreePosition_Slider($H$3,$H$4,$C$3:$D$3,$C$4:$D$4,B71) -> 0.3803847577 | D71: 0.1267949192 | F71: =ThreePosition_Slider($H$6,$H$7,$C$6:$D$6,$C$7:$D$7,B71) -> 0.392820323 | G71: 0.08038475773
A72: -29 | B72: =TAN(A72*D_R()) -> -0.5543090515 | C72: =ThreePosition_Slider($H$3,$H$4,$C$3:$D$3,$C$4:$D$4,B72) -> 0.3840969014 | D72: 0.1272351218 | F72: =ThreePosition_Slider($H$6,$H$7,$C$6:$D$6,$C$7:$D$7,B72) -> 0.3962552351 | G72: 0.08185960296
A73: -28 | B73: =TAN(A73*D_R()) -> -0.5317094317 | C73: =ThreePosition_Slider($H$3,$H$4,$C$3:$D$3,$C$4:$D$4,B73) -> 0.3878059604 | D73: 0.1276609137 | F73: =ThreePosition_Slider($H$6,$H$7,$C$6:$D$6,$C$7:$D$7,B73) -> 0.3996802703 | G73: 0.08334538589
A74: -27 | B74: =TAN(A74*D_R()) -> -0.5095254495 | C74: =ThreePosition_Slider($H$3,$H$4,$C$3:$D$3,$C$4:$D$4,B74) -> 0.3915141179 | D74: 0.128072586 | F74: =ThreePosition_Slider($H$6,$H$7,$C$6:$D$6,$C$7:$D$7,B74) -> 0.403097465 | G74: 0.0848429459
A75: -26 | B75: =TAN(A75*D_R()) -> -0.4877325886 | C75: =ThreePosition_Slider($H$3,$H$4,$C$3:$D$3,$C$4:$D$4,B75) -> 0.3952235553 | D75: 0.1284703964 | F75: =ThreePosition_Slider($H$6,$H$7,$C$6:$D$6,$C$7:$D$7,B75) -> 0.4065088373 | G75: 0.0863531507
A76: -25 | B76: =TAN(A76*D_R()) -> -0.4663076582 | C76: =ThreePosition_Slider($H$3,$H$4,$C$3:$D$3,$C$4:$D$4,B76) -> 0.398936457 | D76: 0.128854569 | F76: =ThreePosition_Slider($H$6,$H$7,$C$6:$D$6,$C$7:$D$7,B76) -> 0.4099163908 | G76: 0.08787689834
A77: -24 | B77: =TAN(A77*D_R()) -> -0.4452286853 | C77: =ThreePosition_Slider($H$3,$H$4,$C$3:$D$3,$C$4:$D$4,B77) -> 0.4026550157 | D77: 0.1292252953 | F77: =ThreePosition_Slider($H$6,$H$7,$C$6:$D$6,$C$7:$D$7,B77) -> 0.4133221202 | G77: 0.08941511929
A78: -23 | B78: =TAN(A78*D_R()) -> -0.4244748162 | C78: =ThreePosition_Slider($H$3,$H$4,$C$3:$D$3,$C$4:$D$4,B78) -> 0.406381437 | D78: 0.1295827343 | F78: =ThreePosition_Slider($H$6,$H$7,$C$6:$D$6,$C$7:$D$7,B78) -> 0.4167280153 | G78: 0.0909687787
A79: -22 | B79: =TAN(A79*D_R()) -> -0.4040262258 | C79: =ThreePosition_Slider($H$3,$H$4,$C$3:$D$3,$C$4:$D$4,B79) -> 0.4101179454 | D79: 0.1299270129 | F79: =ThreePosition_Slider($H$6,$H$7,$C$6:$D$6,$C$7:$D$7,B79) -> 0.4201360657 | G79: 0.09253887889
A80: -21 | B80: =TAN(A80*D_R()) -> -0.383864035 | C80: =ThreePosition_Slider($H$3,$H$4,$C$3:$D$3,$C$4:$D$4,B80) -> 0.4138667885 | D80: 0.1302582254 | F80: =ThreePosition_Slider($H$6,$H$7,$C$6:$D$6,$C$7:$D$7,B80) -> 0.4235482653 | G80: 0.09412646196
A81: -20 | B81: =TAN(A81*D_R()) -> -0.3639702343 | C81: =ThreePosition_Slider($H$3,$H$4,$C$3:$D$3,$C$4:$D$4,B81) -> 0.4176302433 | D81: 0.1305764341 | F81: =ThreePosition_Slider($H$6,$H$7,$C$6:$D$6,$C$7:$D$7,B81) -> 0.4269666171 | G81: 0.09573261261
A82: -19 | B82: =TAN(A82*D_R()) -> -0.3443276133 | C82: =ThreePosition_Slider($H$3,$H$4,$C$3:$D$3,$C$4:$D$4,B82) -> 0.4214106211 | D82: 0.1308816679 | F82: =ThreePosition_Slider($H$6,$H$7,$C$6:$D$6,$C$7:$D$7,B82) -> 0.4303931372 | G82: 0.09735846127
A83: -18 | B83: =TAN(A83*D_R()) -> -0.3249196962 | C83: =ThreePosition_Slider($H$3,$H$4,$C$3:$D$3,$C$4:$D$4,B83) -> 0.4252102735 | D83: 0.1311739227 | F83: =ThreePosition_Slider($H$6,$H$7,$C$6:$D$6,$C$7:$D$7,B83) -> 0.4338298601 | G83: 0.09900518734
A84: -17 | B84: =TAN(A84*D_R()) -> -0.3057306815 | C84: =ThreePosition_Slider($H$3,$H$4,$C$3:$D$3,$C$4:$D$4,B84) -> 0.4290315981 | D84: 0.1314531604 | F84: =ThreePosition_Slider($H$6,$H$7,$C$6:$D$6,$C$7:$D$7,B84) -> 0.4372788432 | G84: 0.1006740228
A85: -16 | B85: =TAN(A85*D_R()) -> -0.2867453858 | C85: =ThreePosition_Slider($H$3,$H$4,$C$3:$D$3,$C$4:$D$4,B85) -> 0.4328770448 | D85: 0.1317193075 | F85: =ThreePosition_Slider($H$6,$H$7,$C$6:$D$6,$C$7:$D$7,B85) -> 0.4407421713 | G85: 0.1023662559
A86: -15 | B86: =TAN(A86*D_R()) -> -0.2679491924 | C86: =ThreePosition_Slider($H$3,$H$4,$C$3:$D$3,$C$4:$D$4,B86) -> 0.4367491219 | D86: 0.1319722547 | F86: =ThreePosition_Slider($H$6,$H$7,$C$6:$D$6,$C$7:$D$7,B86) -> 0.4442219621 | G86: 0.1040832358
A87: -14 | B87: =TAN(A87*D_R()) -> -0.2493280028 | C87: =ThreePosition_Slider($H$3,$H$4,$C$3:$D$3,$C$4:$D$4,B87) -> 0.4406504031 | D87: 0.1322118553 | F87: =ThreePosition_Slider($H$6,$H$7,$C$6:$D$6,$C$7:$D$7,B87) -> 0.4477203709 | G87: 0.1058263762
A88: -13 | B88: =TAN(A88*D_R()) -> -0.2308681911 | C88: =ThreePosition_Slider($H$3,$H$4,$C$3:$D$3,$C$4:$D$4,B88) -> 0.4445835343 | D88: 0.1324379232 | F88: =ThreePosition_Slider($H$6,$H$7,$C$6:$D$6,$C$7:$D$7,B88) -> 0.4512395964 | G88: 0.1075971612
A89: -12 | B89: =TAN(A89*D_R()) -> -0.2125565617 | C89: =ThreePosition_Slider($H$3,$H$4,$C$3:$D$3,$C$4:$D$4,B89) -> 0.4485512408 | D89: 0.1326502318 | F89: =ThreePosition_Slider($H$6,$H$7,$C$6:$D$6,$C$7:$D$7,B89) -> 0.4547818853 | G89: 0.1093971498
A90: -11 | B90: =TAN(A90*D_R()) -> -0.1943803091 | C90: =ThreePosition_Slider($H$3,$H$4,$C$3:$D$3,$C$4:$D$4,B90) -> 0.4525563357 | D90: 0.1328485115 | F90: =ThreePosition_Slider($H$6,$H$7,$C$6:$D$6,$C$7:$D$7,B90) -> 0.4583495392 | G90: 0.111227982
A91: -10 | B91: =TAN(A91*D_R()) -> -0.1763269807 | C91: =ThreePosition_Slider($H$3,$H$4,$C$3:$D$3,$C$4:$D$4,B91) -> 0.4566017278 | D91: 0.1330324474 | F91: =ThreePosition_Slider($H$6,$H$7,$C$6:$D$6,$C$7:$D$7,B91) -> 0.4619449193 | G91: 0.1130913849
A92: -9 | B92: =TAN(A92*D_R()) -> -0.1583844403 | C92: =ThreePosition_Slider($H$3,$H$4,$C$3:$D$3,$C$4:$D$4,B92) -> 0.4606904302 | D92: 0.1332016764 | F92: =ThreePosition_Slider($H$6,$H$7,$C$6:$D$6,$C$7:$D$7,B92) -> 0.465570454 | G92: 0.1149891795
A93: -8 | B93: =TAN(A93*D_R()) -> -0.1405408347 | C93: =ThreePosition_Slider($H$3,$H$4,$C$3:$D$3,$C$4:$D$4,B93) -> 0.4648255702 | D93: 0.1333557845 | F93: =ThreePosition_Slider($H$6,$H$7,$C$6:$D$6,$C$7:$D$7,B93) -> 0.4692286444 | G93: 0.116923288
A94: -7 | B94: =TAN(A94*D_R()) -> -0.1227845609 | C94: =ThreePosition_Slider($H$3,$H$4,$C$3:$D$3,$C$4:$D$4,B94) -> 0.4690103992 | D94: 0.1334943032 | F94: =ThreePosition_Slider($H$6,$H$7,$C$6:$D$6,$C$7:$D$7,B94) -> 0.4729220719 | G94: 0.1188957418
A95: -6 | B95: =TAN(A95*D_R()) -> -0.1051042353 | C95: =ThreePosition_Slider($H$3,$H$4,$C$3:$D$3,$C$4:$D$4,B95) -> 0.4732483029 | D95: 0.1336167055 | F95: =ThreePosition_Slider($H$6,$H$7,$C$6:$D$6,$C$7:$D$7,B95) -> 0.4766534054 | G95: 0.1209086901
A96: -5 | B96: =TAN(A96*D_R()) -> -0.08748866353 | C96: =ThreePosition_Slider($H$3,$H$4,$C$3:$D$3,$C$4:$D$4,B96) -> 0.4775428139 | D96: 0.1337224018 | F96: =ThreePosition_Slider($H$6,$H$7,$C$6:$D$6,$C$7:$D$7,B96) -> 0.4804254091 | G96: 0.1229644099
A97: -4 | B97: =TAN(A97*D_R()) -> -0.06992681194 | C97: =ThreePosition_Slider($H$3,$H$4,$C$3:$D$3,$C$4:$D$4,B97) -> 0.4818976231 | D97: 0.1338107348 | F97: =ThreePosition_Slider($H$6,$H$7,$C$6:$D$6,$C$7:$D$7,B97) -> 0.484240951 | G97: 0.1250653159
A98: -3 | B98: =TAN(A98*D_R()) -> -0.05240777928 | C98: =ThreePosition_Slider($H$3,$H$4,$C$3:$D$3,$C$4:$D$4,B98) -> 0.4863165937 | D98: 0.133880974 | F98: =ThreePosition_Slider($H$6,$H$7,$C$6:$D$6,$C$7:$D$7,B98) -> 0.4881030114 | G98: 0.1272139722
A99: -2 | B99: =TAN(A99*D_R()) -> -0.03492076949 | C99: =ThreePosition_Slider($H$3,$H$4,$C$3:$D$3,$C$4:$D$4,B99) -> 0.4908037755 | D99: 0.13393231 | F99: =ThreePosition_Slider($H$6,$H$7,$C$6:$D$6,$C$7:$D$7,B99) -> 0.4920146929 | G99: 0.1294131048
A100: -1 | B100: =TAN(A100*D_R()) -> -0.01745506493 | C100: =ThreePosition_Slider($H$3,$H$4,$C$3:$D$3,$C$4:$D$4,B100) -> 0.4953634205 | D100: 0.1339638472 | F100: =ThreePosition_Slider($H$6,$H$7,$C$6:$D$6,$C$7:$D$7,B100) -> 0.4959792299 | G100: 0.1316656154
A101: 0 | B101: =TAN(A101*D_R()) -> 0 | C101: =ThreePosition_Slider($H$3,$H$4,$C$3:$D$3,$C$4:$D$4,B101) -> 0.5 | D101: 0.1339745962 | F101: =ThreePosition_Slider($H$6,$H$7,$C$6:$D$6,$C$7:$D$7,B101) -> 0.5 | G101: 0.1339745962
A102: 1 | B102: =TAN(A102*D_R()) -> 0.01745506493 | C102: =ThreePosition_Slider($H$3,$H$4,$C$3:$D$3,$C$4:$D$4,B102) -> 0.504718223 | D102: 0.1339634653 | F102: =ThreePosition_Slider($H$6,$H$7,$C$6:$D$6,$C$7:$D$7,B102) -> 0.5040805355 | G102: 0.1363433473
A103: 2 | B103: =TAN(A103*D_R()) -> 0.03492076949 | C103: =ThreePosition_Slider($H$3,$H$4,$C$3:$D$3,$C$4:$D$4,B103) -> 0.5095230561 | D103: 0.1339292509 | F103: =ThreePosition_Slider($H$6,$H$7,$C$6:$D$6,$C$7:$D$7,B103) -> 0.5082245358 | G103: 0.1387753944
A104: 3 | B104: =TAN(A104*D_R()) -> 0.05240777928 | C104: =ThreePosition_Slider($H$3,$H$4,$C$3:$D$3,$C$4:$D$4,B104) -> 0.5144197456 | D104: 0.1338706263 | F104: =ThreePosition_Slider($H$6,$H$7,$C$6:$D$6,$C$7:$D$7,B104) -> 0.512435881 | G104: 0.1412745096
A105: 4 | B105: =TAN(A105*D_R()) -> 0.06992681194 | C105: =ThreePosition_Slider($H$3,$H$4,$C$3:$D$3,$C$4:$D$4,B105) -> 0.5194138412 | D105: 0.1337861298 | F105: =ThreePosition_Slider($H$6,$H$7,$C$6:$D$6,$C$7:$D$7,B105) -> 0.5167186464 | G105: 0.1438447335
A106: 5 | B106: =TAN(A106*D_R()) -> 0.08748866353 | C106: =ThreePosition_Slider($H$3,$H$4,$C$3:$D$3,$C$4:$D$4,B106) -> 0.5245112222 | D106: 0.1336741511 | F106: =ThreePosition_Slider($H$6,$H$7,$C$6:$D$6,$C$7:$D$7,B106) -> 0.5210771185 | G106: 0.1464904004
A107: 6 | B107: =TAN(A107*D_R()) -> 0.1051042353 | C107: =ThreePosition_Slider($H$3,$H$4,$C$3:$D$3,$C$4:$D$4,B107) -> 0.529718126 | D107: 0.1335329152 | F107: =ThreePosition_Slider($H$6,$H$7,$C$6:$D$6,$C$7:$D$7,B107) -> 0.5255158115 | G107: 0.1492161662
A108: 7 | B108: =TAN(A108*D_R()) -> 0.1227845609 | C108: =ThreePosition_Slider($H$3,$H$4,$C$3:$D$3,$C$4:$D$4,B108) -> 0.5350411794 | D108: 0.1333604655 | F108: =ThreePosition_Slider($H$6,$H$7,$C$6:$D$6,$C$7:$D$7,B108) -> 0.5300394862 | G108: 0.1520270387
A109: 8 | B109: =TAN(A109*D_R()) -> 0.1405408347 | C109: =ThreePosition_Slider($H$3,$H$4,$C$3:$D$3,$C$4:$D$4,B109) -> 0.5404874332 | D109: 0.1331546439 | F109: =ThreePosition_Slider($H$6,$H$7,$C$6:$D$6,$C$7:$D$7,B109) -> 0.5346531695 | G109: 0.1549284123
A110: 9 | B110: =TAN(A110*D_R()) -> 0.1583844403 | C110: =ThreePosition_Slider($H$3,$H$4,$C$3:$D$3,$C$4:$D$4,B110) -> 0.5460643999 | D110: 0.1329130683 | F110: =ThreePosition_Slider($H$6,$H$7,$C$6:$D$6,$C$7:$D$7,B110) -> 0.5393621766 | G110: 0.1579261063
A111: 10 | B111: =TAN(A111*D_R()) -> 0.1763269807 | C111: =ThreePosition_Slider($H$3,$H$4,$C$3:$D$3,$C$4:$D$4,B111) -> 0.5517800956 | D111: 0.1326331073 | F111: =ThreePosition_Slider($H$6,$H$7,$C$6:$D$6,$C$7:$D$7,B111) -> 0.5441721337 | G111: 0.1610264075
A112: 11 | B112: =TAN(A112*D_R()) -> 0.1943803091 | C112: =ThreePosition_Slider($H$3,$H$4,$C$3:$D$3,$C$4:$D$4,B112) -> 0.5576430861 | D112: 0.1323118512 | F112: =ThreePosition_Slider($H$6,$H$7,$C$6:$D$6,$C$7:$D$7,B112) -> 0.5490890044 | G112: 0.1642361187
A113: 12 | B113: =TAN(A113*D_R()) -> 0.2125565617 | C113: =ThreePosition_Slider($H$3,$H$4,$C$3:$D$3,$C$4:$D$4,B113) -> 0.5636625377 | D113: 0.1319460794 | F113: =ThreePosition_Slider($H$6,$H$7,$C$6:$D$6,$C$7:$D$7,B113) -> 0.5541191165 | G113: 0.1675626121
A114: 13 | B114: =TAN(A114*D_R()) -> 0.2308681911 | C114: =ThreePosition_Slider($H$3,$H$4,$C$3:$D$3,$C$4:$D$4,B114) -> 0.5698482739 | D114: 0.1315322229 | F114: =ThreePosition_Slider($H$6,$H$7,$C$6:$D$6,$C$7:$D$7,B114) -> 0.559269193 | G114: 0.1710138905
A115: 14 | B115: =TAN(A115*D_R()) -> 0.2493280028 | C115: =ThreePosition_Slider($H$3,$H$4,$C$3:$D$3,$C$4:$D$4,B115) -> 0.5762108381 | D115: 0.1310663213 | F115: =ThreePosition_Slider($H$6,$H$7,$C$6:$D$6,$C$7:$D$7,B115) -> 0.5645463844 | G115: 0.1745986553
A116: 15 | B116: =TAN(A116*D_R()) -> 0.2679491924 | C116: =ThreePosition_Slider($H$3,$H$4,$C$3:$D$3,$C$4:$D$4,B116) -> 0.5827615629 | D116: 0.1305439735 | F116: =ThreePosition_Slider($H$6,$H$7,$C$6:$D$6,$C$7:$D$7,B116) -> 0.5699583045 | G116: 0.1783263841
A117: 16 | B117: =TAN(A117*D_R()) -> 0.2867453858 | C117: =ThreePosition_Slider($H$3,$H$4,$C$3:$D$3,$C$4:$D$4,B117) -> 0.5895126476 | D117: 0.1299602818 | F117: =ThreePosition_Slider($H$6,$H$7,$C$6:$D$6,$C$7:$D$7,B117) -> 0.5755130696 | G117: 0.1822074183
A118: 17 | B118: =TAN(A118*D_R()) -> 0.3057306815 | C118: =ThreePosition_Slider($H$3,$H$4,$C$3:$D$3,$C$4:$D$4,B118) -> 0.5964772448 | D118: 0.1293097866 | F118: =ThreePosition_Slider($H$6,$H$7,$C$6:$D$6,$C$7:$D$7,B118) -> 0.5812193401 | G118: 0.1862530623
A119: 18 | B119: =TAN(A119*D_R()) -> 0.3249196962 | C119: =ThreePosition_Slider($H$3,$H$4,$C$3:$D$3,$C$4:$D$4,B119) -> 0.6036695568 | D119: 0.1285863913 | F119: =ThreePosition_Slider($H$6,$H$7,$C$6:$D$6,$C$7:$D$7,B119) -> 0.5870863673 | G119: 0.1904756969
A120: 19 | B120: =TAN(A120*D_R()) -> 0.3443276133 | C120: =ThreePosition_Slider($H$3,$H$4,$C$3:$D$3,$C$4:$D$4,B120) -> 0.6111049431 | D120: 0.1277832758 | F120: =ThreePosition_Slider($H$6,$H$7,$C$6:$D$6,$C$7:$D$7,B120) -> 0.593124043 | G120: 0.1948889085
A121: 20 | B121: =TAN(A121*D_R()) -> 0.3639702343 | C121: =ThreePosition_Slider($H$3,$H$4,$C$3:$D$3,$C$4:$D$4,B121) -> 0.6188000416 | D121: 0.1268927953 | F121: =ThreePosition_Slider($H$6,$H$7,$C$6:$D$6,$C$7:$D$7,B121) -> 0.5993429536 | G121: 0.1995076365
A122: 21 | B122: =TAN(A122*D_R()) -> 0.383864035 | C122: =ThreePosition_Slider($H$3,$H$4,$C$3:$D$3,$C$4:$D$4,B122) -> 0.6267729041 | D122: 0.1259063634 | F122: =ThreePosition_Slider($H$6,$H$7,$C$6:$D$6,$C$7:$D$7,B122) -> 0.6057544391 | G122: 0.2043483429
A123: 22 | B123: =TAN(A123*D_R()) -> 0.4040262258 | C123: =ThreePosition_Slider($H$3,$H$4,$C$3:$D$3,$C$4:$D$4,B123) -> 0.6350431486 | D123: 0.1248143148 | F123: =ThreePosition_Slider($H$6,$H$7,$C$6:$D$6,$C$7:$D$7,B123) -> 0.6123706566 | G123: 0.2094292069
A124: 23 | B124: =TAN(A124*D_R()) -> 0.4244748162 | C124: =ThreePosition_Slider($H$3,$H$4,$C$3:$D$3,$C$4:$D$4,B124) -> 0.6436321308 | D124: 0.1236057452 | F124: =ThreePosition_Slider($H$6,$H$7,$C$6:$D$6,$C$7:$D$7,B124) -> 0.6192046486 | G124: 0.21477035
A125: 24 | B125: =TAN(A125*D_R()) -> 0.4452286853 | C125: =ThreePosition_Slider($H$3,$H$4,$C$3:$D$3,$C$4:$D$4,B125) -> 0.6525631379 | D125: 0.1222683223 | F125: =ThreePosition_Slider($H$6,$H$7,$C$6:$D$6,$C$7:$D$7,B125) -> 0.6262704161 | G125: 0.2203940958
A126: 25 | B126: =TAN(A126*D_R()) -> 0.4663076582 | C126: =ThreePosition_Slider($H$3,$H$4,$C$3:$D$3,$C$4:$D$4,B126) -> 0.6618616065 | D126: 0.1207880641 | F126: =ThreePosition_Slider($H$6,$H$7,$C$6:$D$6,$C$7:$D$7,B126) -> 0.6335829971 | G126: 0.2263252713
A127: 26 | B127: =TAN(A127*D_R()) -> 0.4877325886 | C127: =ThreePosition_Slider($H$3,$H$4,$C$3:$D$3,$C$4:$D$4,B127) -> 0.6715553701 | D127: 0.1191490757 | F127: =ThreePosition_Slider($H$6,$H$7,$C$6:$D$6,$C$7:$D$7,B127) -> 0.6411585484 | G127: 0.2325915587
A128: 27 | B128: =TAN(A128*D_R()) -> 0.5095254495 | C128: =ThreePosition_Slider($H$3,$H$4,$C$3:$D$3,$C$4:$D$4,B128) -> 0.6816749381 | D128: 0.1173332372 | F128: =ThreePosition_Slider($H$6,$H$7,$C$6:$D$6,$C$7:$D$7,B128) -> 0.6490144322 | G128: 0.2392239049
A129: 28 | B129: =TAN(A129*D_R()) -> 0.5317094317 | C129: =ThreePosition_Slider($H$3,$H$4,$C$3:$D$3,$C$4:$D$4,B129) -> 0.6922538132 | D129: 0.1153198318 | F129: =ThreePosition_Slider($H$6,$H$7,$C$6:$D$6,$C$7:$D$7,B129) -> 0.6571693039 | G129: 0.2462570027
A130: 29 | B130: =TAN(A130*D_R()) -> 0.5543090515 | C130: =ThreePosition_Slider($H$3,$H$4,$C$3:$D$3,$C$4:$D$4,B130) -> 0.7033288501 | D130: 0.1130851 | F130: =ThreePosition_Slider($H$6,$H$7,$C$6:$D$6,$C$7:$D$7,B130) -> 0.6656432015 | G130: 0.2537298556
A131: 30 | B131: =TAN(A131*D_R()) -> 0.5773502692 | C131: =ThreePosition_Slider($H$3,$H$4,$C$3:$D$3,$C$4:$D$4,B131) -> 0.7149406642 | D131: 0.1106017057 | F131: =ThreePosition_Slider($H$6,$H$7,$C$6:$D$6,$C$7:$D$7,B131) -> 0.6744576302 | G131: 0.2616864453
A132: 31 | B132: =TAN(A132*D_R()) -> 0.600860619 | C132: =ThreePosition_Slider($H$3,$H$4,$C$3:$D$3,$C$4:$D$4,B132) -> 0.7271340932 | D132: 0.1078380896 | F132: =ThreePosition_Slider($H$6,$H$7,$C$6:$D$6,$C$7:$D$7,B132) -> 0.6836356415 | G132: 0.2701765216
A133: 32 | B133: =TAN(A133*D_R()) -> 0.6248693519 | C133: =ThreePosition_Slider($H$3,$H$4,$C$3:$D$3,$C$4:$D$4,B133) -> 0.7399587234 | D133: 0.1047576879 | F133: =ThreePosition_Slider($H$6,$H$7,$C$6:$D$6,$C$7:$D$7,B133) -> 0.6932018962 | G133: 0.2792565428
A134: 33 | B134: =TAN(A134*D_R()) -> 0.6494075932 | C134: =ThreePosition_Slider($H$3,$H$4,$C$3:$D$3,$C$4:$D$4,B134) -> 0.7534694836 | D134: 0.1013179793 | F134: =ThreePosition_Slider($H$6,$H$7,$C$6:$D$6,$C$7:$D$7,B134) -> 0.7031827034 | G134: 0.2889907978
A135: 34 | B135: =TAN(A135*D_R()) -> 0.6745085168 | C135: =ThreePosition_Slider($H$3,$H$4,$C$3:$D$3,$C$4:$D$4,B135) -> 0.767727318 | D135: 0.09746932024 | F135: =ThreePosition_Slider($H$6,$H$7,$C$6:$D$6,$C$7:$D$7,B135) -> 0.7136060206 | G135: 0.2994527516
A136: 35 | B136: =TAN(A136*D_R()) -> 0.7002075382 | C136: =ThreePosition_Slider($H$3,$H$4,$C$3:$D$3,$C$4:$D$4,B136) -> 0.7827999438 | D136: 0.09315351165 | F136: =ThreePosition_Slider($H$6,$H$7,$C$6:$D$6,$C$7:$D$7,B136) -> 0.7245013932 | G136: 0.3107266643
A137: 36 | B137: =TAN(A137*D_R()) -> 0.726542528 | C137: =ThreePosition_Slider($H$3,$H$4,$C$3:$D$3,$C$4:$D$4,B137) -> 0.7987626999 | D137: 0.0883020291 | F137: =ThreePosition_Slider($H$6,$H$7,$C$6:$D$6,$C$7:$D$7,B137) -> 0.7358998042 | G137: 0.3229095495
A138: 37 | B138: =TAN(A138*D_R()) -> 0.7535540501 | C138: =ThreePosition_Slider($H$3,$H$4,$C$3:$D$3,$C$4:$D$4,B138) -> 0.8156994895 | D138: 0.08283382303 | F138: =ThreePosition_Slider($H$6,$H$7,$C$6:$D$6,$C$7:$D$7,B138) -> 0.7478333913 | G138: 0.3361135497
A139: 38 | B139: =TAN(A139*D_R()) -> 0.7812856265 | C139: =ThreePosition_Slider($H$3,$H$4,$C$3:$D$3,$C$4:$D$4,B139) -> 0.8337038139 | D139: 0.07665257124 | F139: =ThreePosition_Slider($H$6,$H$7,$C$6:$D$6,$C$7:$D$7,B139) -> 0.7603349677 | G139: 0.350468833
A140: 39 | B140: =TAN(A140*D_R()) -> 0.8097840332 | C140: =ThreePosition_Slider($H$3,$H$4,$C$3:$D$3,$C$4:$D$4,B140) -> 0.8528798839 | D140: 0.06964322748 | F140: =ThreePosition_Slider($H$6,$H$7,$C$6:$D$6,$C$7:$D$7,B140) -> 0.7734372596 | G140: 0.3661271378
A141: 40 | B141: =TAN(A141*D_R()) -> 0.8390996312 | C141: =ThreePosition_Slider($H$3,$H$4,$C$3:$D$3,$C$4:$D$4,B141) -> 0.8733437785 | D141: 0.06166766134 | F141: =ThreePosition_Slider($H$6,$H$7,$C$6:$D$6,$C$7:$D$7,B141) -> 0.7871717291 | G141: 0.3832661279
A142: 41 | B142: =TAN(A142*D_R()) -> 0.8692867378 | C142: =ThreePosition_Slider($H$3,$H$4,$C$3:$D$3,$C$4:$D$4,B142) -> 0.8952245893 | D142: 0.05255911819 | F142: =ThreePosition_Slider($H$6,$H$7,$C$6:$D$6,$C$7:$D$7,B142) -> 0.8015667955 | G142: 0.4020947631
A143: 42 | B143: =TAN(A143*D_R()) -> 0.9004040443 | C143: =ThreePosition_Slider($H$3,$H$4,$C$3:$D$3,$C$4:$D$4,B143) -> 0.9186654427 | D143: 0.04211513989 | F143: =ThreePosition_Slider($H$6,$H$7,$C$6:$D$6,$C$7:$D$7,B143) -> 0.8166451809 | G143: 0.4228599403
A144: 43 | B144: =TAN(A144*D_R()) -> 0.9325150861 | C144: =ThreePosition_Slider($H$3,$H$4,$C$3:$D$3,$C$4:$D$4,B144) -> 0.9438242096 | D144: 0.03008846787 | F144: =ThreePosition_Slider($H$6,$H$7,$C$6:$D$6,$C$7:$D$7,B144) -> 0.8324199762 | G144: 0.4458547273
A145: 44 | B145: =TAN(A145*D_R()) -> 0.9656887748 | C145: =ThreePosition_Slider($H$3,$H$4,$C$3:$D$3,$C$4:$D$4,B145) -> 0.9708735841 | D145: 0.01617529211 | F145: =ThreePosition_Slider($H$6,$H$7,$C$6:$D$6,$C$7:$D$7,B145) -> 0.8488888337 | G145: 0.4714285782
A146: 45 | B146: =TAN(A146*D_R()) -> 1 | C146: =ThreePosition_Slider($H$3,$H$4,$C$3:$D$3,$C$4:$D$4,B146) -> 1 | D146: 0 | F146: =ThreePosition_Slider($H$6,$H$7,$C$6:$D$6,$C$7:$D$7,B146) -> 0.8660254038 | G146: 0.5
A147: 46 | B147: =TAN(A147*D_R()) -> 1.035530314 | C147: =ThreePosition_Slider($H$3,$H$4,$C$3:$D$3,$C$4:$D$4,B147) -> 1.031400508 | D147: -0.01890469214 | F147: =ThreePosition_Slider($H$6,$H$7,$C$6:$D$6,$C$7:$D$7,B147) -> 0.8837666953 | G147: 0.5320721976
A148: 47 | B148: =TAN(A148*D_R()) -> 1.07236871 | C148: =ThreePosition_Slider($H$3,$H$4,$C$3:$D$3,$C$4:$D$4,B148) -> 1.06527617 | D148: -0.04112368142 | F148: =ThreePosition_Slider($H$6,$H$7,$C$6:$D$6,$C$7:$D$7,B148) -> 0.9019943846 | G148: 0.5682522378
A149: 48 | B149: =TAN(A149*D_R()) -> 1.110612515 | C149: =ThreePosition_Slider($H$3,$H$4,$C$3:$D$3,$C$4:$D$4,B149) -> 1.101819605 | D149: -0.06739334619 | F149: =ThreePosition_Slider($H$6,$H$7,$C$6:$D$6,$C$7:$D$7,B149) -> 0.920507095 | G149: 0.6092741522
A150: 49 | B150: =TAN(A150*D_R()) -> 1.150368407 | C150: =ThreePosition_Slider($H$3,$H$4,$C$3:$D$3,$C$4:$D$4,B150) -> 1.141192802 | D150: -0.0986455818 | F150: =ThreePosition_Slider($H$6,$H$7,$C$6:$D$6,$C$7:$D$7,B150) -> 0.9389791659 | G150: 0.6560259806
A151: 50 | B151: =TAN(A151*D_R()) -> 1.191753593 | C151: =ThreePosition_Slider($H$3,$H$4,$C$3:$D$3,$C$4:$D$4,B151) -> 1.183488857 | D151: -0.1360644577 | F151: =ThreePosition_Slider($H$6,$H$7,$C$6:$D$6,$C$7:$D$7,B151) -> 0.9568991861 | G151: 0.7095797053
A152: 51 | B152: =TAN(A152*D_R()) -> 1.234897157 | C152: =ThreePosition_Slider($H$3,$H$4,$C$3:$D$3,$C$4:$D$4,B152) -> 1.228667287 | D152: -0.1811575446 | F152: =ThreePosition_Slider($H$6,$H$7,$C$6:$D$6,$C$7:$D$7,B152) -> 0.9734783112 | G152: 0.7712206794
A153: 52 | B153: =TAN(A153*D_R()) -> 1.279941632 | C153: =ThreePosition_Slider($H$3,$H$4,$C$3:$D$3,$C$4:$D$4,B153) -> 1.276446259 | D153: -0.2358419326 | F153: =ThreePosition_Slider($H$6,$H$7,$C$6:$D$6,$C$7:$D$7,B153) -> 0.9875139203 | G153: 0.8424682342
A154: 53 | B154: =TAN(A154*D_R()) -> 1.327044822 | C154: =ThreePosition_Slider($H$3,$H$4,$C$3:$D$3,$C$4:$D$4,B154) -> 1.326125414 | D154: -0.3025391124 | F154: =ThreePosition_Slider($H$6,$H$7,$C$6:$D$6,$C$7:$D$7,B154) -> 0.9971887408 | G154: 0.9250692639
A155: 54 | B155: =TAN(A155*D_R()) -> 1.37638192 | C155: =ThreePosition_Slider($H$3,$H$4,$C$3:$D$3,$C$4:$D$4,B155) -> 1.376299491 | D155: -0.3842586536 | F155: =ThreePosition_Slider($H$6,$H$7,$C$6:$D$6,$C$7:$D$7,B155) -> 0.9997809959 | G155: 1.020927501
A156: 55 | B156: =TAN(A156*D_R()) -> 1.428148007 | C156: =ThreePosition_Slider($H$3,$H$4,$C$3:$D$3,$C$4:$D$4,B156) -> 1.424407505 | D156: -0.484619106 | F156: =ThreePosition_Slider($H$6,$H$7,$C$6:$D$6,$C$7:$D$7,B156) -> 0.991263532 | G156: 1.13189621
A157: 56 | B157: =TAN(A157*D_R()) -> 1.482560969 | C157: =ThreePosition_Slider($H$3,$H$4,$C$3:$D$3,$C$4:$D$4,B157) -> 1.466055439 | D157: -0.6076905655 | F157: =ThreePosition_Slider($H$6,$H$7,$C$6:$D$6,$C$7:$D$7,B157) -> 0.9657959708 | G157: 1.259303187
A158: 57 | B158: =TAN(A158*D_R()) -> 1.539864964 | C158: =ThreePosition_Slider($H$3,$H$4,$C$3:$D$3,$C$4:$D$4,B158) -> 1.494085756 | D158: -0.7574274728 | F158: =ThreePosition_Slider($H$6,$H$7,$C$6:$D$6,$C$7:$D$7,B158) -> 0.9152024833 | G158: 1.402994311
A159: 58 | B159: =TAN(A159*D_R()) -> 1.600334529 | C159: =ThreePosition_Slider($H$3,$H$4,$C$3:$D$3,$C$4:$D$4,B159) -> 1.497528275 | D159: -0.9362916128 | F159: =ThreePosition_Slider($H$6,$H$7,$C$6:$D$6,$C$7:$D$7,B159) -> 0.8287517228 | G159: 1.55961646
A160: 59 | B160: =TAN(A160*D_R()) -> 1.664279482 | C160: =ThreePosition_Slider($H$3,$H$4,$C$3:$D$3,$C$4:$D$4,B160) -> 1.461007991 | D160: -1.142546001 | F160: =ThreePosition_Slider($H$6,$H$7,$C$6:$D$6,$C$7:$D$7,B160) -> 0.6939970353 | G160: 1.719977857
A161: 60 | B161: =TAN(A161*D_R()) -> 1.732050808 | C161: =ThreePosition_Slider($H$3,$H$4,$C$3:$D$3,$C$4:$D$4,B161) -> 1.366025404 | D161: -1.366025404 | F161: =ThreePosition_Slider($H$6,$H$7,$C$6:$D$6,$C$7:$D$7,B161) -> 0.5 | G161: 1.866025404
A162: 61 | B162: =TAN(A162*D_R()) -> 1.804047755 | C162: =ThreePosition_Slider($H$3,$H$4,$C$3:$D$3,$C$4:$D$4,B162) -> 1.196315584 | D162: -1.583761154 | F162: =ThreePosition_Slider($H$6,$H$7,$C$6:$D$6,$C$7:$D$7,B162) -> 0.2441591099 | G162: 1.969735185
A163: 62 | B163: =TAN(A163*D_R()) -> 1.880726465 | C163: =ThreePosition_Slider($H$3,$H$4,$C$3:$D$3,$C$4:$D$4,B163) -> 0.9482542774 | D163: -1.759931497 | F163: =ThreePosition_Slider($H$6,$H$7,$C$6:$D$6,$C$7:$D$7,B163) -> -0.05875345478 | G163: 1.998272524
A164: 63 | B164: =TAN(A164*D_R()) -> 1.962610506 | C164: =ThreePosition_Slider($H$3,$H$4,$C$3:$D$3,$C$4:$D$4,B164) -> 0.6414826431 | D164: -1.85596614 | F164: =ThreePosition_Slider($H$6,$H$7,$C$6:$D$6,$C$7:$D$7,B164) -> -0.3724428051 | G164: 1.928055148
A165: 64 | B165: =TAN(A165*D_R()) -> 2.050303842 | C165: =ThreePosition_Slider($H$3,$H$4,$C$3:$D$3,$C$4:$D$4,B165) -> 0.3183922225 | D165: -1.84939645 | F165: =ThreePosition_Slider($H$6,$H$7,$C$6:$D$6,$C$7:$D$7,B165) -> -0.6489624721 | G165: 1.760820419
A166: 65 | B166: =TAN(A166*D_R()) -> 2.144506921 | C166: =ThreePosition_Slider($H$3,$H$4,$C$3:$D$3,$C$4:$D$4,B166) -> 0.02695124206 | D166: -1.747061653 | F166: =ThreePosition_Slider($H$6,$H$7,$C$6:$D$6,$C$7:$D$7,B166) -> -0.8501903663 | G166: 1.526475395
A167: 66 | B167: =TAN(A167*D_R()) -> 2.246036774 | C167: =ThreePosition_Slider($H$3,$H$4,$C$3:$D$3,$C$4:$D$4,B167) -> -0.2005521481 | D167: -1.579626614 | F167: =ThreePosition_Slider($H$6,$H$7,$C$6:$D$6,$C$7:$D$7,B167) -> -0.9634965622 | G167: 1.267720703
A168: 67 | B168: =TAN(A168*D_R()) -> 2.355852366 | C168: =ThreePosition_Slider($H$3,$H$4,$C$3:$D$3,$C$4:$D$4,B168) -> -0.3555659617 | D168: -1.383719218 | F168: =ThreePosition_Slider($H$6,$H$7,$C$6:$D$6,$C$7:$D$7,B168) -> -0.9997887645 | G168: 1.020553014
A169: 68 | B169: =TAN(A169*D_R()) -> 2.475086853 | C169: =ThreePosition_Slider($H$3,$H$4,$C$3:$D$3,$C$4:$D$4,B169) -> -0.4468315873 | D169: -1.187755019 | F169: =ThreePosition_Slider($H$6,$H$7,$C$6:$D$6,$C$7:$D$7,B169) -> -0.9808450153 | G169: 0.8052102262
A170: 69 | B170: =TAN(A170*D_R()) -> 2.605089065 | C170: =ThreePosition_Slider($H$3,$H$4,$C$3:$D$3,$C$4:$D$4,B170) -> -0.4898775568 | D170: -1.007949407 | F170: =ThreePosition_Slider($H$6,$H$7,$C$6:$D$6,$C$7:$D$7,B170) -> -0.9282211122 | G170: 0.6279710134
A171: 70 | B171: =TAN(A171*D_R()) -> 2.747477419 | C171: =ThreePosition_Slider($H$3,$H$4,$C$3:$D$3,$C$4:$D$4,B171) -> -0.4998841333 | D171: -0.8508030537 | F171: =ThreePosition_Slider($H$6,$H$7,$C$6:$D$6,$C$7:$D$7,B171) -> -0.8583138853 | G171: 0.4868749915
A172: 71 | B172: =TAN(A172*D_R()) -> 2.904210878 | C172: =ThreePosition_Slider($H$3,$H$4,$C$3:$D$3,$C$4:$D$4,B172) -> -0.4888392677 | D172: -0.717039154 | F172: =ThreePosition_Slider($H$6,$H$7,$C$6:$D$6,$C$7:$D$7,B172) -> -0.7818668012 | G172: 0.376554489
A173: 72 | B173: =TAN(A173*D_R()) -> 3.077683537 | C173: =ThreePosition_Slider($H$3,$H$4,$C$3:$D$3,$C$4:$D$4,B173) -> -0.4652345874 | D173: -0.604640264 | F173: =ThreePosition_Slider($H$6,$H$7,$C$6:$D$6,$C$7:$D$7,B173) -> -0.7052251034 | G173: 0.2910165351
A174: 73 | B174: =TAN(A174*D_R()) -> 3.270852618 | C174: =ThreePosition_Slider($H$3,$H$4,$C$3:$D$3,$C$4:$D$4,B174) -> -0.4347195336 | D174: -0.5106391443 | F174: =ThreePosition_Slider($H$6,$H$7,$C$6:$D$6,$C$7:$D$7,B174) -> -0.6317977318 | G174: 0.2248667043
A175: 74 | B175: =TAN(A175*D_R()) -> 3.487414444 | C175: =ThreePosition_Slider($H$3,$H$4,$C$3:$D$3,$C$4:$D$4,B175) -> -0.4009042093 | D175: -0.4320074253 | F175: =ThreePosition_Slider($H$6,$H$7,$C$6:$D$6,$C$7:$D$7,B175) -> -0.5631969424 | G175: 0.1736773003
A176: 75 | B176: =TAN(A176*D_R()) -> 3.732050808 | C176: =ThreePosition_Slider($H$3,$H$4,$C$3:$D$3,$C$4:$D$4,B176) -> -0.3660254038 | D176: -0.3660254038 | F176: =ThreePosition_Slider($H$6,$H$7,$C$6:$D$6,$C$7:$D$7,B176) -> -0.5 | G176: 0.1339745962
A177: 76 | B177: =TAN(A177*D_R()) -> 4.010780934 | C177: =ThreePosition_Slider($H$3,$H$4,$C$3:$D$3,$C$4:$D$4,B177) -> -0.3314269349 | D177: -0.3103913048 | F177: =ThreePosition_Slider($H$6,$H$7,$C$6:$D$6,$C$7:$D$7,B177) -> -0.4422197976 | G177: 0.1030932877
A178: 77 | B178: =TAN(A178*D_R()) -> 4.331475874 | C178: =ThreePosition_Slider($H$3,$H$4,$C$3:$D$3,$C$4:$D$4,B178) -> -0.297883988 | D178: -0.2632143707 | F178: =ThreePosition_Slider($H$6,$H$7,$C$6:$D$6,$C$7:$D$7,B178) -> -0.3895822864 | G178: 0.07900833763
A179: 78 | B179: =TAN(A179*D_R()) -> 4.704630109 | C179: =ThreePosition_Slider($H$3,$H$4,$C$3:$D$3,$C$4:$D$4,B179) -> -0.2658148448 | D179: -0.2229642687 | F179: =ThreePosition_Slider($H$6,$H$7,$C$6:$D$6,$C$7:$D$7,B179) -> -0.3416845427 | G179: 0.06018529844
A180: 79 | B180: =TAN(A180*D_R()) -> 5.144554016 | C180: =ThreePosition_Slider($H$3,$H$4,$C$3:$D$3,$C$4:$D$4,B180) -> -0.2354166699 | D180: -0.1884102315 | F180: =ThreePosition_Slider($H$6,$H$7,$C$6:$D$6,$C$7:$D$7,B180) -> -0.2980819324 | G180: 0.04545971191
A181: 80 | B181: =TAN(A181*D_R()) -> 5.67128182 | C181: =ThreePosition_Slider($H$3,$H$4,$C$3:$D$3,$C$4:$D$4,B181) -> -0.2067517723 | D181: -0.1585637918 | F181: =ThreePosition_Slider($H$6,$H$7,$C$6:$D$6,$C$7:$D$7,B181) -> -0.258334183 | G181: 0.0339443857
A182: 81 | B182: =TAN(A182*D_R()) -> 6.313751515 | C182: =ThreePosition_Slider($H$3,$H$4,$C$3:$D$3,$C$4:$D$4,B182) -> -0.1798021013 | D182: -0.1326298059 | F182: =ThreePosition_Slider($H$6,$H$7,$C$6:$D$6,$C$7:$D$7,B182) -> -0.2220280903 | G182: 0.02495973052
A183: 82 | B183: =TAN(A183*D_R()) -> 7.115369722 | C183: =ThreePosition_Slider($H$3,$H$4,$C$3:$D$3,$C$4:$D$4,B183) -> -0.1545035207 | D183: -0.1099664502 | F183: =ThreePosition_Slider($H$6,$H$7,$C$6:$D$6,$C$7:$D$7,B183) -> -0.188787199 | G183: 0.01798197904
A184: 83 | B184: =TAN(A184*D_R()) -> 8.144346428 | C184: =ThreePosition_Slider($H$3,$H$4,$C$3:$D$3,$C$4:$D$4,B184) -> -0.1307672454 | D184: -0.09005331529 | F184: =ThreePosition_Slider($H$6,$H$7,$C$6:$D$6,$C$7:$D$7,B184) -> -0.1582744142 | G184: 0.01260483603
A185: 84 | B185: =TAN(A185*D_R()) -> 9.514364454 | C185: =ThreePosition_Slider($H$3,$H$4,$C$3:$D$3,$C$4:$D$4,B185) -> -0.1084931337 | D185: -0.07246626531 | F185: =ThreePosition_Slider($H$6,$H$7,$C$6:$D$6,$C$7:$D$7,B185) -> -0.1301909426 | G185: 0.008511059834
A186: 85 | B186: =TAN(A186*D_R()) -> 11.4300523 | C186: =ThreePosition_Slider($H$3,$H$4,$C$3:$D$3,$C$4:$D$4,B186) -> -0.0875778106 | D186: -0.05685773483 | F186: =ThreePosition_Slider($H$6,$H$7,$C$6:$D$6,$C$7:$D$7,B186) -> -0.1042734762 | G186: 0.00545133746
A187: 86 | B187: =TAN(A187*D_R()) -> 14.30066626 | C187: =ThreePosition_Slider($H$3,$H$4,$C$3:$D$3,$C$4:$D$4,B187) -> -0.06791951285 | D187: -0.0429413091 | F187: =ThreePosition_Slider($H$6,$H$7,$C$6:$D$6,$C$7:$D$7,B187) -> -0.08029067809 | G187: 0.003228508127
A188: 87 | B188: =TAN(A188*D_R()) -> 19.08113669 | C188: =ThreePosition_Slider($H$3,$H$4,$C$3:$D$3,$C$4:$D$4,B188) -> -0.04942085873 | D188: -0.03047964203 | F188: =ThreePosition_Slider($H$6,$H$7,$C$6:$D$6,$C$7:$D$7,B188) -> -0.05803954015 | G188: 0.001685714928
A189: 88 | B189: =TAN(A189*D_R()) -> 28.63625328 | C189: =ThreePosition_Slider($H$3,$H$4,$C$3:$D$3,$C$4:$D$4,B189) -> -0.03199031125 | D189: -0.01927496314 | F189: =ThreePosition_Slider($H$6,$H$7,$C$6:$D$6,$C$7:$D$7,B189) -> -0.03734190379 | G189: 0.0006974521091
A190: 89 | B190: =TAN(A190*D_R()) -> 57.28996163 | C190: =ThreePosition_Slider($H$3,$H$4,$C$3:$D$3,$C$4:$D$4,B190) -> -0.01554282621 | D190: -0.009161590599 | F190: =ThreePosition_Slider($H$6,$H$7,$C$6:$D$6,$C$7:$D$7,B190) -> -0.01804127764 | G190: 0.0001627570944
A191: 90 | B191: =TAN(A191*D_R()) -> 1.632455228e+16 | C191: =ThreePosition_Slider($H$3,$H$4,$C$3:$D$3,$C$4:$D$4,B191) -> -5.305048427e-17 | D191: -3.062871137e-17 | F191: =ThreePosition_Slider($H$6,$H$7,$C$6:$D$6,$C$7:$D$7,B191) -> -6.125742275e-17 | G191: 5.251655837e-33
